Workbook

Sheet Admin
B4: Process Year
B5: 2021 | C5: I1
B7: First True Up Month
B8: =B5*100+1 -> 202101 | C8: I2 | D8: I3
B10: Second True Up Month
B11: =B8+1 -> 202102 | C11: I4 | D11: I5
B13: Third True Up Month
B14: =B11+1 -> 202103 | C14: I6 | D14: I7
B16: Fourth True Up Month
B17: =B14+1 -> 202104 | C17: I8 | D17: I9
B19: Fifth True Up Month
B20: =B17+1 -> 202105 | C20: I10 | D20: I11
B22: Sixth True Up Month
B23: =B20+1 -> 202106 | C23: I12 | D23: I13
B25: Seventh True Up Month
B26: =B23+1 -> 202107 | C26: I14 | D26: I15
B28: Eighth True Up Month
B29: =B26+1 -> 202108 | C29: I16 | D29: I17
B31: Ninth True Up Month
B32: =B29+1 -> 202109 | C32: I18 | D32: I19
B34: Tenth True Up Month
B35: =B32+1 -> 202110 | C35: I20 | D35: I21
B37: Eleventh True Up Month
B38: =B35+1 -> 202111 | C38: I22 | D38: I23
B40: Twelveth True Up Month
B41: =B38+1 -> 202112 | C41: I24 | D41: I25

Sheet I1 Reconciliation
C2: =Admin!$B$8 -> 202101 | D2: =Admin!$B$8 -> 202101 | E2: =C2+1 -> 202102 | F2: =D2+1 -> 202102 | G2: =E2+1 -> 202103 | H2: 202103 | I2: 202104 | J2: 202104 | K2: 202105 | L2: 202105 | M2: 202106 | N2: 202106 | O2: 202107 | P2: 202107 | Q2: 202108 | R2: 202108 | S2: 202109 | T2: 202109 | U2: 202110 | V2: 202110 | W2: 202111 | X2: 202111 | Y2: 202112 | Z2: 202112 | AA2: =Admin!B5 -> 2021
C3: =A4 & "Input "& C2 & " Trueup Sett" -> Input 202101 Trueup Sett | D3: =D4 & " Input Rev " & D2 & " Init" -> I3 Input Rev 202101 Init | E3: =C4 & "Input "& E2 & " Trueup Sett" -> I2Input 202102 Trueup Sett | F3: =F4 & " Input Rev " & F2 & " Init" -> I5 Input Rev 202102 Init | G3: =E4 & "Input "& G2 & " Trueup Sett" -> I4Input 202103 Trueup Sett | H3: =H4 & " Input Rev " & H2 & " Init" -> I7 Input Rev 202103 Init | I3: =G4 & "Input "& I2 & " Trueup Sett" -> I6Input 202104 Trueup Sett | J3: =J4 & " Input Rev " & J2 & " Init" -> I9 Input Rev 202104 Init | K3: =I4 & "Input "& K2 & " Trueup Sett" -> I8Input 202105 Trueup Sett | L3: =L4 & " Input Rev " & L2 & " Init" -> I11 Input Rev 202105 Init | M3: =K4 & "Input "& M2 & " Trueup Sett" -> I10Input 202106 Trueup Sett | N3: =N4 & " Input Rev " & N2 & " Init" -> I13 Input Rev 202106 Init | O3: =M4 & "Input "& O2 & " Trueup Sett" -> I12Input 202107 Trueup Sett | P3: =P4 & " Input Rev " & P2 & " Init" -> I15 Input Rev 202107 Init | Q3: =O4 & "Input "& Q2 & " Trueup Sett" -> I14Input 202108 Trueup Sett | R3: =R4 & " Input Rev " & R2 & " Init" -> I17 Input Rev 202108 Init | S3: =Q4 & "Input "& S2 & " Trueup Sett" -> I16Input 202109 Trueup Sett | T3: =T4 & " Input Rev " & T2 & " Init" -> I19 Input Rev 202109 Init | U3: =S4 & "Input "& U2 & " Trueup Sett" -> I18Input 202110 Trueup Sett | V3: =V4 & " Input Rev " & V2 & " Init" -> I21 Input Rev 202110 Init | W3: =U4 & "Input "& W2 & " Trueup Sett" -> I20Input 202111 Trueup Sett | X3: =X4 & " Input Rev " & X2 & " Init" -> I23 Input Rev 202111 Init | Y3: =W4 & "Input "& Y2 & " Trueup Sett" -> I22Input 202112 Trueup Sett | Z3: =Z4 & " Input Rev " & Z2 & " Init" -> I25 Input Rev 202112 Init | AA3: Total IESO Settlement
C4: I2 | D4: I3 | E4: I4 | F4: I5 | G4: I6 | H4: I7 | I4: I8 | J4: I9 | K4: I10 | L4: I11 | M4: I12 | N4: I13 | O4: I14 | P4: I15 | Q4: I16 | R4: I17 | S4: I18 | T4: I19 | U4: I20 | V4: I21 | W4: I22 | X4: I23 | Y4: I24 | Z4: I25
B5: RPP Revenue Prices
B6: RPPT1 | C6: ='I2 Input 01 Trueup Sett '!Z6 -> 6405.133812 | D6: ='I3 Input Rev 01 Init'!C7 -> -2434.62 | E6: ='I4 Input 02 Trueup Sett'!Z6 -> 11363.93902 | F6: ='I5 Input Rev 02 Init'!C7 -> 16500.48 | G6: ='I6 Input 03 Trueup Sett'!Z6 -> -7424.610712 | H6: ='I7 Input Rev 03 Init'!C7 -> 8955.67 | I6: ='I8 Input 04 Trueup Sett'!Z6 -> -19049.42295 | J6: ='I9 Input Rev 04 Init'!C7 -> 11198.08 | K6: ='I10 Input 05 Trueup Sett'!Z6 -> -12461.95138 | L6: ='I11 Input Rev 05 Init'!C7 -> 21060.51 | M6: ='I12 Input 06 Trueup Sett'!Z6 -> -11212.70366 | N6: ='I13 Input Rev 06 Init'!C7 -> 17773.71 | O6: ='I14 Input 07 Trueup Sett'!Z6 -> -4559.830969 | P6: ='I15 Input Rev 07 Init'!C7 -> 15796.49 | Q6: ='I16 Input 08 Trueup Sett'!Z6 -> 9622.535041 | R6: ='I17 Input Rev 08 Init'!C7 -> 8656.41 | S6: ='I18 Input 09 Trueup Sett'!Z6 -> -11508.28391 | T6: ='I19 Input Rev 09 Init'!C7 -> -1757.08 | U6: ='I20 Input 10 Trueup Sett'!Z6 -> 5487.15532 | V6: ='I21 Input Rev 10 Init'!C7 -> 12060.52 | W6: ='I22 Input 11 Trueup Sett'!Z6 -> 4773.825264 | X6: ='I23 Input Rev 11 Init'!C7 -> 1379.24 | Y6: ='I24 Input 12 Trueup Sett'!Z6 -> 1388.492033 | Z6: ='I25 Input Rev 12 Init'!C7 -> 1200.12 | AA6: =SUM(C6:Z6) -> 83213.80691
B7: RPPT2 | C7: ='I2 Input 01 Trueup Sett '!Z7 -> 4321.278999 | D7: ='I3 Input Rev 01 Init'!C8 -> -8395.41 | E7: ='I4 Input 02 Trueup Sett'!Z7 -> 2699.173106 | F7: ='I5 Input Rev 02 Init'!C8 -> 6097.88 | G7: ='I6 Input 03 Trueup Sett'!Z7 -> 3002.672572 | H7: ='I7 Input Rev 03 Init'!C8 -> 3210.08 | I7: ='I8 Input 04 Trueup Sett'!Z7 -> -403.8393317 | J7: ='I9 Input Rev 04 Init'!C8 -> -1811.4 | K7: ='I10 Input 05 Trueup Sett'!Z7 -> -95.07284926 | L7: ='I11 Input Rev 05 Init'!C8 -> 1199.21 | M7: ='I12 Input 06 Trueup Sett'!Z7 -> 572.6598527 | N7: ='I13 Input Rev 06 Init'!C8 -> 1201.86 | O7: ='I14 Input 07 Trueup Sett'!Z7 -> 3475.588473 | P7: ='I15 Input Rev 07 Init'!C8 -> 846.55 | Q7: ='I16 Input 08 Trueup Sett'!Z7 -> 11890.28686 | R7: ='I17 Input Rev 08 Init'!C8 -> -1770.5 | S7: ='I18 Input 09 Trueup Sett'!Z7 -> 790.439698 | T7: ='I19 Input Rev 09 Init'!C8 -> -7417.08 | U7: ='I20 Input 10 Trueup Sett'!Z7 -> 5519.465935 | V7: ='I21 Input Rev 10 Init'!C8 -> -264.18 | W7: ='I22 Input 11 Trueup Sett'!Z7 -> 5534.0318 | X7: ='I23 Input Rev 11 Init'!C8 -> -3055.17 | Y7: ='I24 Input 12 Trueup Sett'!Z7 -> 6809.850898 | Z7: ='I25 Input Rev 12 Init'!C8 -> -3579.35 | AA7: =SUM(C7:Z7) -> 30379.02601
B8: RPPTOUMID | C8: ='I2 Input 01 Trueup Sett '!Z8 -> -11564.35064 | D8: ='I3 Input Rev 01 Init'!C9 -> -43517.89 | E8: ='I4 Input 02 Trueup Sett'!Z8 -> 20919.50738 | F8: ='I5 Input Rev 02 Init'!C9 -> 16827.49 | G8: ='I6 Input 03 Trueup Sett'!Z8 -> 13832.80387 | H8: ='I7 Input Rev 03 Init'!C9 -> 14136.83 | I8: ='I8 Input 04 Trueup Sett'!Z8 -> -4105.832438 | J8: ='I9 Input Rev 04 Init'!C9 -> -12358.77 | K8: ='I10 Input 05 Trueup Sett'!Z8 -> -2603.627711 | L8: ='I11 Input Rev 05 Init'!C9 -> 6712.27 | M8: ='I12 Input 06 Trueup Sett'!Z8 -> 1449.069357 | N8: ='I13 Input Rev 06 Init'!C9 -> 10946.61 | O8: ='I14 Input 07 Trueup Sett'!Z8 -> 15125.59531 | P8: ='I15 Input Rev 07 Init'!C9 -> 8410.5 | Q8: ='I16 Input 08 Trueup Sett'!Z8 -> 48365.34976 | R8: ='I17 Input Rev 08 Init'!C9 -> -8039.99 | S8: ='I18 Input 09 Trueup Sett'!Z8 -> -374.4510559 | T8: ='I19 Input Rev 09 Init'!C9 -> -27056.21 | U8: ='I20 Input 10 Trueup Sett'!Z8 -> 31848.11517 | V8: ='I21 Input Rev 10 Init'!C9 -> 1897.07 | W8: ='I22 Input 11 Trueup Sett'!Z8 -> 30312.29729 | X8: ='I23 Input Rev 11 Init'!C9 -> -16361.99 | Y8: ='I24 Input 12 Trueup Sett'!Z8 -> 30103.45556 | Z8: ='I25 Input Rev 12 Init'!C9 -> -21768.06 | AA8: 103135.7919
B9: RPPTOUOFF | C9: ='I2 Input 01 Trueup Sett '!Z9 -> -77187.27494 | D9: ='I3 Input Rev 01 Init'!C10 -> 124098.29 | E9: ='I4 Input 02 Trueup Sett'!Z9 -> 22886.27355 | F9: ='I5 Input Rev 02 Init'!C10 -> 109661.52 | G9: ='I6 Input 03 Trueup Sett'!Z9 -> -133953.9105 | H9: ='I7 Input Rev 03 Init'!C10 -> 85961.39 | I9: ='I8 Input 04 Trueup Sett'!Z9 -> -180301.818 | J9: ='I9 Input Rev 04 Init'!C10 -> 149295.89 | K9: ='I10 Input 05 Trueup Sett'!Z9 -> -141933.5075 | L9: ='I11 Input Rev 05 Init'!C10 -> 184644.22 | M9: ='I12 Input 06 Trueup Sett'!Z9 -> -146814.2038 | N9: ='I13 Input Rev 06 Init'!C10 -> 175871.16 | O9: ='I14 Input 07 Trueup Sett'!Z9 -> -114089.5903 | P9: ='I15 Input Rev 07 Init'!C10 -> 175891.33 | Q9: ='I16 Input 08 Trueup Sett'!Z9 -> -33721.85876 | R9: ='I17 Input Rev 08 Init'!C10 -> 141063.76 | S9: ='I18 Input 09 Trueup Sett'!Z9 -> -149135.8648 | T9: ='I19 Input Rev 09 Init'!C10 -> 92940.28 | U9: ='I20 Input 10 Trueup Sett'!Z9 -> -46048.44744 | V9: ='I21 Input Rev 10 Init'!C10 -> 151970.47 | W9: ='I22 Input 11 Trueup Sett'!Z9 -> -60385.7685 | X9: ='I23 Input Rev 11 Init'!C10 -> 83776.63 | Y9: ='I24 Input 12 Trueup Sett'!Z9 -> -88114.03742 | Z9: ='I25 Input Rev 12 Init'!C10 -> 84562.45 | AA9: 410937.3815
B10: RPPTOUON | C10: ='I2 Input 01 Trueup Sett '!Z10 -> 4646.106204 | D10: ='I3 Input Rev 01 Init'!C11 -> -161559.6 | E10: ='I4 Input 02 Trueup Sett'!Z10 -> 47214.75736 | F10: ='I5 Input Rev 02 Init'!C11 -> -5014.36 | G10: ='I6 Input 03 Trueup Sett'!Z10 -> 107415.0593 | H10: ='I7 Input Rev 03 Init'!C11 -> -4766 | I10: ='I8 Input 04 Trueup Sett'!Z10 -> 81720.57604 | J10: ='I9 Input Rev 04 Init'!C11 -> -112389.91 | K10: ='I10 Input 05 Trueup Sett'!Z10 -> 71861.96194 | L10: ='I11 Input Rev 05 Init'!C11 -> -76031.57 | M10: ='I12 Input 06 Trueup Sett'!Z10 -> 97540.83492 | N10: ='I13 Input Rev 06 Init'!C11 -> -65669.75 | O10: ='I14 Input 07 Trueup Sett'!Z10 -> 119713.5547 | P10: ='I15 Input Rev 07 Init'!C11 -> -85957.56 | Q10: ='I16 Input 08 Trueup Sett'!Z10 -> 181010.8144 | R10: ='I17 Input Rev 08 Init'!C11 -> -114023.57 | S10: ='I18 Input 09 Trueup Sett'!Z10 -> 93856.37988 | T10: ='I19 Input Rev 09 Init'!C11 -> -150318.32 | U10: ='I20 Input 10 Trueup Sett'!Z10 -> 116673.0218 | V10: ='I21 Input Rev 10 Init'!C11 -> -93694.78 | W10: ='I22 Input 11 Trueup Sett'!Z10 -> 126761.0097 | X10: ='I23 Input Rev 11 Init'!C11 -> -92235.09 | Y10: ='I24 Input 12 Trueup Sett'!Z10 -> 133207.4322 | Z10: ='I25 Input Rev 12 Init'!C11 -> -116249.48 | AA10: 103711.5185
B11: RPPULOMID
B12: RPPULOOFF
B13: RPPULOON
B14: RPPULOOVN
B15: Total RPP For Settlement | C15: =SUM(C6:C14) -> -73379.10657 | D15: =SUM(D6:D14) -> -91809.23 | E15: 105083.6504 | F15: 144073.01 | G15: -17127.98552 | H15: 107497.97 | I15: -122140.3367 | J15: 33933.89 | K15: -85232.19752 | L15: 137584.64 | M15: -58464.34337 | N15: 140123.59 | O15: 19665.31727 | P15: 114987.31 | Q15: 217167.1273 | R15: 25886.11 | S15: -66371.78023 | T15: -93608.41 | U15: 113479.3108 | V15: 71969.1 | W15: 106995.3955 | X15: -26496.38 | Y15: 83395.19331 | Z15: -55834.32 | AA15: 731377.5247
D16: =C15+D15 -> -165188.3366 | F16: =E15+F15 -> 249156.6604 | H16: =G15+H15 -> 90369.98448 | J16: =I15+J15 -> -88206.44667 | L16: =K15+L15 -> 52352.44248 | N16: =M15+N15 -> 81659.24663 | P16: =O15+P15 -> 134652.6273 | R16: =Q15+R15 -> 243053.2373 | T16: =S15+T15 -> -159980.1902 | V16: =U15+V15 -> 185448.4108 | X16: =W15+X15 -> 80499.01552 | Z16: =Y15+Z15 -> 27560.87331
B18: Total RPP kWh For Settlement Reported
B19: Tier 1 | C19: ='I2 Input 01 Trueup Sett '!V6 -> 287234.7008 | D19: =-'I3 Input Rev 01 Init'!B7 -> -1024798.21 | E19: ='I4 Input 02 Trueup Sett'!V6 -> 611511.7042 | F19: =-'I5 Input Rev 02 Init'!B7 -> -982958.17 | G19: ='I6 Input 03 Trueup Sett'!V6 -> 987837.337 | H19: =-'I7 Input Rev 03 Init'!B7 -> -1006180.59 | I19: ='I8 Input 04 Trueup Sett'!V6 -> 1008361.791 | J19: =-'I9 Input Rev 04 Init'!B7 -> -997216 | K19: ='I10 Input 05 Trueup Sett'!V6 -> 712493.501 | L19: =-'I11 Input Rev 05 Init'!B7 -> -911982.33 | M19: ='I12 Input 06 Trueup Sett'!V6 -> 772341.3073 | N19: =-'I13 Input Rev 06 Init'!B7 -> -750824.02 | O19: ='I14 Input 07 Trueup Sett'!V6 -> 872727.966 | P19: =-'I15 Input Rev 07 Init'!B7 -> -759325.83 | Q19: ='I16 Input 08 Trueup Sett'!V6 -> 945308.6416 | R19: =-'I17 Input Rev 08 Init'!B7 -> -817454.01 | S19: ='I18 Input 09 Trueup Sett'!V6 -> 839444.3559 | T19: =-'I19 Input Rev 09 Init'!B7 -> -803061.65 | U19: ='I20 Input 10 Trueup Sett'!V6 -> 872382.7992 | V19: =-'I21 Input Rev 10 Init'!B7 -> -770370.52 | W19: ='I22 Input 11 Trueup Sett'!V6 -> 1044014.317 | X19: =-'I23 Input Rev 11 Init'!B7 -> -644284.86 | Y19: ='I24 Input 12 Trueup Sett'!V6 -> 1111446.15 | Z19: =-'I25 Input Rev 12 Init'!B7 -> -894149.32 | AA19: =SUM(C19:Z19) -> -297500.9398
B20: Tier 2 | C20: ='I2 Input 01 Trueup Sett '!V7 -> 101642.8482 | D20: =-'I3 Input Rev 01 Init'!B8 -> -374190.3 | E20: ='I4 Input 02 Trueup Sett'!V7 -> 75873.56255 | F20: =-'I5 Input Rev 02 Init'!B8 -> -377365.39 | G20: ='I6 Input 03 Trueup Sett'!V7 -> 316643.3387 | H20: =-'I7 Input Rev 03 Init'!B8 -> -465307.96 | I20: ='I8 Input 04 Trueup Sett'!V7 -> 203238.7771 | J20: =-'I9 Input Rev 04 Init'!B8 -> -323490.41 | K20: ='I10 Input 05 Trueup Sett'!V7 -> 174930.5967 | L20: =-'I11 Input Rev 05 Init'!B8 -> -198163.61 | M20: ='I12 Input 06 Trueup Sett'!V7 -> 230732.5117 | N20: =-'I13 Input Rev 06 Init'!B8 -> -179567.55 | O20: ='I14 Input 07 Trueup Sett'!V7 -> 295142.3427 | P20: =-'I15 Input Rev 07 Init'!B8 -> -221740.42 | Q20: ='I16 Input 08 Trueup Sett'!V7 -> 437468.6685 | R20: =-'I17 Input Rev 08 Init'!B8 -> -275970.57 | S20: ='I18 Input 09 Trueup Sett'!V7 -> 240136.3326 | T20: =-'I19 Input Rev 09 Init'!B8 -> -387022.01 | U20: ='I20 Input 10 Trueup Sett'!V7 -> 236983.6146 | V20: =-'I21 Input Rev 10 Init'!B8 -> -230963.09 | W20: ='I22 Input 11 Trueup Sett'!V7 -> 256535.5367 | X20: =-'I23 Input Rev 11 Init'!B8 -> -205860.59 | Y20: ='I24 Input 12 Trueup Sett'!V7 -> 383245.7094 | Z20: =-'I25 Input Rev 12 Init'!B8 -> -228723.42 | AA20: =SUM(C20:Z20) -> -515791.4807
B21: TOU Off-peak | C21: ='I2 Input 01 Trueup Sett '!V8 -> 1594565.423 | D21: =-'I3 Input Rev 01 Init'!B9 -> -1742578.82 | E21: ='I4 Input 02 Trueup Sett'!V8 -> 1609226 | F21: =-'I5 Input Rev 02 Init'!B9 -> -1806687.78 | G21: ='I6 Input 03 Trueup Sett'!V8 -> 1688839.65 | H21: =-'I7 Input Rev 03 Init'!B9 -> -1855969 | I21: ='I8 Input 04 Trueup Sett'!V8 -> 1505311.781 | J21: =-'I9 Input Rev 04 Init'!B9 -> -1771648.04 | K21: ='I10 Input 05 Trueup Sett'!V8 -> 1276631.272 | L21: =-'I11 Input Rev 05 Init'!B9 -> -1460152.81 | M21: ='I12 Input 06 Trueup Sett'!V8 -> 1547979.064 | N21: =-'I13 Input Rev 06 Init'!B9 -> -1325922.32 | O21: ='I14 Input 07 Trueup Sett'!V8 -> 1597748.02 | P21: =-'I15 Input Rev 07 Init'!B9 -> -1537572.6 | Q21: ='I16 Input 08 Trueup Sett'!V8 -> 1897946.693 | R21: =-'I17 Input Rev 08 Init'!B9 -> -1632290.76 | S21: ='I18 Input 09 Trueup Sett'!V8 -> 1529929.168 | T21: =-'I19 Input Rev 09 Init'!B9 -> -1805350.34 | U21: ='I20 Input 10 Trueup Sett'!V8 -> 1460458.01 | V21: =-'I21 Input Rev 10 Init'!B9 -> -174506.69 | W21: ='I22 Input 11 Trueup Sett'!V8 -> 1598634.038 | X21: =-'I23 Input Rev 11 Init'!B9 -> -1292247.5 | Y21: ='I24 Input 12 Trueup Sett'!V8 -> 1798836.713 | Z21: =-'I25 Input Rev 12 Init'!B9 -> -1574720.73 | AA21: 1126458.441
B22: TOU Mid-peak | C22: ='I2 Input 01 Trueup Sett '!V9 -> 5626231.287 | D22: =-'I3 Input Rev 01 Init'!B10 -> -6116914.53 | E22: ='I4 Input 02 Trueup Sett'!V9 -> 5489791.82 | F22: =-'I5 Input Rev 02 Init'!B10 -> -6467400.38 | G22: ='I6 Input 03 Trueup Sett'!V9 -> 5621440.436 | H22: =-'I7 Input Rev 03 Init'!B10 -> -6413139.15 | I22: ='I8 Input 04 Trueup Sett'!V9 -> 4947288.152 | J22: =-'I9 Input Rev 04 Init'!B10 -> -5850432.53 | K22: ='I10 Input 05 Trueup Sett'!V9 -> 4211171.829 | L22: =-'I11 Input Rev 05 Init'!B10 -> -4807799.64 | M22: ='I12 Input 06 Trueup Sett'!V9 -> 4883390.047 | N22: =-'I13 Input Rev 06 Init'!B10 -> -4411461.24 | O22: ='I14 Input 07 Trueup Sett'!V9 -> 5298292.837 | P22: =-'I15 Input Rev 07 Init'!B10 -> -4824397.78 | Q22: ='I16 Input 08 Trueup Sett'!V9 -> 6112184.864 | R22: =-'I17 Input Rev 08 Init'!B10 -> -5410064.08 | S22: ='I18 Input 09 Trueup Sett'!V9 -> 4773116.763 | T22: =-'I19 Input Rev 09 Init'!B10 -> -5870594.77 | U22: ='I20 Input 10 Trueup Sett'!V9 -> 5010304.208 | V22: =-'I21 Input Rev 10 Init'!B10 -> -385881.94 | W22: ='I22 Input 11 Trueup Sett'!V9 -> 5017558.35 | X22: =-'I23 Input Rev 11 Init'!B10 -> -4542289.64 | Y22: ='I24 Input 12 Trueup Sett'!V9 -> 6376427.749 | Z22: =-'I25 Input Rev 12 Init'!B10 -> -4920280.29 | AA22: 3346542.372
B23: TOU On-peak | C23: ='I2 Input 01 Trueup Sett '!V10 -> 1632168.279 | D23: =-'I3 Input Rev 01 Init'!B11 -> -1783421.6 | E23: ='I4 Input 02 Trueup Sett'!V10 -> 1678713.308 | F23: =-'I5 Input Rev 02 Init'!B11 -> -1837587.94 | G23: ='I6 Input 03 Trueup Sett'!V10 -> 1743080.318 | H23: =-'I7 Input Rev 03 Init'!B11 -> -1941420 | I23: ='I8 Input 04 Trueup Sett'!V10 -> 1506005.828 | J23: =-'I9 Input Rev 04 Init'!B11 -> -1833678.23 | K23: ='I10 Input 05 Trueup Sett'!V10 -> 1308434.794 | L23: =-'I11 Input Rev 05 Init'!B11 -> -1450703.4 | M23: ='I12 Input 06 Trueup Sett'!V10 -> 1683586.188 | N23: =-'I13 Input Rev 06 Init'!B11 -> -1348164.75 | O23: ='I14 Input 07 Trueup Sett'!V10 -> 1801097.745 | P23: =-'I15 Input Rev 07 Init'!B11 -> -1668483.1 | Q23: ='I16 Input 08 Trueup Sett'!V10 -> 2194514.531 | R23: =-'I17 Input Rev 08 Init'!B11 -> -1841289.08 | S23: ='I18 Input 09 Trueup Sett'!V10 -> 1653686.479 | T23: =-'I19 Input Rev 09 Init'!B11 -> -2088135.87 | U23: ='I20 Input 10 Trueup Sett'!V10 -> 1480582.916 | V23: =-'I21 Input Rev 10 Init'!B11 -> -1681771.41 | W23: ='I22 Input 11 Trueup Sett'!V10 -> 1668888.745 | X23: =-'I23 Input Rev 11 Init'!B11 -> -1323196.78 | Y23: ='I24 Input 12 Trueup Sett'!V10 -> 1824183.897 | Z23: =-'I25 Input Rev 12 Init'!B11 -> -1641347.15 | AA23: -264256.2825
W24: ='I22 Input 11 Trueup Sett'!V11 -> 0 | Y24: ='I24 Input 12 Trueup Sett'!V11 -> 0 | AA24: 0
W25: ='I22 Input 11 Trueup Sett'!V12 -> 0 | Y25: ='I24 Input 12 Trueup Sett'!V12 -> 0 | AA25: 0
W26: ='I22 Input 11 Trueup Sett'!V13 -> 0 | Y26: ='I24 Input 12 Trueup Sett'!V13 -> 0 | AA26: 0
W27: ='I22 Input 11 Trueup Sett'!V14 -> 0 | Y27: ='I24 Input 12 Trueup Sett'!V14 -> 0 | AA27: 0
B28: Total RPP For Settlement | C28: =SUM(C19:C27) -> 9241842.538 | D28: -11041903.46 | E28: 9465116.395 | F28: -11471999.66 | G28: 10357841.08 | H28: -11682016.7 | I28: 9170206.328 | J28: -10776465.21 | K28: 7683661.993 | L28: -8828801.79 | M28: 9118029.117 | N28: -8015939.88 | O28: 9865008.911 | P28: -9011519.73 | Q28: 11587423.4 | R28: -9977068.5 | S28: 9036313.098 | T28: -10954164.64 | U28: 9060711.547 | V28: -3243493.65 | W28: =SUM(W19:W27) -> 9585630.986 | X28: =SUM(X19:X27) -> -8007879.37 | Y28: =SUM(Y19:Y27) -> 11494140.22 | Z28: =SUM(Z19:Z27) -> -9259220.91 | AA28: =SUM(AA19:AA27) -> 3395452.11
D29: =C28+D28 -> -1800060.922 | F29: =E28+F28 -> -2006883.265 | H29: =G28+H28 -> -1324175.62 | J29: =I28+J28 -> -1606258.882 | L29: =K28+L28 -> -1145139.797 | N29: =M28+N28 -> 1102089.237 | P29: =O28+P28 -> 853489.1812 | R29: =Q28+R28 -> 1610354.898 | T29: =S28+T28 -> -1917851.542 | V29: =U28+V28 -> 5817217.897 | X29: =W28+X28 -> 1577751.616 | Z29: =Y28+Z28 -> 2234919.308

Sheet I1a ER Summary
B4: kWh Volumes | C4: $ RPP Revenue | D4: $ RPP Energy | E4: $ GA | F4: $ RPP Settlement | G4: Rev RPP Settlement | H4: Net RPP Sett | J4: IESO Energy kWh | K4: IESO Energy Cost | L4: FIT/mFIT kWh | M4: FIT/mFIT Cost | N4: Total Energy kWh | O4: Total Energy Cost | Q4: CT 148 | S4: Wholesale kWh | T4: Retail kWh | U4: Diff kWh | V4: Diff % | X4: RPP kWh | Y4: COP kWh | Z4: Diff kWh | AA4: Diff % | AC4: RPP/WHSL | AE4: Energy Purchases | AF4: Energy Revenue | AG4: RPP Revenue | AH4: Non RPP Revenue | AJ4: RPP kWh | AK4: Non RPP kWh | AL4: Total kWh | AN4: Class A kWh | AP4: Non RPP Class B
A5: =Admin!B8 -> 202101 | B5: ='I2 Input 01 Trueup Sett '!V15 -> 9241842.538 | C5: ='I2 Input 01 Trueup Sett '!W15 -> 870246.0484 | D5: ='I2 Input 01 Trueup Sett '!X15 -> 176552.2067 | E5: ='I2 Input 01 Trueup Sett '!Y15 -> 767072.9483 | F5: ='I2 Input 01 Trueup Sett '!Z15 -> -73379.10657 | G5: ='I3 Input Rev 01 Init'!C12 -> -91809.23 | H5: =F5+G5 -> -165188.3366 | J5: ='I2 Input 01 Trueup Sett '!C10 -> 22772296.87 | K5: ='I2 Input 01 Trueup Sett '!D10 -> 397134.38 | L5: =N5-J5 -> 213283.15 | M5: =O5-K5 -> 4214.89 | N5: ='I2 Input 01 Trueup Sett '!C11 -> 22985580.02 | O5: ='I2 Input 01 Trueup Sett '!D11 -> 401349.27 | Q5: ='I2 Input 01 Trueup Sett '!B65 -> 1438730.59 | S5: ='I2 Input 01 Trueup Sett '!$C$11 -> 22985580.02 | T5: ='I2 Input 01 Trueup Sett '!$C$30 -> 25478938.36 | U5: =S5-T5 -> -2493358.345 | V5: =T5/S5-1 -> 0.1084748935 | X5: =SUM('I2 Input 01 Trueup Sett '!C20:C25) -> 10570781.29 | Y5: ='I2 Input 01 Trueup Sett '!C41 -> 11554900.15 | Z5: =X5-Y5 -> -984118.8579 | AA5: =Y5/X5-1 -> 0.09309802469 | AC5: =X5/S5 -> 0.4598875157 | AE5: ='I2 Input 01 Trueup Sett '!D11 -> 401349.27 | AF5: ='I2 Input 01 Trueup Sett '!D30 -> 1254334.173 | AG5: =C5 -> 870246.0484 | AH5: =AF5-AG5 -> 384088.1249 | AJ5: =X5 -> 10570781.29 | AK5: =T5-X5 -> 14908157.07 | AL5: =SUM(AJ5:AK5) -> 25478938.36 | AN5: ='I2 Input 01 Trueup Sett '!B57 -> 5646011.04 | AP5: =AK5-AN5 -> 9262146.032
A6: =A5+1 -> 202102 | B6: ='I4 Input 02 Trueup Sett'!V15 -> 9465116.395 | C6: ='I4 Input 02 Trueup Sett'!W15 -> 871262.835 | D6: ='I4 Input 02 Trueup Sett'!X15 -> 289137.3219 | E6: ='I4 Input 02 Trueup Sett'!Y15 -> 477041.8627 | F6: ='I4 Input 02 Trueup Sett'!Z15 -> 105083.6504 | G6: ='I5 Input Rev 02 Init'!C12 -> 144073.01 | H6: =F6+G6 -> 249156.6604 | J6: ='I4 Input 02 Trueup Sett'!C10 -> 21656645.58 | K6: ='I4 Input 02 Trueup Sett'!D10 -> 728731.31 | L6: =N6-J6 -> 312080.2 | M6: =O6-K6 -> 9852.6 | N6: ='I4 Input 02 Trueup Sett'!C11 -> 21968725.78 | O6: ='I4 Input 02 Trueup Sett'!D11 -> 738583.91 | Q6: ='I4 Input 02 Trueup Sett'!B77 -> 818026.98 | S6: ='I4 Input 02 Trueup Sett'!C11 -> 21968725.78 | T6: ='I4 Input 02 Trueup Sett'!C30 -> 23085737.51 | U6: =S6-T6 -> -1117011.726 | V6: =T6/S6-1 -> 0.05084554001 | X6: =SUM('I4 Input 02 Trueup Sett'!C20:C25) -> 10116763.55 | Y6: ='I4 Input 02 Trueup Sett'!C44 -> 10741628.34 | Z6: =X6-Y6 -> -624864.7883 | AA6: =Y6/X6-1 -> 0.06176528543 | AC6: =X6/S6 -> 0.4605075256 | AE6: ='I4 Input 02 Trueup Sett'!D11 -> 738583.91 | AF6: ='I4 Input 02 Trueup Sett'!D30 -> 1353902.479 | AG6: 871262.835 | AH6: =AF6-AG6 -> 482639.6442 | AJ6: =X6 -> 10116763.55 | AK6: =T6-X6 -> 12968973.96 | AL6: =SUM(AJ6:AK6) -> 23085737.51 | AN6: ='I4 Input 02 Trueup Sett'!B64 -> 5744230.8 | AP6: =AK6-AN6 -> 7224743.155
A7: =A6+1 -> 202103 | B7: ='I6 Input 03 Trueup Sett'!V15 -> 10357841.08 | C7: ='I6 Input 03 Trueup Sett'!W15 -> 1109698.563 | D7: ='I6 Input 03 Trueup Sett'!X15 -> 186334.5862 | E7: ='I6 Input 03 Trueup Sett'!Y15 -> 940491.9622 | F7: ='I6 Input 03 Trueup Sett'!Z15 -> -17127.98552 | G7: ='I7 Input Rev 03 Init'!C12 -> 107497.97 | H7: =F7+G7 -> 90369.98448 | J7: ='I6 Input 03 Trueup Sett'!C10 -> 21559847.19 | K7: ='I6 Input 03 Trueup Sett'!D10 -> 376883.3 | L7: 670142.92 | M7: 9809.5 | N7: ='I6 Input 03 Trueup Sett'!C11 -> 22229990.11 | O7: ='I6 Input 03 Trueup Sett'!D11 -> 386692.8 | Q7: ='I6 Input 03 Trueup Sett'!B76 -> 1456589.41 | S7: ='I6 Input 03 Trueup Sett'!C11 -> 22229990.11 | T7: ='I6 Input 03 Trueup Sett'!C30 -> 22064670.3 | U7: 165319.8126 | V7: -0.007436792 | X7: =SUM('I6 Input 03 Trueup Sett'!C20:C25) -> 10251099.41 | Y7: ='I6 Input 03 Trueup Sett'!C44 -> 10279303.75 | Z7: -28204.34637 | AA7: 0.00275134844 | AC7: 0.4611382802 | AE7: ='I6 Input 03 Trueup Sett'!D11 -> 386692.8 | AF7: ='I6 Input 03 Trueup Sett'!D30 -> 1295474.687 | AG7: 1109698.563 | AH7: 185776.1237 | AJ7: 10251099.41 | AK7: 11813570.89 | AL7: 22064670.3 | AN7: ='I6 Input 03 Trueup Sett'!B64 -> 6187929.82 | AP7: 5625641.07
A8: 202104 | B8: ='I8 Input 04 Trueup Sett'!V15 -> 9170206.328 | C8: ='I8 Input 04 Trueup Sett'!W15 -> 986152.1537 | D8: ='I8 Input 04 Trueup Sett'!X15 -> 105988.9107 | E8: ='I8 Input 04 Trueup Sett'!Y15 -> 1002303.58 | F8: ='I8 Input 04 Trueup Sett'!Z15 -> -122140.3367 | G8: ='I9 Input Rev 04 Init'!C12 -> 33933.89 | H8: -88206.44667 | J8: ='I8 Input 04 Trueup Sett'!C10 -> 18707176.71 | K8: ='I8 Input 04 Trueup Sett'!D10 -> 168858.13 | L8: 671993.45 | M8: 4713.92 | N8: ='I8 Input 04 Trueup Sett'!C11 -> 19379170.16 | O8: ='I8 Input 04 Trueup Sett'!D11 -> 173572.05 | Q8: ='I8 Input 04 Trueup Sett'!B76 -> 1491779.08 | S8: ='I8 Input 04 Trueup Sett'!C11 -> 19379170.16 | T8: ='I8 Input 04 Trueup Sett'!C30 -> 18774391.41 | U8: 604778.7546 | V8: -0.03120767038 | X8: =SUM('I8 Input 04 Trueup Sett'!C20:C25) -> 8763706.637 | Y8: ='I8 Input 04 Trueup Sett'!C44 -> 9455631.83 | Z8: -691925.1931 | AA8: 0.07895348644 | AC8: 0.4522230087 | AE8: ='I8 Input 04 Trueup Sett'!D11 -> 173572.05 | AF8: ='I8 Input 04 Trueup Sett'!D30 -> 1034519.189 | AG8: 986152.1537 | AH8: 48367.03491 | AJ8: 8763706.637 | AK8: 10010684.77 | AL8: 18774391.41 | AN8: ='I8 Input 04 Trueup Sett'!B64 -> 5735996.32 | AP8: 4274688.449
A9: 202105 | B9: ='I10 Input 05 Trueup Sett'!V15 -> 7683661.993 | C9: ='I10 Input 05 Trueup Sett'!W15 -> 806273.8941 | D9: ='I10 Input 05 Trueup Sett'!X15 -> 119298.0466 | E9: ='I10 Input 05 Trueup Sett'!Y15 -> 772208.045 | F9: ='I10 Input 05 Trueup Sett'!Z15 -> -85232.19752 | G9: ='I11 Input Rev 05 Init'!C12 -> 137584.64 | H9: 52352.44248 | J9: ='I10 Input 05 Trueup Sett'!C10 -> 18402400.31 | K9: ='I10 Input 05 Trueup Sett'!D10 -> 269227.1 | L9: 897635.29 | M9: 13755.51 | N9: ='I10 Input 05 Trueup Sett'!C11 -> 19300035.6 | O9: ='I10 Input 05 Trueup Sett'!D11 -> 282982.61 | Q9: ='I10 Input 05 Trueup Sett'!B76 -> 1356317.21 | S9: ='I10 Input 05 Trueup Sett'!C11 -> 19300035.6 | T9: ='I10 Input 05 Trueup Sett'!C30 -> 20488362.36 | U9: -1188326.761 | V9: 0.06157122119 | X9: =SUM('I10 Input 05 Trueup Sett'!C20:C25) -> 8360478.103 | Y9: ='I10 Input 05 Trueup Sett'!C44 -> 15000013.63 | Z9: -6639535.525 | AA9: 0.7941573967 | AC9: 0.4331845949 | AE9: ='I10 Input 05 Trueup Sett'!D11 -> 282982.61 | AF9: ='I10 Input 05 Trueup Sett'!D30 -> 1056513.206 | AG9: 806273.8941 | AH9: 250239.3121 | AJ9: 8360478.103 | AK9: 12127884.26 | AL9: 20488362.36 | AN9: ='I10 Input 05 Trueup Sett'!B64 -> 5809367.99 | AP9: 6318516.268
A10: 202106 | B10: ='I12 Input 06 Trueup Sett'!V15 -> 9118029.117 | C10: ='I12 Input 06 Trueup Sett'!W15 -> 963795.227 | D10: ='I12 Input 06 Trueup Sett'!X15 -> 235373.6471 | E10: ='I12 Input 06 Trueup Sett'!Y15 -> 786885.9232 | F10: ='I12 Input 06 Trueup Sett'!Z15 -> -58464.34337 | G10: ='I13 Input Rev 06 Init'!C12 -> 140123.59 | H10: 81659.24663 | J10: ='I12 Input 06 Trueup Sett'!C10 -> 19575898.09 | K10: ='I12 Input 06 Trueup Sett'!D10 -> 523303.7 | L10: 888588.44 | M10: 28070.47 | N10: ='I12 Input 06 Trueup Sett'!C11 -> 20464486.53 | O10: ='I12 Input 06 Trueup Sett'!D11 -> 551374.17 | Q10: ='I12 Input 06 Trueup Sett'!B76 -> 1270505.22 | S10: ='I12 Input 06 Trueup Sett'!C11 -> 20464486.53 | T10: ='I12 Input 06 Trueup Sett'!C30 -> 20139336.82 | U10: 325149.7123 | V10: -0.01588848622 | X10: =SUM('I12 Input 06 Trueup Sett'!C20:C25) -> 8916599.361 | Y10: ='I12 Input 06 Trueup Sett'!C44 -> 9500570.2 | Z10: -583970.8389 | AA10: 0.06549255106 | AC10: 0.4357108764 | AE10: ='I12 Input 06 Trueup Sett'!D11 -> 551374.17 | AF10: ='I12 Input 06 Trueup Sett'!D30 -> 1228865.079 | AG10: 963795.227 | AH10: 265069.8519 | AJ10: 8916599.361 | AK10: 11222737.46 | AL10: 20139336.82 | AN10: ='I12 Input 06 Trueup Sett'!B64 -> 5746082.46 | AP10: 5476654.997
A11: 202107 | B11: ='I14 Input 07 Trueup Sett'!V15 -> 9865008.911 | C11: ='I14 Input 07 Trueup Sett'!W15 -> 1040662.216 | D11: ='I14 Input 07 Trueup Sett'!X15 -> 294932.2296 | E11: ='I14 Input 07 Trueup Sett'!Y15 -> 726064.669 | F11: ='I14 Input 07 Trueup Sett'!Z15 -> 19665.31727 | G11: ='I15 Input Rev 07 Init'!C12 -> 114987.31 | H11: 134652.6273 | J11: ='I14 Input 07 Trueup Sett'!C10 -> 20716924.68 | K11: ='I14 Input 07 Trueup Sett'!D10 -> 574687.63 | L11: 785667.5 | M11: 23669.34 | N11: ='I14 Input 07 Trueup Sett'!C11 -> 21502592.18 | O11: ='I14 Input 07 Trueup Sett'!D11 -> 598356.97 | Q11: ='I14 Input 07 Trueup Sett'!B76 -> 1194083.07 | S11: ='I14 Input 07 Trueup Sett'!C11 -> 21502592.18 | T11: ='I14 Input 07 Trueup Sett'!C30 -> 22023959.21 | U11: -521367.0277 | V11: 0.02424670585 | X11: =SUM('I14 Input 07 Trueup Sett'!C20:C25) -> 10182024.82 | Y11: ='I14 Input 07 Trueup Sett'!C44 -> 10180166.79 | Z11: 1858.028036 | AA11: -0.000182481193 | AC11: 0.4735254584 | AE11: ='I14 Input 07 Trueup Sett'!D11 -> 598356.97 | AF11: ='I14 Input 07 Trueup Sett'!D30 -> 1404225.161 | AG11: 1040662.216 | AH11: 363562.9452 | AJ11: 10182024.82 | AK11: 11841934.39 | AL11: 22023959.21 | AN11: ='I14 Input 07 Trueup Sett'!B64 -> 5278515.6 | AP11: 6563418.788
A12: 202108 | B12: ='I16 Input 08 Trueup Sett'!V15 -> 11587423.4 | C12: ='I16 Input 08 Trueup Sett'!W15 -> 1231684.664 | D12: ='I16 Input 08 Trueup Sett'!X15 -> 481496.0719 | E12: ='I16 Input 08 Trueup Sett'!Y15 -> 533021.4652 | F12: ='I16 Input 08 Trueup Sett'!Z15 -> 217167.1273 | G12: ='I17 Input Rev 08 Init'!C12 -> 25886.11 | H12: 243053.2373 | J12: ='I16 Input 08 Trueup Sett'!C10 -> 22975629.87 | K12: ='I16 Input 08 Trueup Sett'!D10 -> 1007822.39 | L12: 817962.27 | M12: 40824.42 | N12: ='I16 Input 08 Trueup Sett'!C11 -> 23793592.14 | O12: ='I16 Input 08 Trueup Sett'!D11 -> 1048646.81 | Q12: ='I16 Input 08 Trueup Sett'!B76 -> 864253.49 | S12: ='I16 Input 08 Trueup Sett'!C11 -> 23793592.14 | T12: ='I16 Input 08 Trueup Sett'!C30 -> 23420872.42 | U12: 372719.7248 | V12: -0.01566471017 | X12: =SUM('I16 Input 08 Trueup Sett'!C20:C25) -> 11357576.35 | Y12: ='I16 Input 08 Trueup Sett'!C44 -> 11359304.24 | Z12: -1727.89018 | AA12: 0.0001521354668 | AC12: 0.4773376076 | AE12: ='I16 Input 08 Trueup Sett'!D11 -> 1048646.81 | AF12: ='I16 Input 08 Trueup Sett'!D30 -> 1722216.24 | AG12: 1231684.664 | AH12: 490531.5759 | AJ12: 11357576.35 | AK12: 12063296.07 | AL12: 23420872.42 | AN12: ='I16 Input 08 Trueup Sett'!B64 -> 5003438.93 | AP12: 7059857.136
A13: 202109 | B13: ='I18 Input 09 Trueup Sett'!V15 -> 9036313.098 | C13: ='I18 Input 09 Trueup Sett'!W15 -> 955285.4048 | D13: ='I18 Input 09 Trueup Sett'!X15 -> 337608.268 | E13: ='I18 Input 09 Trueup Sett'!Y15 -> 684048.917 | F13: ='I18 Input 09 Trueup Sett'!Z15 -> -66371.78023 | G13: ='I19 Input Rev 09 Init'!C12 -> -93608.41 | H13: -159980.1902 | J13: ='I18 Input 09 Trueup Sett'!C10 -> 18789624.59 | K13: ='I18 Input 09 Trueup Sett'!D10 -> 575531.83 | L13: 651978.35 | M13: 23615.08 | N13: ='I18 Input 09 Trueup Sett'!C11 -> 19441602.94 | O13: ='I18 Input 09 Trueup Sett'!D11 -> 599146.91 | Q13: ='I18 Input 09 Trueup Sett'!B76 -> 1091503.51 | S13: ='I18 Input 09 Trueup Sett'!C11 -> 19441602.94 | T13: ='I18 Input 09 Trueup Sett'!C30 -> 19160671.71 | U13: 280931.2318 | V13: -0.01445000357 | X13: =SUM('I18 Input 09 Trueup Sett'!C20:C25) -> 8860377.18 | Y13: ='I18 Input 09 Trueup Sett'!C44 -> 8865500.759 | Z13: -5123.579314 | AA13: 0.0005782574726 | AC13: 0.4557431405 | AE13: ='I18 Input 09 Trueup Sett'!D11 -> 599146.91 | AF13: ='I18 Input 09 Trueup Sett'!D30 -> 1257970.402 | AG13: 955285.4048 | AH13: 302684.9969 | AJ13: 8860377.18 | AK13: 10300294.53 | AL13: 19160671.71 | AN13: ='I18 Input 09 Trueup Sett'!B64 -> 5012584.7 | AP13: 5287709.829
A14: 202110 | B14: ='I20 Input 10 Trueup Sett'!V15 -> 9060711.547 | C14: ='I20 Input 10 Trueup Sett'!W15 -> 940309.4696 | D14: ='I20 Input 10 Trueup Sett'!X15 -> 352048.8945 | E14: ='I20 Input 10 Trueup Sett'!Y15 -> 474781.2643 | F14: ='I20 Input 10 Trueup Sett'!Z15 -> 113479.3108 | G14: ='I21 Input Rev 10 Init'!C12 -> 71969.1 | H14: 185448.4108 | J14: ='I20 Input 10 Trueup Sett'!C10 -> 19267783.16 | K14: ='I20 Input 10 Trueup Sett'!D10 -> 767907.3 | L14: 382425.04 | M14: 17872.51 | N14: ='I20 Input 10 Trueup Sett'!C11 -> 19650208.2 | O14: ='I20 Input 10 Trueup Sett'!D11 -> 785779.81 | Q14: ='I20 Input 10 Trueup Sett'!B76 -> 757572.17 | S14: ='I20 Input 10 Trueup Sett'!C11 -> 19650208.2 | T14: ='I20 Input 10 Trueup Sett'!C30 -> 18795090.62 | U14: 855117.5838 | V14: -0.04351697321 | X14: =SUM('I20 Input 10 Trueup Sett'!C20:C25) -> 8524467.853 | Y14: ='I20 Input 10 Trueup Sett'!C44 -> 8514764.244 | Z14: 9703.608963 | AA14: -0.001138324307 | AC14: 0.4338105615 | AE14: ='I20 Input 10 Trueup Sett'!D11 -> 785779.81 | AF14: ='I20 Input 10 Trueup Sett'!D30 -> 1290275.486 | AG14: 940309.4696 | AH14: 349966.0159 | AJ14: 8524467.853 | AK14: 10270622.76 | AL14: 18795090.62 | AN14: ='I20 Input 10 Trueup Sett'!B64 -> 5201602.38 | AP14: 5069020.383
A15: 202111 | B15: ='I22 Input 11 Trueup Sett'!V15 -> 9585630.986 | C15: ='I22 Input 11 Trueup Sett'!W15 -> 1007589.492 | D15: ='I22 Input 11 Trueup Sett'!X15 -> 381052.8901 | E15: ='I22 Input 11 Trueup Sett'!Y15 -> 519541.2068 | F15: ='I22 Input 11 Trueup Sett'!Z15 -> 106995.3955 | G15: ='I23 Input Rev 11 Init'!C12 -> -26496.38 | H15: 80499.01552 | J15: ='I22 Input 11 Trueup Sett'!C10 -> 20301812.34 | K15: ='I22 Input 11 Trueup Sett'!D10 -> 822926.23 | L15: 315245.47 | M15: 11514.87 | N15: ='I22 Input 11 Trueup Sett'!C11 -> 20617057.81 | O15: ='I22 Input 11 Trueup Sett'!D11 -> 834441.1 | Q15: ='I22 Input 11 Trueup Sett'!B76 -> 844277.98 | S15: ='I22 Input 11 Trueup Sett'!C11 -> 20617057.81 | T15: ='I22 Input 11 Trueup Sett'!C31 -> 20507843.14 | U15: 109214.6722 | V15: -0.005297296697 | X15: =SUM('I22 Input 11 Trueup Sett'!C20:C25) -> 7861259.934 | Y15: ='I22 Input 11 Trueup Sett'!C44 -> 8224463.165 | Z15: -363203.2311 | AA15: 0.04620165649 | AC15: 0.3812988258 | AE15: ='I22 Input 11 Trueup Sett'!D11 -> 834441.1 | AF15: ='I22 Input 11 Trueup Sett'!D31 -> 1437303.216 | AG15: 1007589.492 | AH15: 429713.7239 | AJ15: 7861259.934 | AK15: 12646583.2 | AL15: 20507843.14 | AN15: ='I22 Input 11 Trueup Sett'!B64 -> 5033271.73 | AP15: 7613311.474
A16: 202112 | B16: ='I24 Input 12 Trueup Sett'!V15 -> 11494140.22 | C16: ='I24 Input 12 Trueup Sett'!W15 -> 1185780.975 | D16: ='I24 Input 12 Trueup Sett'!X15 -> 416185.6348 | E16: ='I24 Input 12 Trueup Sett'!Y15 -> 686200.1469 | F16: ='I24 Input 12 Trueup Sett'!Z15 -> 83395.19331 | G16: ='I25 Input Rev 12 Init'!C12 -> -55834.32 | H16: 27560.87331 | J16: ='I24 Input 12 Trueup Sett'!C10 -> 21818493.95 | K16: ='I24 Input 12 Trueup Sett'!D10 -> 779617.53 | L16: 152399.19 | M16: 5029.51 | N16: ='I24 Input 12 Trueup Sett'!C11 -> 21970893.14 | O16: ='I24 Input 12 Trueup Sett'!D11 -> 784647.04 | Q16: ='I24 Input 12 Trueup Sett'!B76 -> 1039784.01 | S16: ='I24 Input 12 Trueup Sett'!C11 -> 21970893.14 | T16: ='I24 Input 12 Trueup Sett'!C31 -> 21497882.66 | U16: 473010.4818 | V16: -0.0215289601 | X16: =SUM('I24 Input 12 Trueup Sett'!C20:C25) -> 9407442.242 | Y16: ='I24 Input 12 Trueup Sett'!C44 -> 9795803.017 | Z16: -388360.7754 | AA16: 0.04128229176 | AC16: 0.4281775066 | AE16: ='I24 Input 12 Trueup Sett'!D11 -> 784647.04 | AF16: ='I24 Input 12 Trueup Sett'!D31 -> 1525878.042 | AG16: 1185780.975 | AH16: 340097.0672 | AJ16: 9407442.242 | AK16: 12090440.42 | AL16: 21497882.66 | AN16: ='I24 Input 12 Trueup Sett'!B64 -> 4547101.21 | AP16: 7543339.206
B17: =SUM(B5:B16) -> 115665925.6 | C17: 11968740.94 | D17: 3376008.708 | E17: 8369661.99 | F17: =SUM(F5:F16) -> 223070.2447 | G17: =SUM(G5:G16) -> 508307.28 | H17: =SUM(H5:H16) -> 731377.5247 | J17: 246544533.3 | K17: 6992630.83 | L17: 6759401.27 | M17: 192942.62 | N17: 253303934.6 | O17: 7185573.45 | Q17: 13623422.72 | S17: =SUM(S5:S16) -> 253303934.6 | T17: 255437756.5 | U17: -2133821.885 | V17: =T17/S17-1 -> 0.008423958705 | X17: =SUM(X5:X16) -> 113172576.7 | Y17: 123472050.1 | Z17: -10299473.39 | AA17: =Y17/X17-1 -> 0.0910067941 | AC17: 0.4467857039 | AE17: =SUM(AE5:AE16) -> 7185573.45 | AF17: 15861477.36 | AG17: 11968740.94 | AH17: 3892736.417 | AJ17: =SUM(AJ5:AJ16) -> 113172576.7 | AK17: 142265179.8 | AL17: 255437756.5 | AN17: 64946132.98 | AP17: =SUM(AP5:AP16) -> 77319046.79
A20: 4705 GA | B20: ='Rec1 1588 Commodity'!F23 -> -485562.7897
A22: 4707 GA | B22: ='Rec2 1589 Class B'!J23 -> 485562.7897
A24: Should Be $0
A26: (Owed To)/Owed From IESO | B26: =-H17 -> -731377.5247
A28: (Owed To)/Owed From Power Consumer | B28: ='Rec1 1588 Commodity'!L20 -> -83171.67475
A30: (Owed To)/Owed From Class B | B30: ='Rec2 1589 Class B'!K20 -> -41801.97981
A32: (Owed To)/Owed From | B32: =SUM(B26:B31) -> -856351.1793
A35: Unresolved Difference as % of Expected GA Payments to IESO | B35: ='Rev3 GA Analysis '!D67 -> 0.05897917071
A37: Account 1588 as % of Account 4705 | B37: ='Rev3 GA Analysis '!G99 -> -0.005271267803

Sheet I1b RPP Rates
A3: RPP Rates | P3: RPP Rates Split
B4: =Admin!B8 -> 202101 | C4: =B4+1 -> 202102 | D4: =C4+1 -> 202103 | E4: 202104 | F4: 202105 | G4: 202106 | H4: 202107 | I4: 202108 | J4: 202109 | K4: 202110 | L4: 202111 | M4: 202112 | Q4: =B4 -> 202101 | R4: =Q4+1 -> 202102 | S4: =R4+1 -> 202103 | T4: =S4+1 -> 202104 | U4: =T4+1 -> 202105 | V4: =U4+1 -> 202106 | W4: =V4+1 -> 202107 | X4: =W4+1 -> 202108 | Y4: =X4+1 -> 202109 | Z4: =Y4+1 -> 202110 | AA4: =Z4+1 -> 202111 | AB4: =AA4+1 -> 202112
A5: RPPT1 | B5: ='I2 Input 01 Trueup Sett '!Q6 -> 0.124250235 | C5: ='I4 Input 02 Trueup Sett'!Q6 -> 0.1010048801 | D5: ='I6 Input 03 Trueup Sett'!Q6 -> 0.1010002221 | E5: ='I8 Input 04 Trueup Sett'!Q6 -> 0.1008690523 | F5: ='I10 Input 05 Trueup Sett'!Q6 -> 0.09819269812 | G5: ='I12 Input 06 Trueup Sett'!Q6 -> 0.09800001554 | H5: ='I14 Input 07 Trueup Sett'!Q6 -> 0.09800014409 | I5: ='I16 Input 08 Trueup Sett'!Q6 -> 0.09800007745 | J5: ='I18 Input 09 Trueup Sett'!Q6 -> 0.09799907428 | K5: ='I20 Input 10 Trueup Sett'!Q6 -> 0.09799992709 | L5: ='I22 Input 11 Trueup Sett'!Q6 -> 0.09800033644 | M5: ='I24 Input 12 Trueup Sett'!Q6 -> 0.09775829912 | P5: RPPT1 | Q5: ='I2 Input 01 Trueup Sett '!L18 -> 0.03107980899 | R5: ='I4 Input 02 Trueup Sett'!L18 -> 0.06460688687 | S5: ='I6 Input 03 Trueup Sett'!L18 -> 0.09537096865 | T5: ='I8 Input 04 Trueup Sett'!L18 -> 0.1099606437 | U5: ='I10 Input 05 Trueup Sett'!L18 -> 0.09272837635 | V5: ='I12 Input 06 Trueup Sett'!L18 -> 0.08470485204 | W5: ='I14 Input 07 Trueup Sett'!L18 -> 0.08846702257 | X5: ='I16 Input 08 Trueup Sett'!L18 -> 0.0815805731 | Y5: ='I18 Input 09 Trueup Sett'!L18 -> 0.09289677625 | Z5: ='I20 Input 10 Trueup Sett'!L18 -> 0.09628193047 | AA5: ='I22 Input 11 Trueup Sett'!L18 -> 0.1089145115 | AB5: ='I24 Input 12 Trueup Sett'!L18 -> 0.09669676275
A6: RPPT2 | B6: ='I2 Input 01 Trueup Sett '!Q7 -> 0.1444652752 | C6: ='I4 Input 02 Trueup Sett'!Q7 -> 0.1179961446 | D6: ='I6 Input 03 Trueup Sett'!Q7 -> 0.1179990702 | E6: ='I8 Input 04 Trueup Sett'!Q7 -> 0.1177734898 | F6: ='I10 Input 05 Trueup Sett'!Q7 -> 0.1151398268 | G6: ='I12 Input 06 Trueup Sett'!Q7 -> 0.1149997456 | H6: ='I14 Input 07 Trueup Sett'!Q7 -> 0.11500092 | I6: ='I16 Input 08 Trueup Sett'!Q7 -> 0.1150005703 | J6: ='I18 Input 09 Trueup Sett'!Q7 -> 0.1150001097 | K6: ='I20 Input 10 Trueup Sett'!Q7 -> 0.115000575 | L6: ='I22 Input 11 Trueup Sett'!Q7 -> 0.1149999536 | M6: ='I24 Input 12 Trueup Sett'!Q7 -> 0.1142779231 | P6: RPPT2 | Q6: ='I2 Input 01 Trueup Sett '!L19 -> 0.01099811512 | R6: ='I4 Input 02 Trueup Sett'!L19 -> 0.008016125674 | S6: ='I6 Input 03 Trueup Sett'!L19 -> 0.0305703994 | T6: ='I8 Input 04 Trueup Sett'!L19 -> 0.02216294484 | U6: ='I10 Input 05 Trueup Sett'!L19 -> 0.02276656584 | V6: ='I12 Input 06 Trueup Sett'!L19 -> 0.02530508608 | W6: ='I14 Input 07 Trueup Sett'!L19 -> 0.02991810199 | X6: ='I16 Input 08 Trueup Sett'!L19 -> 0.03775374848 | Y6: ='I18 Input 09 Trueup Sett'!L19 -> 0.02657459187 | Z6: ='I20 Input 10 Trueup Sett'!L19 -> 0.02615507771 | AA6: ='I22 Input 11 Trueup Sett'!L19 -> 0.02676250913 | AB6: ='I24 Input 12 Trueup Sett'!L19 -> 0.03334270351
A7: RPPTOUMID | B7: ='I2 Input 01 Trueup Sett '!Q8 -> 0.09485792662 | C7: ='I4 Input 02 Trueup Sett'!Q8 -> 0.09383199214 | D7: ='I6 Input 03 Trueup Sett'!Q8 -> 0.1170198297 | E7: ='I8 Input 04 Trueup Sett'!Q8 -> 0.1182974784 | F7: ='I10 Input 05 Trueup Sett'!Q8 -> 0.1140315191 | G7: ='I12 Input 06 Trueup Sett'!Q8 -> 0.1130002932 | H7: ='I14 Input 07 Trueup Sett'!Q8 -> 0.1130001317 | I7: ='I16 Input 08 Trueup Sett'!Q8 -> 0.1130000727 | J7: ='I18 Input 09 Trueup Sett'!Q8 -> 0.1130000866 | K7: ='I20 Input 10 Trueup Sett'!Q8 -> 0.1129978062 | L7: ='I22 Input 11 Trueup Sett'!Q8 -> 0.1129962554 | M7: ='I24 Input 12 Trueup Sett'!Q8 -> 0.1125536946 | P7: RPPTOUMID | Q7: ='I2 Input 01 Trueup Sett '!L20 -> 0.1725376099 | R7: ='I4 Input 02 Trueup Sett'!L20 -> 0.1700165041 | S7: ='I6 Input 03 Trueup Sett'!L20 -> 0.1630493881 | T7: ='I8 Input 04 Trueup Sett'!L20 -> 0.164152444 | U7: ='I10 Input 05 Trueup Sett'!L20 -> 0.1661488068 | V7: ='I12 Input 06 Trueup Sett'!L20 -> 0.169771235 | W7: ='I14 Input 07 Trueup Sett'!L20 -> 0.161961133 | X7: ='I16 Input 08 Trueup Sett'!L20 -> 0.1637936777 | Y7: ='I18 Input 09 Trueup Sett'!L20 -> 0.1693090037 | Z7: ='I20 Input 10 Trueup Sett'!L20 -> 0.1611857967 | AA7: ='I22 Input 11 Trueup Sett'!L20 -> 0.1667740017 | AB7: ='I24 Input 12 Trueup Sett'!L20 -> 0.1565003279
A8: RPPTOUOFF | B8: ='I2 Input 01 Trueup Sett '!Q9 -> 0.08839110004 | C8: ='I4 Input 02 Trueup Sett'!Q9 -> 0.08500113795 | D8: ='I6 Input 03 Trueup Sett'!Q9 -> 0.08500000708 | E8: ='I8 Input 04 Trueup Sett'!Q9 -> 0.08458046539 | F8: ='I10 Input 05 Trueup Sett'!Q9 -> 0.08236692979 | G8: ='I12 Input 06 Trueup Sett'!Q9 -> 0.08200019632 | H8: ='I14 Input 07 Trueup Sett'!Q9 -> 0.08200003641 | I8: ='I16 Input 08 Trueup Sett'!Q9 -> 0.08199993337 | J8: ='I18 Input 09 Trueup Sett'!Q9 -> 0.08199987249 | K8: ='I20 Input 10 Trueup Sett'!Q9 -> 0.08200012081 | L8: ='I22 Input 11 Trueup Sett'!Q9 -> 0.08199999065 | M8: ='I24 Input 12 Trueup Sett'!Q9 -> 0.08200002239 | P8: RPPTOUOFF | Q8: ='I2 Input 01 Trueup Sett '!L21 -> 0.6087780942 | R8: ='I4 Input 02 Trueup Sett'!L21 -> 0.5800025685 | S8: ='I6 Input 03 Trueup Sett'!L21 -> 0.5427231788 | T8: ='I8 Input 04 Trueup Sett'!L21 -> 0.5394958384 | U8: ='I10 Input 05 Trueup Sett'!L21 -> 0.5480683342 | V8: ='I12 Input 06 Trueup Sett'!L21 -> 0.5355751757 | W8: ='I14 Input 07 Trueup Sett'!L21 -> 0.5370793767 | X8: ='I16 Input 08 Trueup Sett'!L21 -> 0.5274843815 | Y8: ='I18 Input 09 Trueup Sett'!L21 -> 0.5282150708 | Z8: ='I20 Input 10 Trueup Sett'!L21 -> 0.5529702807 | AA8: ='I22 Input 11 Trueup Sett'!L21 -> 0.5234458073 | AB8: ='I24 Input 12 Trueup Sett'!L21 -> 0.5547546513
A9: RPPTOUON | B9: ='I2 Input 01 Trueup Sett '!Q10 -> 0.1049568645 | C9: ='I4 Input 02 Trueup Sett'!Q10 -> 0.108957823 | D9: ='I6 Input 03 Trueup Sett'!Q10 -> 0.1704528153 | E9: ='I8 Input 04 Trueup Sett'!Q10 -> 0.1752881619 | F9: ='I10 Input 05 Trueup Sett'!Q10 -> 0.1709930518 | G9: ='I12 Input 06 Trueup Sett'!Q10 -> 0.170000537 | H9: ='I14 Input 07 Trueup Sett'!Q10 -> 0.1700003051 | I9: ='I16 Input 08 Trueup Sett'!Q10 -> 0.1700003927 | J9: ='I18 Input 09 Trueup Sett'!Q10 -> 0.1700006861 | K9: ='I20 Input 10 Trueup Sett'!Q10 -> 0.1699929553 | L9: ='I22 Input 11 Trueup Sett'!Q10 -> 0.1699902204 | M9: ='I24 Input 12 Trueup Sett'!Q10 -> 0.1688417656 | P9: RPPTOUON | Q9: ='I2 Input 01 Trueup Sett '!L22 -> 0.1766063718 | R9: ='I4 Input 02 Trueup Sett'!L22 -> 0.1773579149 | S9: ='I6 Input 03 Trueup Sett'!L22 -> 0.1682860651 | T9: ='I8 Input 04 Trueup Sett'!L22 -> 0.164228129 | U9: ='I10 Input 05 Trueup Sett'!L22 -> 0.1702879168 | V9: ='I12 Input 06 Trueup Sett'!L22 -> 0.1846436512 | W9: ='I14 Input 07 Trueup Sett'!L22 -> 0.1825743658 | X9: ='I16 Input 08 Trueup Sett'!L22 -> 0.1893876193 | Y9: ='I18 Input 09 Trueup Sett'!L22 -> 0.1830045574 | Z9: ='I20 Input 10 Trueup Sett'!L22 -> 0.1634069144 | AA9: ='I22 Input 11 Trueup Sett'!L22 -> 0.1741031704 | AB9: ='I24 Input 12 Trueup Sett'!L22 -> 0.1587055545
A10: RPPULOMID | B10: ='I2 Input 01 Trueup Sett '!Q11 -> 0 | C10: ='I4 Input 02 Trueup Sett'!Q11 -> 0 | D10: ='I6 Input 03 Trueup Sett'!Q11 -> 0 | E10: ='I8 Input 04 Trueup Sett'!Q11 -> 0 | F10: ='I10 Input 05 Trueup Sett'!Q11 -> 0 | G10: ='I12 Input 06 Trueup Sett'!Q11 -> 0 | H10: ='I14 Input 07 Trueup Sett'!Q11 -> 0 | I10: ='I16 Input 08 Trueup Sett'!Q11 -> 0 | J10: ='I18 Input 09 Trueup Sett'!Q11 -> 0 | K10: ='I20 Input 10 Trueup Sett'!Q11 -> 0 | L10: ='I22 Input 11 Trueup Sett'!Q11 -> 0 | M10: ='I24 Input 12 Trueup Sett'!Q11 -> 0 | P10: RPPULOMID | Q10: ='I2 Input 01 Trueup Sett '!AF11 -> 0 | R10: ='I4 Input 02 Trueup Sett'!AF11 -> 0 | S10: ='I6 Input 03 Trueup Sett'!AF11 -> 0 | T10: ='I8 Input 04 Trueup Sett'!AF11 -> 0 | U10: ='I10 Input 05 Trueup Sett'!AF11 -> 0 | V10: ='I12 Input 06 Trueup Sett'!AF11 -> 0 | W10: ='I14 Input 07 Trueup Sett'!AF11 -> 0 | X10: ='I16 Input 08 Trueup Sett'!AF11 -> 0 | Y10: ='I18 Input 09 Trueup Sett'!AF11 -> 0 | Z10: ='I20 Input 10 Trueup Sett'!AF11 -> 0 | AA10: ='I22 Input 11 Trueup Sett'!AF11 -> 0 | AB10: ='I24 Input 12 Trueup Sett'!AF11 -> 0
A11: RPPULOOFF | B11: ='I2 Input 01 Trueup Sett '!Q12 -> 0 | C11: ='I4 Input 02 Trueup Sett'!Q12 -> 0 | D11: ='I6 Input 03 Trueup Sett'!Q12 -> 0 | E11: ='I8 Input 04 Trueup Sett'!Q12 -> 0 | F11: ='I10 Input 05 Trueup Sett'!Q12 -> 0 | G11: ='I12 Input 06 Trueup Sett'!Q12 -> 0 | H11: ='I14 Input 07 Trueup Sett'!Q12 -> 0 | I11: ='I16 Input 08 Trueup Sett'!Q12 -> 0 | J11: ='I18 Input 09 Trueup Sett'!Q12 -> 0 | K11: ='I20 Input 10 Trueup Sett'!Q12 -> 0 | L11: ='I22 Input 11 Trueup Sett'!Q12 -> 0 | M11: ='I24 Input 12 Trueup Sett'!Q12 -> 0 | P11: RPPULOOFF | Q11: ='I2 Input 01 Trueup Sett '!AF12 -> 0 | R11: ='I4 Input 02 Trueup Sett'!AF12 -> 0 | S11: ='I6 Input 03 Trueup Sett'!AF12 -> 0 | T11: ='I8 Input 04 Trueup Sett'!AF12 -> 0 | U11: ='I10 Input 05 Trueup Sett'!AF12 -> 0 | V11: ='I12 Input 06 Trueup Sett'!AF12 -> 0 | W11: ='I14 Input 07 Trueup Sett'!AF12 -> 0 | X11: ='I16 Input 08 Trueup Sett'!AF12 -> 0 | Y11: ='I18 Input 09 Trueup Sett'!AF12 -> 0 | Z11: ='I20 Input 10 Trueup Sett'!AF12 -> 0 | AA11: ='I22 Input 11 Trueup Sett'!AF12 -> 0 | AB11: ='I24 Input 12 Trueup Sett'!AF12 -> 0
A12: RPPULOON | B12: ='I2 Input 01 Trueup Sett '!Q13 -> 0 | C12: ='I4 Input 02 Trueup Sett'!Q13 -> 0 | D12: ='I6 Input 03 Trueup Sett'!Q13 -> 0 | E12: ='I8 Input 04 Trueup Sett'!Q13 -> 0 | F12: ='I10 Input 05 Trueup Sett'!Q13 -> 0 | G12: ='I12 Input 06 Trueup Sett'!Q13 -> 0 | H12: ='I14 Input 07 Trueup Sett'!Q13 -> 0 | I12: ='I16 Input 08 Trueup Sett'!Q13 -> 0 | J12: ='I18 Input 09 Trueup Sett'!Q13 -> 0 | K12: ='I20 Input 10 Trueup Sett'!Q13 -> 0 | L12: ='I22 Input 11 Trueup Sett'!Q13 -> 0 | M12: ='I24 Input 12 Trueup Sett'!Q13 -> 0 | P12: RPPULOON | Q12: ='I2 Input 01 Trueup Sett '!AF13 -> 0 | R12: ='I4 Input 02 Trueup Sett'!AF13 -> 0 | S12: ='I6 Input 03 Trueup Sett'!AF13 -> 0 | T12: ='I8 Input 04 Trueup Sett'!AF13 -> 0 | U12: ='I10 Input 05 Trueup Sett'!AF13 -> 0 | V12: ='I12 Input 06 Trueup Sett'!AF13 -> 0 | W12: ='I14 Input 07 Trueup Sett'!AF13 -> 0 | X12: ='I16 Input 08 Trueup Sett'!AF13 -> 0 | Y12: ='I18 Input 09 Trueup Sett'!AF13 -> 0 | Z12: ='I20 Input 10 Trueup Sett'!AF13 -> 0 | AA12: ='I22 Input 11 Trueup Sett'!AF13 -> 0 | AB12: ='I24 Input 12 Trueup Sett'!AF13 -> 0
A13: RPPULOOVN | B13: ='I2 Input 01 Trueup Sett '!Q14 -> 0 | C13: ='I4 Input 02 Trueup Sett'!Q14 -> 0 | D13: ='I6 Input 03 Trueup Sett'!Q14 -> 0 | E13: ='I8 Input 04 Trueup Sett'!Q14 -> 0 | F13: ='I10 Input 05 Trueup Sett'!Q14 -> 0 | G13: ='I12 Input 06 Trueup Sett'!Q14 -> 0 | H13: ='I14 Input 07 Trueup Sett'!Q14 -> 0 | I13: ='I16 Input 08 Trueup Sett'!Q14 -> 0 | J13: ='I18 Input 09 Trueup Sett'!Q14 -> 0 | K13: ='I20 Input 10 Trueup Sett'!Q14 -> 0 | L13: ='I22 Input 11 Trueup Sett'!Q14 -> 0 | M13: ='I24 Input 12 Trueup Sett'!Q14 -> 0 | P13: RPPULOOVN | Q13: ='I2 Input 01 Trueup Sett '!AF14 -> 0 | R13: ='I4 Input 02 Trueup Sett'!AF14 -> 0 | S13: ='I6 Input 03 Trueup Sett'!AF14 -> 0 | T13: ='I8 Input 04 Trueup Sett'!AF14 -> 0 | U13: ='I10 Input 05 Trueup Sett'!AF14 -> 0 | V13: ='I12 Input 06 Trueup Sett'!AF14 -> 0 | W13: ='I14 Input 07 Trueup Sett'!AF14 -> 0 | X13: ='I16 Input 08 Trueup Sett'!AF14 -> 0 | Y13: ='I18 Input 09 Trueup Sett'!AF14 -> 0 | Z13: ='I20 Input 10 Trueup Sett'!AF14 -> 0 | AA13: ='I22 Input 11 Trueup Sett'!AF14 -> 0 | AB13: ='I24 Input 12 Trueup Sett'!AF14 -> 0
Q14: =SUM(Q5:Q13) -> 1 | R14: =SUM(R5:R13) -> 1 | S14: 1 | T14: 1 | U14: 1 | V14: 1 | W14: 1 | X14: 1 | Y14: 1 | Z14: 1 | AA14: 1 | AB14: 1

Sheet I2 Input 01 Trueup Sett
A1: Date: | B1: =Admin!B8 -> 202101 | C1: Trueup | K1: ="Data for 1st True up of RPP Settlement based on Actual IESO Invoice" -> Data for 1st True up of RPP Settlement based on Actual IESO Invoice | P1: For Reconciliation
A3: Wholesale Electricty | B3: Year | C3: 2021 | E3: Rate | P3: Actual RPP Revenue and GA
A4: Redshift Wholesale Report.xlsm | B4: dateref | C4: 202101 | K4: Wholesale Volume data per IESO Power Bill: | L4: GA RPP/non-RPP Ratios | M4: GA Volumes | N4: Energy Volumes | P4: =B1 -> 202101
K5: AQEW | M5: =C10 -> 22772296.87 | N5: =+M5 -> 22772296.87 | P5: RPP Revenue Prices | Q5: RPP Rate | R5: Estimated RPP Energy Price | S5: GA actual IESO billed | T5: Total Commodity | U5: Difference | V5: kWh Volumes | W5: $ Estimated RPP Revenue | X5: $ Estimated RPP Energy | Y5: $ Estimated GA | Z5: $ Estimated RPP Settlement
B6: Wholesale | K6: Embedded Generation | M6: =SUM(C8:C9) -> 213283.15 | N6: =+M6 -> 213283.15 | P6: RPPT1 | Q6: =E20 -> 0.124250235 | R6: =E39 -> 0.0189509294 | S6: =L32 -> 0.08300000191 | T6: =R6+S6 -> 0.1019509313 | U6: =+Q6-T6 -> 0.02229930365 | V6: =M18 -> 287234.7008 | W6: =Q6*V6 -> 35688.97906 | X6: =R6*V6 -> 5443.364536 | Y6: =+V6*S6 -> 23840.48071 | Z6: =W6-X6-Y6 -> 6405.133812
B7: Source | C7: kWh | D7: Total Cost | K7: Class A customer Volumes for GA (TLF included) | M7: =-B57 -> -5646011.04 | P7: RPPT2 | Q7: =E21 -> 0.1444652752 | R7: =R6 -> 0.0189509294 | S7: =S6 -> 0.08300000191 | T7: =R7+S7 -> 0.1019509313 | U7: =+Q7-T7 -> 0.04251434387 | V7: =M19 -> 101642.8482 | W7: =Q7*V7 -> 14683.86203 | X7: =R7*V7 -> 1926.22644 | Y7: =+V7*S7 -> 8436.356591 | Z7: =W7-X7-Y7 -> 4321.278999
B8: FIT | C8: 199362.48 | D8: 3932.08 | E8: =D8/C8 -> 0.0197232699 | M8: =+M5+M6+M7 -> 17339568.98 | N8: =+N5+N6+N7 -> 22985580.02 | P8: RPPTOUMID | Q8: =E23 -> 0.09485792662 | R8: =E40 -> 0.01911027728 | S8: =S7 -> 0.08300000191 | T8: 0.1021102792 | U8: -0.007252352567 | V8: 1594565.423 | W8: 151257.1699 | X8: 30472.58737 | Y8: 132348.9331 | Z8: -11564.35064
B9: microFIT | C9: 13920.67 | D9: 282.81 | E9: =D9/C9 -> 0.0203158325 | P9: RPPTOUOFF | Q9: =E24 -> 0.08839110004 | R9: =R8 -> 0.01911027728 | S9: 0.08300000191 | T9: 0.1021102792 | U9: -0.01371917915 | V9: 5626231.287 | W9: 497308.7726 | X9: 107518.8399 | Y9: 466977.2076 | Z9: -77187.27494
B10: WHOLESALE | C10: 22772296.87 | D10: 397134.38 | E10: =D10/C10 -> 0.01743936425 | K10: Estimated Retail Volume Revenue Data (TLF Included) | L10: RPP/non-RPP Ratios | M10: GA Volumes | N10: Energy Volumes | P10: RPPTOUON | Q10: 0.1049568645 | R10: =R9 -> 0.01911027728 | S10: 0.08300000191 | T10: 0.1021102792 | U10: 0.002846585284 | V10: 1632168.279 | W10: 171307.2648 | X10: 31191.18838 | Y10: 135469.9703 | Z10: 4646.106204
B11: Grand Total | C11: 22985580.02 | D11: 401349.27 | K11: Estimated Retail Revenue Data (Net of Retail Billed/Unbilled) | M11: =+M15 -> 17339568.98 | N11: =+N15 -> 22985580.02 | P11: RPPULOMID | Q11: 0 | R11: 0 | S11: 0 | T11: 0 | U11: 0 | V11: 0 | W11: 0 | X11: 0 | Y11: 0 | Z11: 0
P12: RPPULOOFF | Q12: 0 | R12: 0 | S12: 0 | T12: 0 | U12: 0 | V12: 0 | W12: 0 | X12: 0 | Y12: 0 | Z12: 0
K13: Estimated RPP Sales Quantities | L13: =SUM(C20:C25)/(C30-B57) -> 0.5329914803 | M13: =M8*L13 -> 9241842.538 | N13: =M13 -> 9241842.538 | P13: RPPULOON | Q13: 0 | R13: 0 | S13: 0 | T13: 0 | U13: 0 | V13: 0 | W13: 0 | X13: 0 | Y13: 0 | Z13: 0
A14: RPP Revenue Volume and Price Data | K14: Estimated non-RPP Sales Quantities | L14: =1-L13 -> 0.4670085197 | M14: =M8*L14 -> 8097726.442 | N14: =N8-N13 -> 13743737.48 | P14: RPPULOOVN | Q14: 0 | R14: 0 | S14: 0 | T14: 0 | U14: 0 | V14: 0 | W14: 0 | X14: 0 | Y14: 0 | Z14: 0
A15: ER Summary.xlsm | B15: bill_year | C15: 2021 | K15: Estimated Retail Revenue kWh Volumes | L15: =+L13+L14 -> 1 | M15: =+M13+M14 -> 17339568.98 | N15: =+N13+N14 -> 22985580.02 | V15: =SUM(V6:V14) -> 9241842.538 | W15: =SUM(W6:W14) -> 870246.0484 | X15: =SUM(X6:X14) -> 176552.2067 | Y15: =SUM(Y6:Y14) -> 767072.9483 | Z15: =SUM(Z6:Z14) -> -73379.10657
B16: bill_month | C16: 1 | Z16: =W15-X15-Y15-Z15 -> 1.746229827e-10
K17: Estimated RPP Revenue Volume and Price Data | L17: Actual % | M17: kWh Volumes
B18: Row Labels | C18: usagebilled | D18: amountbilled | E18: Rate | K18: RPPT1 | L18: =C20/SUM($C$20:$C$25) -> 0.03107980899 | M18: =$M$13*L18 -> 287234.7008
B19: RPPTIER | K19: RPPT2 | L19: =C21/SUM($C$20:$C$25) -> 0.01099811512 | M19: =$M$13*L19 -> 101642.8482
B20: RPPT1 | C20: 328537.8634 | D20: 40820.90673 | E20: =D20/C20 -> 0.124250235 | K20: RPPTOUMID | L20: =C23/SUM($C$20:$C$25) -> 0.1725376099 | M20: 1594565.423
B21: RPPT2 | C21: 116258.6696 | D21: 16795.34069 | E21: =D21/C21 -> 0.1444652752 | K21: RPPTOUOFF | L21: =C24/SUM($C$20:$C$25) -> 0.6087780942 | M21: 5626231.287
B22: RPPTOU | K22: RPPTOUON | L22: 0.1766063718 | M22: 1632168.279
B23: RPPTOUMID | C23: 1823857.339 | D23: 173007.3257 | E23: 0.09485792662 | K23: RPPULOMID | L23: 0 | M23: 0
B24: RPPTOUOFF | C24: 6435260.09 | D24: 568819.7184 | E24: 0.08839110004 | K24: RPPULOOFF | L24: 0 | M24: 0
B25: RPPTOUON | C25: 1866867.331 | D25: 195940.5414 | E25: 0.1049568645 | K25: RPPULOON | L25: 0 | M25: 0
B26: RETAIL | K26: RPPULOOVN | L26: 0 | M26: 0
B27: NSLS | C27: 3564916.81 | D27: 63885.2394 | E27: 0.01792054143 | L27: =SUM(L18:L26) -> 1 | M27: =SUM(M18:M26) -> 9241842.538
B28: INTERVAL
B29: HOEP | C29: 11343240.26 | D29: 195065.101 | E29: 0.01719659431
B30: Grand Total | C30: 25478938.36 | D30: 1254334.173
K31: Global Adjustment | L31: per kWh
C32: =C30/C11-1 -> 0.1084748935 | K32: Class B - GA actual8 | L32: =B49/100 -> 0.08300000191 | N32: GA Posted Price
K33: Class B - GA actual IESO billed | L33: =+M33/M8 -> 0.08297383814 | M33: =B65 -> 1438730.59 | N33: GA Billed by IESO CT 148
A34: RPP COP Volume and Price Data
A35: ER COP Summary.xlsm | B35: bill_year | C35: 2021
B36: bill_month | C36: 1
B38: Row Labels | C38: usagebilled | D38: amountbilled | E38: Rate
B39: RPPTIERED | C39: 1428949.035 | D39: 27079.91228 | E39: =D39/C39 -> 0.0189509294
B40: RPPTOU | C40: 10125951.12 | D40: 193509.7336 | E40: 0.01911027728
B41: Grand Total | C41: 11554900.15 | D41: 220589.6458
C43: =SUM(C20:C25)-C41 -> -984118.8579
C44: =C43/C41 -> -0.08516896252
A45: Global Adjustment - Actual
A46: IESO GA Reconciliation.xlsm
A47: ga_actual | B47: year
A48: month | B48: 2021
A49: 202101 | B49: 8.300000191
A51: Class A kWh
A52: Redshift Class A Report.xlsm
A53: Year | B53: 2021
A55: Class A | B55: Value
A56: kWh
A57: 202101 | B57: 5646011.04
A59: IESO Class B
A60: IESO Invoice Reconciliation.xlsm
A61: chargetype | B61: 148
A63: Sum of chargeamount | B63: year
A64: month | B64: 2021
A65: 202101 | B65: 1438730.59

Sheet I3 Input Rev 01 Init
A1: Reverse IESO Posted
A2: Reverse Previously submitted CT142 By Date Ref.xlsx
A5: =Admin!B8 -> 202101
A6: RPP Revenue Prices | B6: kWh Volumes | C6: $ RPP Settlement
A7: RPPTiered_1 | B7: 1024798.21 | C7: -2434.62
A8: RPPTiered_2 | B8: 374190.3 | C8: -8395.41
A9: RPPTOU_MID | B9: 1742578.82 | C9: -43517.89
A10: RPPTOU_OFF | B10: 6116914.53 | C10: 124098.29
A11: RPPTOU_ON | B11: 1783421.6 | C11: -161559.6
A12: Grand Total | B12: 11041903.46 | C12: -91809.23

Sheet I4 Input 02 Trueup Sett
A1: Date: | B1: =Admin!B8+1 -> 202102 | C1: Trueup | K1: ="Data for 1st True up of RPP Settlement based on Actual IESO Invoice" -> Data for 1st True up of RPP Settlement based on Actual IESO Invoice | P1: For Reconciliation
A3: Wholesale Electricty | B3: Year | C3: 2021 | E3: Rate | P3: Actual RPP Revenue and GA
B4: dateref | C4: 202102 | K4: Wholesale Volume data per IESO Power Bill: | L4: GA RPP/non-RPP Ratios | M4: GA Volumes | N4: Energy Volumes | P4: =B1 -> 202102
K5: AQEW | M5: =C10 -> 21656645.58 | N5: =+M5 -> 21656645.58 | P5: RPP Revenue Prices | Q5: RPP Rate | R5: Estimated RPP Energy Price | S5: GA actual IESO billed | T5: Total Commodity | U5: Difference | V5: kWh Volumes | W5: $ Estimated RPP Revenue | X5: $ Estimated RPP Energy | Y5: $ Estimated GA | Z5: $ Estimated RPP Settlement
B6: Wholesale | K6: Embedded Generation | M6: =SUM(C8:C9) -> 312080.2 | N6: =+M6 -> 312080.2 | P6: RPPT1 | Q6: =E20 -> 0.1010048801 | R6: =E42 -> 0.03202152563 | S6: =L32 -> 0.05039999962 | T6: =R6+S6 -> 0.08242152525 | U6: =+Q6-T6 -> 0.01858335489 | V6: =M18 -> 611511.7042 | W6: =Q6*V6 -> 61765.66638 | X6: =R6*V6 -> 19581.53771 | Y6: =+V6*S6 -> 30820.18966 | Z6: =W6-X6-Y6 -> 11363.93902
A7: FIT/mFIT | B7: Source | C7: kWh | D7: Total Cost | K7: Class A customer Volumes for GA (TLF included) | M7: =-B64 -> -5744230.8 | P7: RPPT2 | Q7: =E21 -> 0.1179961446 | R7: =R6 -> 0.03202152563 | S7: =S6 -> 0.05039999962 | T7: =R7+S7 -> 0.08242152525 | U7: =+Q7-T7 -> 0.03557461934 | V7: =M19 -> 75873.56255 | W7: =Q7*V7 -> 8952.787857 | X7: =R7*V7 -> 2429.587228 | Y7: =+V7*S7 -> 3824.027523 | Z7: =W7-X7-Y7 -> 2699.173106
B8: FIT | C8: 293241.88 | D8: 9268.66 | E8: =D8/C8 -> 0.03160755892 | M8: =+M5+M6+M7 -> 16224494.98 | N8: =+N5+N6+N7 -> 21968725.78 | P8: RPPTOUMID | Q8: =E23 -> 0.09383199214 | R8: =E43 -> 0.03043226012 | S8: =S7 -> 0.05039999962 | T8: 0.08083225973 | U8: 0.0129997324 | V8: 1609226 | W8: 150996.8814 | X8: 48972.38422 | Y8: 81104.98979 | Z8: 20919.50738
B9: microFIT | C9: 18838.32 | D9: 583.94 | E9: =D9/C9 -> 0.03099745625 | P9: RPPTOUOFF | Q9: =E24 -> 0.08500113795 | R9: =R8 -> 0.03043226012 | S9: 0.05039999962 | T9: 0.08083225973 | U9: 0.00416887822 | V9: 5489791.82 | W9: 466638.5518 | X9: 167066.7727 | Y9: 276685.5056 | Z9: 22886.27355
B10: WHOLESALE | C10: 21656645.58 | D10: 728731.31 | E10: =D10/C10 -> 0.03364931597 | K10: Estimated Retail Volume Revenue Data (TLF Included) | L10: RPP/non-RPP Ratios | M10: GA Volumes | N10: Energy Volumes | P10: RPPTOUON | Q10: 0.108957823 | R10: =R9 -> 0.03043226012 | S10: 0.05039999962 | T10: 0.08083225973 | U10: 0.02812556327 | V10: 1678713.308 | W10: 182908.9475 | X10: 51087.04005 | Y10: 84607.15009 | Z10: 47214.75736
A11: Total Wholesale Electricity | B11: Grand Total | C11: 21968725.78 | D11: 738583.91 | K11: Estimated Retail Revenue Data (Net of Retail Billed/Unbilled) | M11: =+M15 -> 16224494.98 | N11: =+N15 -> 21968725.78 | P11: RPPULOMID | Q11: 0 | R11: 0 | S11: 0 | T11: 0 | U11: 0 | V11: 0 | W11: 0 | X11: 0 | Y11: 0 | Z11: 0
P12: RPPULOOFF | Q12: 0 | R12: 0 | S12: 0 | T12: 0 | U12: 0 | V12: 0 | W12: 0 | X12: 0 | Y12: 0 | Z12: 0
K13: Estimated RPP Sales Quantities | L13: =SUM(C20:C25)/(C30-B64) -> 0.5833843461 | M13: =M8*L13 -> 9465116.395 | N13: =M13 -> 9465116.395 | P13: RPPULOON | Q13: 0 | R13: 0 | S13: 0 | T13: 0 | U13: 0 | V13: 0 | W13: 0 | X13: 0 | Y13: 0 | Z13: 0
A14: RPP Revenue Volume and Price Data | K14: Estimated non-RPP Sales Quantities | L14: =1-L13 -> 0.4166156539 | M14: =M8*L14 -> 6759378.585 | N14: =N8-N13 -> 12503609.39 | P14: RPPULOOVN | Q14: 0 | R14: 0 | S14: 0 | T14: 0 | U14: 0 | V14: 0 | W14: 0 | X14: 0 | Y14: 0 | Z14: 0
B15: bill_year | C15: 2021 | K15: Estimated Retail Revenue kWh Volumes | L15: =+L13+L14 -> 1 | M15: =+M13+M14 -> 16224494.98 | N15: =+N13+N14 -> 21968725.78 | V15: =SUM(V6:V14) -> 9465116.395 | W15: =SUM(W6:W14) -> 871262.835 | X15: =SUM(X6:X14) -> 289137.3219 | Y15: =SUM(Y6:Y14) -> 477041.8627 | Z15: =SUM(Z6:Z14) -> 105083.6504
B16: bill_month | C16: 2 | Z16: =W15-X15-Y15-Z15 -> 0
K17: Estimated RPP Revenue Volume and Price Data | L17: Actual % | M17: kWh Volumes
B18: Row Labels | C18: usagebilled | D18: amountbilled | E18: Rate | K18: RPPT1 | L18: =C20/SUM($C$20:$C$25) -> 0.06460688687 | M18: =$M$13*L18 -> 611511.7042
B19: RPPTIER | K19: RPPT2 | L19: =C21/SUM($C$20:$C$25) -> 0.008016125674 | M19: =$M$13*L19 -> 75873.56255
B20: RPPT1 | C20: 653612.5982 | D20: 66018.06214 | E20: =D20/C20 -> 0.1010048801 | K20: RPPTOUMID | L20: =C23/SUM($C$20:$C$25) -> 0.1700165041 | M20: 1609226
B21: RPPT2 | C21: 81097.24804 | D21: 9569.162605 | E21: =D21/C21 -> 0.1179961446 | K21: RPPTOUOFF | L21: =C24/SUM($C$20:$C$25) -> 0.5800025685 | M21: 5489791.82
B22: RPPTOU | K22: RPPTOUON | L22: 0.1773579149 | M22: 1678713.308
B23: RPPTOUMID | C23: 1720016.771 | D23: 161392.6002 | E23: 0.09383199214 | K23: RPPULOMID | L23: 0 | M23: 0
B24: RPPTOUOFF | C24: 5867748.844 | D24: 498765.3289 | E24: 0.08500113795 | K24: RPPULOOFF | L24: 0 | M24: 0
B25: RPPTOUON | C25: 1794288.089 | D25: 195501.724 | E25: 0.108957823 | K25: RPPULOON | L25: 0 | M25: 0
B26: RETAIL | K26: RPPULOOVN | L26: 0 | M26: 0
B27: NSLS | C27: 3428608.51 | D27: 110692.4166 | E27: 0.03228493901 | L27: =SUM(L18:L26) -> 1 | M27: =SUM(M18:M26) -> 9465116.395
B28: INTERVAL
B29: HOEP | C29: 9540365.445 | D29: 311963.1847 | E29: 0.03269929087
B30: Grand Total | C30: 23085737.51 | D30: 1353902.479
K31: Global Adjustment | L31: per kWh
C32: =C30/C11-1 -> 0.05084554001 | K32: Class B - GA actual8 | L32: =B69/100 -> 0.05039999962 | N32: GA Posted Price
K33: Class B - GA actual IESO billed | L33: =+M33/M8 -> 0.05041925687 | M33: =B77 -> 818026.98 | N33: GA Billed by IESO CT 148
A37: RPP COP Volume and Price Data
B38: bill_year | C38: 2021
B39: bill_month | C39: 2
B41: Row Labels | C41: usagebilled | D41: amountbilled | E41: Rate
B42: RPPTIERED | C42: 1369333.389 | D42: 43848.1442 | E42: =D42/C42 -> 0.03202152563
B43: RPPTOU | C43: 9372294.95 | D43: 285220.1178 | E43: 0.03043226012
B44: Grand Total | C44: 10741628.34 | D44: 329068.262
C46: =SUM(C20:C25)-C44 -> -624864.7883
C47: =C46/C44 -> -0.05817225923
A60: Year | B60: 2021
A62: Class A | B62: Value
A63: kWh
A64: 202102 | B64: 5744230.8
A67: ga_actual | B67: year
A68: month | B68: 2021
A69: 202102 | B69: 5.039999962
A73: chargetype | B73: 148
A75: Sum of chargeamount | B75: year
A76: month | B76: 2021
A77: 202102 | B77: 818026.98

Sheet I5 Input Rev 02 Init
A1: Reverse IESO Posted
A5: =Admin!B11 -> 202102
A6: RPP Revenue Prices | B6: kWh Volumes | C6: $ RPP Settlement
A7: RPPTiered_1 | B7: 982958.17 | C7: 16500.48
A8: RPPTiered_2 | B8: 377365.39 | C8: 6097.88
A9: RPPTOU_MID | B9: 1806687.78 | C9: 16827.49
A10: RPPTOU_OFF | B10: 6467400.38 | C10: 109661.52
A11: RPPTOU_ON | B11: 1837587.94 | C11: -5014.36
A12: Grand Total | B12: 11471999.66 | C12: 144073.01

Sheet I6 Input 03 Trueup Sett
A1: Date: | B1: =Admin!B8+2 -> 202103 | C1: Trueup | K1: ="Data for 1st True up of RPP Settlement based on Actual IESO Invoice" -> Data for 1st True up of RPP Settlement based on Actual IESO Invoice | P1: For Reconciliation
A3: Wholesale Electricty | B3: Year | C3: 2021 | E3: Rate | P3: Actual RPP Revenue and GA
B4: dateref | C4: 202103 | K4: Wholesale Volume data per IESO Power Bill: | L4: GA RPP/non-RPP Ratios | M4: GA Volumes | N4: Energy Volumes | P4: =B1 -> 202103
K5: AQEW | M5: =C10 -> 21559847.19 | N5: =+M5 -> 21559847.19 | P5: RPP Revenue Prices | Q5: RPP Rate | R5: Estimated RPP Energy Price | S5: GA actual IESO billed | T5: Total Commodity | U5: Difference | V5: kWh Volumes | W5: $ Estimated RPP Revenue | X5: $ Estimated RPP Energy | Y5: $ Estimated GA | Z5: $ Estimated RPP Settlement
B6: Wholesale | K6: Embedded Generation | M6: =SUM(C8:C9) -> 670142.92 | N6: =+M6 -> 670142.92 | P6: RPPT1 | Q6: =E20 -> 0.1010002221 | R6: =E42 -> 0.01771624849 | S6: =L32 -> 0.09079999924 | T6: =R6+S6 -> 0.1085162477 | U6: =+Q6-T6 -> -0.007516025598 | V6: =M18 -> 987837.337 | W6: =Q6*V6 -> 99771.79046 | X6: =R6*V6 -> 17500.77173 | Y6: =+V6*S6 -> 89695.62944 | Z6: =W6-X6-Y6 -> -7424.610712
A7: FIT/mFIT | B7: Source | C7: kWh | D7: Total Cost | K7: Class A customer Volumes for GA (TLF included) | M7: =-B64 -> -6187929.82 | P7: RPPT2 | Q7: =E21 -> 0.1179990702 | R7: =R6 -> 0.01771624849 | S7: =S6 -> 0.09079999924 | T7: =R7+S7 -> 0.1085162477 | U7: =+Q7-T7 -> 0.009482822484 | V7: =M19 -> 316643.3387 | W7: =Q7*V7 -> 37363.61956 | X7: =R7*V7 -> 5609.732073 | Y7: =+V7*S7 -> 28751.21492 | Z7: =W7-X7-Y7 -> 3002.672572
B8: FIT | C8: 631314.08 | D8: 9245.37 | E8: =D8/C8 -> 0.01464464407 | M8: =+M5+M6+M7 -> 16042060.29 | N8: =+N5+N6+N7 -> 22229990.11 | P8: RPPTOUMID | Q8: =E23 -> 0.1170198297 | R8: =E43 -> 0.01802911572 | S8: =S7 -> 0.09079999924 | T8: 0.108829115 | U8: 0.008190714774 | V8: 1688839.65 | W8: 197627.7282 | X8: 30448.28547 | Y8: 153346.6389 | Z8: 13832.80387
B9: microFIT | C9: 38828.84 | D9: 564.13 | E9: =D9/C9 -> 0.01452863387 | P9: RPPTOUOFF | Q9: =E24 -> 0.08500000708 | R9: =R8 -> 0.01802911572 | S9: 0.09079999924 | T9: 0.108829115 | U9: -0.02382910787 | V9: 5621440.436 | W9: 477822.4769 | X9: 101349.6001 | Y9: 510426.7873 | Z9: -133953.9105
B10: WHOLESALE | C10: 21559847.19 | D10: 376883.3 | E10: =D10/C10 -> 0.01748079644 | K10: Estimated Retail Volume Revenue Data (TLF Included) | L10: RPP/non-RPP Ratios | M10: GA Volumes | N10: Energy Volumes | P10: RPPTOUON | Q10: 0.1704528153 | R10: =R9 -> 0.01802911572 | S10: 0.09079999924 | T10: 0.108829115 | U10: 0.06162370038 | V10: 1743080.318 | W10: 297112.9476 | X10: 31426.19677 | Y10: 158271.6916 | Z10: 107415.0593
A11: Total Wholesale Electricity | B11: Grand Total | C11: 22229990.11 | D11: 386692.8 | K11: Estimated Retail Revenue Data (Net of Retail Billed/Unbilled) | M11: =+M15 -> 16042060.29 | N11: =+N15 -> 22229990.11 | P11: RPPULOMID | Q11: 0 | R11: 0 | S11: 0 | T11: 0 | U11: 0 | V11: 0 | W11: 0 | X11: 0 | Y11: 0 | Z11: 0
P12: RPPULOOFF | Q12: 0 | R12: 0 | S12: 0 | T12: 0 | U12: 0 | V12: 0 | W12: 0 | X12: 0 | Y12: 0 | Z12: 0
K13: Estimated RPP Sales Quantities | L13: =SUM(C20:C25)/(C30-B64) -> 0.6456677567 | M13: =M8*L13 -> 10357841.08 | N13: =M13 -> 10357841.08 | P13: RPPULOON | Q13: 0 | R13: 0 | S13: 0 | T13: 0 | U13: 0 | V13: 0 | W13: 0 | X13: 0 | Y13: 0 | Z13: 0
A14: RPP Revenue Volume and Price Data | K14: Estimated non-RPP Sales Quantities | L14: =1-L13 -> 0.3543322433 | M14: =M8*L14 -> 5684219.21 | N14: =N8-N13 -> 11872149.03 | P14: RPPULOOVN | Q14: 0 | R14: 0 | S14: 0 | T14: 0 | U14: 0 | V14: 0 | W14: 0 | X14: 0 | Y14: 0 | Z14: 0
B15: bill_year | C15: 2021 | K15: Estimated Retail Revenue kWh Volumes | L15: =+L13+L14 -> 1 | M15: =+M13+M14 -> 16042060.29 | N15: =+N13+N14 -> 22229990.11 | V15: =SUM(V6:V14) -> 10357841.08 | W15: =SUM(W6:W14) -> 1109698.563 | X15: =SUM(X6:X14) -> 186334.5862 | Y15: =SUM(Y6:Y14) -> 940491.9622 | Z15: =SUM(Z6:Z14) -> -17127.98552
B16: bill_month | C16: 3 | Z16: =W15-X15-Y15-Z15 -> -4.365574569e-11
K17: Estimated RPP Revenue Volume and Price Data | L17: Actual % | M17: kWh Volumes
B18: Row Labels | C18: usagebilled | D18: amountbilled | E18: Rate | K18: RPPT1 | L18: =C20/SUM($C$20:$C$25) -> 0.09537096865 | M18: =$M$13*L18 -> 987837.337
B19: RPPTIER | K19: RPPT2 | L19: =C21/SUM($C$20:$C$25) -> 0.0305703994 | M19: =$M$13*L19 -> 316643.3387
B20: RPPT1 | C20: 977657.2803 | D20: 98743.60248 | E20: =D20/C20 -> 0.1010002221 | K20: RPPTOUMID | L20: =C23/SUM($C$20:$C$25) -> 0.1630493881 | M20: 1688839.65
B21: RPPT2 | C21: 313380.2032 | D21: 36978.5726 | E21: =D21/C21 -> 0.1179990702 | K21: RPPTOUOFF | L21: =C24/SUM($C$20:$C$25) -> 0.5427231788 | M21: 5621440.436
B22: RPPTOU | K22: RPPTOUON | L22: 0.1682860651 | M22: 1743080.318
B23: RPPTOUMID | C23: 1671435.485 | D23: 195591.0959 | E23: 0.1170198297 | K23: RPPULOMID | L23: 0 | M23: 0
B24: RPPTOUOFF | C24: 5563509.256 | D24: 472898.3262 | E24: 0.08500000708 | K24: RPPULOOFF | L24: 0 | M24: 0
B25: RPPTOUON | C25: 1725117.182 | D25: 294051.0805 | E25: 0.1704528153 | K25: RPPULOON | L25: 0 | M25: 0
B26: RETAIL | K26: RPPULOOVN | L26: 0 | M26: 0
B27: NSLS | C27: 3693606.849 | D27: 61720.09783 | E27: 0.01670998034 | L27: =SUM(L18:L26) -> 1 | M27: =SUM(M18:M26) -> 10357841.08
B28: INTERVAL
B29: HOEP | C29: 8119964.041 | D29: 135491.911 | E29: 0.01668626983
B30: Grand Total | C30: 22064670.3 | D30: 1295474.687
K31: Global Adjustment | L31: per kWh
C32: =C30/C11-1 -> -0.007436792 | K32: Class B - GA actual8 | L32: =B69/100 -> 0.09079999924 | N32: GA Posted Price
K33: Class B - GA actual IESO billed | L33: =+M33/M8 -> 0.09079815084 | M33: =B76 -> 1456589.41 | N33: GA Billed by IESO CT 148
A37: RPP COP Volume and Price Data
B38: bill_year | C38: 2021
B39: bill_month | C39: 3
B41: Row Labels | C41: usagebilled | D41: amountbilled | E41: Rate
B42: RPPTIERED | C42: 1299025.4 | D42: 23013.85678 | E42: =D42/C42 -> 0.01771624849
B43: RPPTOU | C43: 8980278.354 | D43: 161906.4776 | E43: 0.01802911572
B44: Grand Total | C44: 10279303.75 | D44: 184920.3344
C46: =SUM(C20:C25)-C44 -> -28204.34637
C47: =C46/C44 -> -0.002743799292
A60: Year | B60: 2021
A62: Class A | B62: Value
A63: kWh
A64: 202103 | B64: 6187929.82
A67: ga_actual | B67: year
A68: month | B68: 2021
A69: 202103 | B69: 9.079999924
A72: chargetype | B72: 148
A74: Sum of chargeamount | B74: year
A75: month | B75: 2021
A76: 202103 | B76: 1456589.41

Sheet I7 Input Rev 03 Init
A1: Reverse IESO Posted
A5: =Admin!B14 -> 202103
A6: RPP Revenue Prices | B6: kWh Volumes | C6: $ RPP Settlement
A7: RPPTiered_1 | B7: 1006180.59 | C7: 8955.67
A8: RPPTiered_2 | B8: 465307.96 | C8: 3210.08
A9: RPPTOU_MID | B9: 1855969 | C9: 14136.83
A10: RPPTOU_OFF | B10: 6413139.15 | C10: 85961.39
A11: RPPTOU_ON | B11: 1941420 | C11: -4766
A12: Grand Total | B12: 11682016.7 | C12: 107497.97

Sheet I8 Input 04 Trueup Sett
A1: Date: | B1: =Admin!B8+3 -> 202104 | C1: Trueup | K1: ="Data for 1st True up of RPP Settlement based on Actual IESO Invoice" -> Data for 1st True up of RPP Settlement based on Actual IESO Invoice | P1: For Reconciliation
A3: Wholesale Electricty | B3: Year | C3: 2021 | E3: Rate | P3: Actual RPP Revenue and GA
B4: dateref | C4: 202104 | K4: Wholesale Volume data per IESO Power Bill: | L4: GA RPP/non-RPP Ratios | M4: GA Volumes | N4: Energy Volumes | P4: =B1 -> 202104
K5: AQEW | M5: =C10 -> 18707176.71 | N5: =+M5 -> 18707176.71 | P5: RPP Revenue Prices | Q5: RPP Rate | R5: Estimated RPP Energy Price | S5: GA actual IESO billed | T5: Total Commodity | U5: Difference | V5: kWh Volumes | W5: $ Estimated RPP Revenue | X5: $ Estimated RPP Energy | Y5: $ Estimated GA | Z5: $ Estimated RPP Settlement
B6: Wholesale | K6: Embedded Generation | M6: =SUM(C8:C9) -> 671993.45 | N6: =+M6 -> 671993.45 | P6: RPPT1 | Q6: =E20 -> 0.1008690523 | R6: =E42 -> 0.01046050581 | S6: =L32 -> 0.1093000031 | T6: =R6+S6 -> 0.1197605089 | U6: =+Q6-T6 -> -0.01889145654 | V6: =M18 -> 1008361.791 | W6: =Q6*V6 -> 101712.4983 | X6: =R6*V6 -> 10547.97438 | Y6: =+V6*S6 -> 110213.9468 | Z6: =W6-X6-Y6 -> -19049.42295
A7: FIT/mFIT | B7: Source | C7: kWh | D7: Total Cost | K7: Class A customer Volumes for GA (TLF included) | M7: =-B64 -> -5735996.32 | P7: RPPT2 | Q7: =E21 -> 0.1177734898 | R7: =R6 -> 0.01046050581 | S7: =S6 -> 0.1093000031 | T7: =R7+S7 -> 0.1197605089 | U7: =+Q7-T7 -> -0.001987019099 | V7: =M19 -> 203238.7771 | W7: =Q7*V7 -> 23936.14003 | X7: =R7*V7 -> 2125.980409 | Y7: =+V7*S7 -> 22213.99895 | Z7: =W7-X7-Y7 -> -403.8393317
B8: FIT | C8: 635040.4 | D8: 4455.52 | E8: =D8/C8 -> 0.007016120549 | M8: =+M5+M6+M7 -> 13643173.84 | N8: =+N5+N6+N7 -> 19379170.16 | P8: RPPTOUMID | Q8: =E23 -> 0.1182974784 | R8: =E43 -> 0.01172503812 | S8: =S7 -> 0.1093000031 | T8: 0.1210250412 | U8: -0.002727562815 | V8: 1505311.781 | W8: 178074.5878 | X8: 17649.83801 | Y8: 164530.5822 | Z8: -4105.832438
B9: microFIT | C9: 36953.05 | D9: 258.4 | E9: =D9/C9 -> 0.006992656898 | P9: RPPTOUOFF | Q9: =E24 -> 0.08458046539 | R9: =R8 -> 0.01172503812 | S9: 0.1093000031 | T9: 0.1210250412 | U9: -0.03644457579 | V9: 4947288.152 | W9: 418443.9343 | X9: 58007.14218 | Y9: 540738.6101 | Z9: -180301.818
B10: WHOLESALE | C10: 18707176.71 | D10: 168858.13 | E10: =D10/C10 -> 0.009026382367 | K10: Estimated Retail Volume Revenue Data (TLF Included) | L10: RPP/non-RPP Ratios | M10: GA Volumes | N10: Energy Volumes | P10: RPPTOUON | Q10: 0.1752881619 | R10: =R9 -> 0.01172503812 | S10: 0.1093000031 | T10: 0.1210250412 | U10: 0.05426312071 | V10: 1506005.828 | W10: 263984.9934 | X10: 17657.97575 | Y10: 164606.4416 | Z10: 81720.57604
A11: Total Wholesale Electricity | B11: Grand Total | C11: 19379170.16 | D11: 173572.05 | K11: Estimated Retail Revenue Data (Net of Retail Billed/Unbilled) | M11: =+M15 -> 13643173.84 | N11: =+N15 -> 19379170.16 | P11: RPPULOMID | Q11: 0 | R11: 0 | S11: 0 | T11: 0 | U11: 0 | V11: 0 | W11: 0 | X11: 0 | Y11: 0 | Z11: 0
P12: RPPULOOFF | Q12: 0 | R12: 0 | S12: 0 | T12: 0 | U12: 0 | V12: 0 | W12: 0 | X12: 0 | Y12: 0 | Z12: 0
K13: Estimated RPP Sales Quantities | L13: =SUM(C20:C25)/(C30-B64) -> 0.6721461176 | M13: =M8*L13 -> 9170206.328 | N13: =M13 -> 9170206.328 | P13: RPPULOON | Q13: 0 | R13: 0 | S13: 0 | T13: 0 | U13: 0 | V13: 0 | W13: 0 | X13: 0 | Y13: 0 | Z13: 0
A14: RPP Revenue Volume and Price Data | K14: Estimated non-RPP Sales Quantities | L14: =1-L13 -> 0.3278538824 | M14: =M8*L14 -> 4472967.512 | N14: =N8-N13 -> 10208963.83 | P14: RPPULOOVN | Q14: 0 | R14: 0 | S14: 0 | T14: 0 | U14: 0 | V14: 0 | W14: 0 | X14: 0 | Y14: 0 | Z14: 0
B15: bill_year | C15: 2021 | K15: Estimated Retail Revenue kWh Volumes | L15: =+L13+L14 -> 1 | M15: =+M13+M14 -> 13643173.84 | N15: =+N13+N14 -> 19379170.16 | V15: =SUM(V6:V14) -> 9170206.328 | W15: =SUM(W6:W14) -> 986152.1537 | X15: =SUM(X6:X14) -> 105988.9107 | Y15: =SUM(Y6:Y14) -> 1002303.58 | Z15: =SUM(Z6:Z14) -> -122140.3367
B16: bill_month | C16: 4 | Z16: =W15-X15-Y15-Z15 -> 0
K17: Estimated RPP Revenue Volume and Price Data | L17: Actual % | M17: kWh Volumes
B18: Row Labels | C18: usagebilled | D18: amountbilled | E18: Rate | K18: RPPT1 | L18: =C20/SUM($C$20:$C$25) -> 0.1099606437 | M18: =$M$13*L18 -> 1008361.791
B19: RPPTIER | K19: RPPT2 | L19: =C21/SUM($C$20:$C$25) -> 0.02216294484 | M19: =$M$13*L19 -> 203238.7771
B20: RPPT1 | C20: 963662.8232 | D20: 97203.75573 | E20: =D20/C20 -> 0.1008690523 | K20: RPPTOUMID | L20: =C23/SUM($C$20:$C$25) -> 0.164152444 | M20: 1505311.781
B21: RPPT2 | C21: 194229.5468 | D21: 22875.09154 | E21: =D21/C21 -> 0.1177734898 | K21: RPPTOUOFF | L21: =C24/SUM($C$20:$C$25) -> 0.5394958384 | M21: 4947288.152
B22: RPPTOU | K22: RPPTOUON | L22: 0.164228129 | M22: 1506005.828
B23: RPPTOUMID | C23: 1438583.863 | D23: 170180.8434 | E23: 0.1182974784 | K23: RPPULOMID | L23: 0 | M23: 0
B24: RPPTOUOFF | C24: 4727983.26 | D24: 399895.0244 | E24: 0.08458046539 | K24: RPPULOOFF | L24: 0 | M24: 0
B25: RPPTOUON | C25: 1439247.144 | D25: 252282.9864 | E25: 0.1752881619 | K25: RPPULOON | L25: 0 | M25: 0
B26: RETAIL | K26: RPPULOOVN | L26: 0 | M26: 0
B27: NSLS | C27: 3363655.933 | D27: 33251.64263 | E27: 0.009885565971 | L27: =SUM(L18:L26) -> 1 | M27: =SUM(M18:M26) -> 9170206.328
B28: INTERVAL
B29: HOEP | C29: 6647028.836 | D29: 58829.84452 | E29: 0.008850547512
B30: Grand Total | C30: 18774391.41 | D30: 1034519.189
K31: Global Adjustment | L31: per kWh
C32: =C30/C11-1 -> -0.03120767038 | K32: Class B - GA actual8 | L32: =B69/100 -> 0.1093000031 | N32: GA Posted Price
K33: Class B - GA actual IESO billed | L33: =+M33/M8 -> 0.1093425252 | M33: =B76 -> 1491779.08 | N33: GA Billed by IESO CT 148
A37: RPP COP Volume and Price Data
B38: bill_year | C38: 2021
B39: bill_month | C39: 4
B41: Row Labels | C41: usagebilled | D41: amountbilled | E41: Rate
B42: RPPTIERED | C42: 1123069.07 | D42: 11747.87053 | E42: =D42/C42 -> 0.01046050581
B43: RPPTOU | C43: 8332562.76 | D43: 97699.61601 | E43: 0.01172503812
B44: Grand Total | C44: 9455631.83 | D44: 109447.4865
C46: =SUM(C20:C25)-C44 -> -691925.1931
C47: =C46/C44 -> -0.07317598713
A60: Year | B60: 2021
A62: Class A | B62: Value
A63: kWh
A64: 202104 | B64: 5735996.32
A67: ga_actual | B67: year
A68: month | B68: 2021
A69: 202104 | B69: 10.93000031
A72: chargetype | B72: 148
A74: Sum of chargeamount | B74: year
A75: month | B75: 2021
A76: 202104 | B76: 1491779.08

Sheet I9 Input Rev 04 Init
A1: Reverse IESO Posted
A5: =Admin!B17 -> 202104
A6: RPP Revenue Prices | B6: kWh Volumes | C6: $ RPP Settlement
A7: RPPTiered_1 | B7: 997216 | C7: 11198.08
A8: RPPTiered_2 | B8: 323490.41 | C8: -1811.4
A9: RPPTOU_MID | B9: 1771648.04 | C9: -12358.77
A10: RPPTOU_OFF | B10: 5850432.53 | C10: 149295.89
A11: RPPTOU_ON | B11: 1833678.23 | C11: -112389.91
A12: Grand Total | B12: 10776465.21 | C12: 33933.89

Sheet I10 Input 05 Trueup Sett
A1: Date: | B1: =Admin!B8+4 -> 202105 | C1: Trueup | K1: ="Data for 1st True up of RPP Settlement based on Actual IESO Invoice" -> Data for 1st True up of RPP Settlement based on Actual IESO Invoice | P1: For Reconciliation
A3: Wholesale Electricty | B3: Year | C3: 2021 | E3: Rate | P3: Actual RPP Revenue and GA
B4: dateref | C4: 202105 | K4: Wholesale Volume data per IESO Power Bill: | L4: GA RPP/non-RPP Ratios | M4: GA Volumes | N4: Energy Volumes | P4: =B1 -> 202105
K5: AQEW | M5: =C10 -> 18402400.31 | N5: =+M5 -> 18402400.31 | P5: RPP Revenue Prices | Q5: RPP Rate | R5: Estimated RPP Energy Price | S5: GA actual IESO billed | T5: Total Commodity | U5: Difference | V5: kWh Volumes | W5: $ Estimated RPP Revenue | X5: $ Estimated RPP Energy | Y5: $ Estimated GA | Z5: $ Estimated RPP Settlement
B6: Wholesale | K6: Embedded Generation | M6: =SUM(C8:C9) -> 897635.29 | N6: =+M6 -> 897635.29 | P6: RPPT1 | Q6: =E20 -> 0.09819269812 | R6: =E42 -> 0.01518331382 | S6: =L32 -> 0.1005000019 | T6: =R6+S6 -> 0.1156833157 | U6: =+Q6-T6 -> -0.01749061761 | V6: =M18 -> 712493.501 | W6: =Q6*V6 -> 69961.65926 | X6: =R6*V6 -> 10818.01242 | Y6: =+V6*S6 -> 71605.59821 | Z6: =W6-X6-Y6 -> -12461.95138
A7: FIT/mFIT | B7: Source | C7: kWh | D7: Total Cost | K7: Class A customer Volumes for GA (TLF included) | M7: =-B64 -> -5809367.99 | P7: RPPT2 | Q7: =E21 -> 0.1151398268 | R7: =R6 -> 0.01518331382 | S7: =S6 -> 0.1005000019 | T7: =R7+S7 -> 0.1156833157 | U7: =+Q7-T7 -> -0.0005434889669 | V7: =M19 -> 174930.5967 | W7: =Q7*V7 -> 20141.4786 | X7: =R7*V7 -> 2656.026146 | Y7: =+V7*S7 -> 17580.5253 | Z7: =W7-X7-Y7 -> -95.07284926
B8: FIT | C8: 849254.52 | D8: 13009.31 | E8: =D8/C8 -> 0.01531850546 | M8: =+M5+M6+M7 -> 13490667.61 | N8: =+N5+N6+N7 -> 19300035.6 | P8: RPPTOUMID | Q8: =E23 -> 0.1140315191 | R8: =E43 -> 0.01557096877 | S8: =S7 -> 0.1005000019 | T8: 0.1160709707 | U8: -0.002039451616 | V8: 1276631.272 | W8: 145576.2032 | X8: 19878.38567 | Y8: 128301.4453 | Z8: -2603.627711
B9: microFIT | C9: 48380.77 | D9: 746.2 | E9: =D9/C9 -> 0.01542348334 | P9: RPPTOUOFF | Q9: =E24 -> 0.08236692979 | R9: =R8 -> 0.01557096877 | S9: 0.1005000019 | T9: 0.1160709707 | U9: -0.03370404089 | V9: 4211171.829 | W9: 346861.2944 | X9: 65572.02505 | Y9: 423222.7769 | Z9: -141933.5075
B10: WHOLESALE | C10: 18402400.31 | D10: 269227.1 | E10: =D10/C10 -> 0.0146299991 | K10: Estimated Retail Volume Revenue Data (TLF Included) | L10: RPP/non-RPP Ratios | M10: GA Volumes | N10: Energy Volumes | P10: RPPTOUON | Q10: 0.1709930518 | R10: =R9 -> 0.01557096877 | S10: 0.1005000019 | T10: 0.1160709707 | U10: 0.05492208114 | V10: 1308434.794 | W10: 223733.2586 | X10: 20373.59732 | Y10: 131497.6993 | Z10: 71861.96194
A11: Total Wholesale Electricity | B11: Grand Total | C11: 19300035.6 | D11: 282982.61 | K11: Estimated Retail Revenue Data (Net of Retail Billed/Unbilled) | M11: =+M15 -> 13490667.61 | N11: =+N15 -> 19300035.6 | P11: RPPULOMID | Q11: 0 | R11: 0 | S11: 0 | T11: 0 | U11: 0 | V11: 0 | W11: 0 | X11: 0 | Y11: 0 | Z11: 0
P12: RPPULOOFF | Q12: 0 | R12: 0 | S12: 0 | T12: 0 | U12: 0 | V12: 0 | W12: 0 | X12: 0 | Y12: 0 | Z12: 0
K13: Estimated RPP Sales Quantities | L13: =SUM(C20:C25)/(C30-B64) -> 0.5695538735 | M13: =M8*L13 -> 7683661.993 | N13: =M13 -> 7683661.993 | P13: RPPULOON | Q13: 0 | R13: 0 | S13: 0 | T13: 0 | U13: 0 | V13: 0 | W13: 0 | X13: 0 | Y13: 0 | Z13: 0
A14: RPP Revenue Volume and Price Data | K14: Estimated non-RPP Sales Quantities | L14: =1-L13 -> 0.4304461265 | M14: =M8*L14 -> 5807005.617 | N14: =N8-N13 -> 11616373.61 | P14: RPPULOOVN | Q14: 0 | R14: 0 | S14: 0 | T14: 0 | U14: 0 | V14: 0 | W14: 0 | X14: 0 | Y14: 0 | Z14: 0
B15: bill_year | C15: 2021 | K15: Estimated Retail Revenue kWh Volumes | L15: =+L13+L14 -> 1 | M15: =+M13+M14 -> 13490667.61 | N15: =+N13+N14 -> 19300035.6 | V15: =SUM(V6:V14) -> 7683661.993 | W15: =SUM(W6:W14) -> 806273.8941 | X15: =SUM(X6:X14) -> 119298.0466 | Y15: =SUM(Y6:Y14) -> 772208.045 | Z15: =SUM(Z6:Z14) -> -85232.19752
B16: bill_month | C16: 5 | Z16: =W15-X15-Y15-Z15 -> 0
K17: Estimated RPP Revenue Volume and Price Data | L17: Actual % | M17: kWh Volumes
B18: Row Labels | C18: usagebilled | D18: amountbilled | E18: Rate | K18: RPPT1 | L18: =C20/SUM($C$20:$C$25) -> 0.09272837635 | M18: =$M$13*L18 -> 712493.501
B19: RPPTIER | K19: RPPT2 | L19: =C21/SUM($C$20:$C$25) -> 0.02276656584 | M19: =$M$13*L19 -> 174930.5967
B20: RPPT1 | C20: 775253.56 | D20: 76124.23878 | E20: =D20/C20 -> 0.09819269812 | K20: RPPTOUMID | L20: =C23/SUM($C$20:$C$25) -> 0.1661488068 | M20: 1276631.272
B21: RPPT2 | C21: 190339.3752 | D21: 21915.64269 | E21: =D21/C21 -> 0.1151398268 | K21: RPPTOUOFF | L21: =C24/SUM($C$20:$C$25) -> 0.5480683342 | M21: 4211171.829
B22: RPPTOU | K22: RPPTOUON | L22: 0.1702879168 | M22: 1308434.794
B23: RPPTOUMID | C23: 1389083.461 | D23: 158399.2972 | E23: 0.1140315191 | K23: RPPULOMID | L23: 0 | M23: 0
B24: RPPTOUOFF | C24: 4582113.307 | D24: 377414.6051 | E24: 0.08236692979 | K24: RPPULOOFF | L24: 0 | M24: 0
B25: RPPTOUON | C25: 1423688.4 | D25: 243440.8243 | E25: 0.1709930518 | K25: RPPULOON | L25: 0 | M25: 0
B26: RETAIL | K26: RPPULOOVN | L26: 0 | M26: 0
B27: NSLS | C27: 3575298.715 | D27: 55803.57405 | E27: 0.01560808718 | L27: =SUM(L18:L26) -> 1 | M27: =SUM(M18:M26) -> 7683661.993
B28: INTERVAL
B29: HOEP | C29: 8552585.543 | D29: 123415.0241 | E29: 0.01443014203
B30: Grand Total | C30: 20488362.36 | D30: 1056513.206
K31: Global Adjustment | L31: per kWh
C32: =C30/C11-1 -> 0.06157122119 | K32: Class B - GA actual8 | L32: =B69/100 -> 0.1005000019 | N32: GA Posted Price
K33: Class B - GA actual IESO billed | L33: =+M33/M8 -> 0.1005374418 | M33: =B76 -> 1356317.21 | N33: GA Billed by IESO CT 148
A37: RPP COP Volume and Price Data
B38: bill_year | C38: 2021
B39: bill_month | C39: 5
B41: Row Labels | C41: usagebilled | D41: amountbilled | E41: Rate
B42: RPPTIERED | C42: 1821965.622 | D42: 27663.47581 | E42: =D42/C42 -> 0.01518331382
B43: RPPTOU | C43: 13178048.01 | D43: 205194.974 | E43: 0.01557096877
B44: Grand Total | C44: 15000013.63 | D44: 232858.4498
C46: =SUM(C20:C25)-C44 -> -6639535.525
C47: =C46/C44 -> -0.4426352995
A60: Year | B60: 2021
A62: Class A | B62: Value
A63: kWh
A64: 202105 | B64: 5809367.99
A67: ga_actual | B67: year
A68: month | B68: 2021
A69: 202105 | B69: 10.05000019
A72: chargetype | B72: 148
A74: Sum of chargeamount | B74: year
A75: month | B75: 2021
A76: 202105 | B76: 1356317.21

Sheet I11 Input Rev 05 Init
A1: Reverse IESO Posted
A5: =Admin!B20 -> 202105
A6: RPP Revenue Prices | B6: kWh Volumes | C6: $ RPP Settlement
A7: RPPTiered_1 | B7: 911982.33 | C7: 21060.51
A8: RPPTiered_2 | B8: 198163.61 | C8: 1199.21
A9: RPPTOU_MID | B9: 1460152.81 | C9: 6712.27
A10: RPPTOU_OFF | B10: 4807799.64 | C10: 184644.22
A11: RPPTOU_ON | B11: 1450703.4 | C11: -76031.57
A12: Grand Total | B12: 8828801.79 | C12: 137584.64

Sheet I12 Input 06 Trueup Sett
A1: Date: | B1: =Admin!B8+5 -> 202106 | C1: Trueup | K1: ="Data for 1st True up of RPP Settlement based on Actual IESO Invoice" -> Data for 1st True up of RPP Settlement based on Actual IESO Invoice | P1: For Reconciliation
A3: Wholesale Electricty | B3: Year | C3: 2021 | E3: Rate | P3: Actual RPP Revenue and GA
B4: dateref | C4: 202106 | K4: Wholesale Volume data per IESO Power Bill: | L4: GA RPP/non-RPP Ratios | M4: GA Volumes | N4: Energy Volumes | P4: =B1 -> 202106
K5: AQEW | M5: =C10 -> 19575898.09 | N5: =+M5 -> 19575898.09 | P5: RPP Revenue Prices | Q5: RPP Rate | R5: Estimated RPP Energy Price | S5: GA actual IESO billed | T5: Total Commodity | U5: Difference | V5: kWh Volumes | W5: $ Estimated RPP Revenue | X5: $ Estimated RPP Energy | Y5: $ Estimated GA | Z5: $ Estimated RPP Settlement
B6: Wholesale | K6: Embedded Generation | M6: =SUM(C8:C9) -> 888588.44 | N6: =+M6 -> 888588.44 | P6: RPPT1 | Q6: =E20 -> 0.09800001554 | R6: =E42 -> 0.0262178235 | S6: =L32 -> 0.08630000114 | T6: =R6+S6 -> 0.1125178246 | U6: =+Q6-T6 -> -0.01451780911 | V6: =M18 -> 772341.3073 | W6: =Q6*V6 -> 75689.46012 | X6: =R6*V6 -> 20249.10808 | Y6: =+V6*S6 -> 66653.0557 | Z6: =W6-X6-Y6 -> -11212.70366
A7: FIT/mFIT | B7: Source | C7: kWh | D7: Total Cost | K7: Class A customer Volumes for GA (TLF included) | M7: =-B64 -> -5746082.46 | P7: RPPT2 | Q7: =E21 -> 0.1149997456 | R7: =R6 -> 0.0262178235 | S7: =S6 -> 0.08630000114 | T7: =R7+S7 -> 0.1125178246 | U7: =+Q7-T7 -> 0.002481920942 | V7: =M19 -> 230732.5117 | W7: =Q7*V7 -> 26534.18014 | X7: =R7*V7 -> 6049.304267 | Y7: =+V7*S7 -> 19912.21602 | Z7: =W7-X7-Y7 -> 572.6598527
B8: FIT | C8: 841494.5 | D8: 26587.02 | E8: =D8/C8 -> 0.03159500151 | M8: =+M5+M6+M7 -> 14718404.07 | N8: =+N5+N6+N7 -> 20464486.53 | P8: RPPTOUMID | Q8: =E23 -> 0.1130002932 | R8: =E43 -> 0.02576418811 | S8: =S7 -> 0.08630000114 | T8: 0.1120641893 | U8: 0.0009361039765 | V8: 1547979.064 | W8: 174922.0881 | X8: 39882.42378 | Y8: 133590.595 | Z8: 1449.069357
B9: microFIT | C9: 47093.94 | D9: 1483.45 | E9: =D9/C9 -> 0.03149980656 | P9: RPPTOUOFF | Q9: =E24 -> 0.08200019632 | R9: =R8 -> 0.02576418811 | S9: 0.08630000114 | T9: 0.1120641893 | U9: -0.03006399293 | V9: 4883390.047 | W9: 400438.9425 | X9: 125816.5798 | Y9: 421436.5666 | Z9: -146814.2038
B10: WHOLESALE | C10: 19575898.09 | D10: 523303.7 | E10: =D10/C10 -> 0.02673204047 | K10: Estimated Retail Volume Revenue Data (TLF Included) | L10: RPP/non-RPP Ratios | M10: GA Volumes | N10: Energy Volumes | P10: RPPTOUON | Q10: 0.170000537 | R10: =R9 -> 0.02576418811 | S10: 0.08630000114 | T10: 0.1120641893 | U10: 0.0579363478 | V10: 1683586.188 | W10: 286210.5561 | X10: 43376.23124 | Y10: 145293.4899 | Z10: 97540.83492
A11: Total Wholesale Electricity | B11: Grand Total | C11: 20464486.53 | D11: 551374.17 | K11: Estimated Retail Revenue Data (Net of Retail Billed/Unbilled) | M11: =+M15 -> 14718404.07 | N11: =+N15 -> 20464486.53 | P11: RPPULOMID | Q11: 0 | R11: 0 | S11: 0 | T11: 0 | U11: 0 | V11: 0 | W11: 0 | X11: 0 | Y11: 0 | Z11: 0
P12: RPPULOOFF | Q12: 0 | R12: 0 | S12: 0 | T12: 0 | U12: 0 | V12: 0 | W12: 0 | X12: 0 | Y12: 0 | Z12: 0
K13: Estimated RPP Sales Quantities | L13: =SUM(C20:C25)/(C30-B64) -> 0.6194984914 | M13: =M8*L13 -> 9118029.117 | N13: =M13 -> 9118029.117 | P13: RPPULOON | Q13: 0 | R13: 0 | S13: 0 | T13: 0 | U13: 0 | V13: 0 | W13: 0 | X13: 0 | Y13: 0 | Z13: 0
A14: RPP Revenue Volume and Price Data | K14: Estimated non-RPP Sales Quantities | L14: =1-L13 -> 0.3805015086 | M14: =M8*L14 -> 5600374.953 | N14: =N8-N13 -> 11346457.41 | P14: RPPULOOVN | Q14: 0 | R14: 0 | S14: 0 | T14: 0 | U14: 0 | V14: 0 | W14: 0 | X14: 0 | Y14: 0 | Z14: 0
B15: bill_year | C15: 2021 | K15: Estimated Retail Revenue kWh Volumes | L15: =+L13+L14 -> 1 | M15: =+M13+M14 -> 14718404.07 | N15: =+N13+N14 -> 20464486.53 | V15: =SUM(V6:V14) -> 9118029.117 | W15: =SUM(W6:W14) -> 963795.227 | X15: =SUM(X6:X14) -> 235373.6471 | Y15: =SUM(Y6:Y14) -> 786885.9232 | Z15: =SUM(Z6:Z14) -> -58464.34337
B16: bill_month | C16: 6 | Z16: =W15-X15-Y15-Z15 -> 0
K17: Estimated RPP Revenue Volume and Price Data | L17: Actual % | M17: kWh Volumes
B18: Row Labels | C18: usagebilled | D18: amountbilled | E18: Rate | K18: RPPT1 | L18: =C20/SUM($C$20:$C$25) -> 0.08470485204 | M18: =$M$13*L18 -> 772341.3073
B19: RPPTIER | K19: RPPT2 | L19: =C21/SUM($C$20:$C$25) -> 0.02530508608 | M19: =$M$13*L19 -> 230732.5117
B20: RPPT1 | C20: 755279.2296 | D20: 74017.37624 | E20: =D20/C20 -> 0.09800001554 | K20: RPPTOUMID | L20: =C23/SUM($C$20:$C$25) -> 0.169771235 | M20: 1547979.064
B21: RPPT2 | C21: 225635.3143 | D21: 25948.00375 | E21: =D21/C21 -> 0.1149997456 | K21: RPPTOUOFF | L21: =C24/SUM($C$20:$C$25) -> 0.5355751757 | M21: 4883390.047
B22: RPPTOU | K22: RPPTOUON | L22: 0.1846436512 | M22: 1683586.188
B23: RPPTOUMID | C23: 1513782.085 | D23: 171057.8195 | E23: 0.1130002932 | K23: RPPULOMID | L23: 0 | M23: 0
B24: RPPTOUOFF | C24: 4775509.269 | D24: 391592.6976 | E24: 0.08200019632 | K24: RPPULOOFF | L24: 0 | M24: 0
B25: RPPTOUON | C25: 1646393.462 | D25: 279887.7728 | E25: 0.170000537 | K25: RPPULOON | L25: 0 | M25: 0
B26: RETAIL | K26: RPPULOOVN | L26: 0 | M26: 0
B27: NSLS | C27: 3800953.491 | D27: 99398.656 | E27: 0.02615097929 | L27: =SUM(L18:L26) -> 1 | M27: =SUM(M18:M26) -> 9118029.117
B28: INTERVAL
B29: HOEP | C29: 7421783.966 | D29: 186962.753 | E29: 0.02519107991
B30: Grand Total | C30: 20139336.82 | D30: 1228865.079
K31: Global Adjustment | L31: per kWh
C32: =C30/C11-1 -> -0.01588848622 | K32: Class B - GA actual8 | L32: =B69/100 -> 0.08630000114 | N32: GA Posted Price
K33: Class B - GA actual IESO billed | L33: =+M33/M8 -> 0.08632085476 | M33: =B76 -> 1270505.22 | N33: GA Billed by IESO CT 148
A37: RPP COP Volume and Price Data
B38: bill_year | C38: 2021
B39: bill_month | C39: 6
B41: Row Labels | C41: usagebilled | D41: amountbilled | E41: Rate
B42: RPPTIERED | C42: 1008282.092 | D42: 26434.96192 | E42: =D42/C42 -> 0.0262178235
B43: RPPTOU | C43: 8492288.108 | D43: 218796.9083 | E43: 0.02576418811
B44: Grand Total | C44: 9500570.2 | D44: 245231.8702
C46: =SUM(C20:C25)-C44 -> -583970.8389
C47: =C46/C44 -> -0.06146692532
A60: Year | B60: 2021
A62: Class A | B62: Value
A63: kWh
A64: 202106 | B64: 5746082.46
A67: ga_actual | B67: year
A68: month | B68: 2021
A69: 202106 | B69: 8.630000114
A72: chargetype | B72: 148
A74: Sum of chargeamount | B74: year
A75: month | B75: 2021
A76: 202106 | B76: 1270505.22

Sheet I13 Input Rev 06 Init
A1: Reverse IESO Posted
A5: =Admin!B23 -> 202106
A6: RPP Revenue Prices | B6: kWh Volumes | C6: $ RPP Settlement
A7: RPPTiered_1 | B7: 750824.02 | C7: 17773.71
A8: RPPTiered_2 | B8: 179567.55 | C8: 1201.86
A9: RPPTOU_MID | B9: 1325922.32 | C9: 10946.61
A10: RPPTOU_OFF | B10: 4411461.24 | C10: 175871.16
A11: RPPTOU_ON | B11: 1348164.75 | C11: -65669.75
A12: Grand Total | B12: 8015939.88 | C12: 140123.59

Sheet I14 Input 07 Trueup Sett
A1: Date: | B1: =Admin!B8+6 -> 202107 | C1: Trueup | K1: ="Data for 1st True up of RPP Settlement based on Actual IESO Invoice" -> Data for 1st True up of RPP Settlement based on Actual IESO Invoice | P1: For Reconciliation
A3: Wholesale Electricty | B3: Year | C3: 2021 | E3: Rate | P3: Actual RPP Revenue and GA
B4: dateref | C4: 202107 | K4: Wholesale Volume data per IESO Power Bill: | L4: GA RPP/non-RPP Ratios | M4: GA Volumes | N4: Energy Volumes | P4: =B1 -> 202107
K5: AQEW | M5: =C10 -> 20716924.68 | N5: =+M5 -> 20716924.68 | P5: RPP Revenue Prices | Q5: RPP Rate | R5: Estimated RPP Energy Price | S5: GA actual IESO billed | T5: Total Commodity | U5: Difference | V5: kWh Volumes | W5: $ Estimated RPP Revenue | X5: $ Estimated RPP Energy | Y5: $ Estimated GA | Z5: $ Estimated RPP Settlement
B6: Wholesale | K6: Embedded Generation | M6: =SUM(C8:C9) -> 785667.5 | N6: =+M6 -> 785667.5 | P6: RPPT1 | Q6: =E20 -> 0.09800014409 | R6: =E42 -> 0.02962494492 | S6: =L32 -> 0.07360000134 | T6: =R6+S6 -> 0.1032249463 | U6: =+Q6-T6 -> -0.005224802168 | V6: =M18 -> 872727.966 | W6: =Q6*V6 -> 85527.46642 | X6: =R6*V6 -> 25854.51793 | Y6: =+V6*S6 -> 64232.77947 | Z6: =W6-X6-Y6 -> -4559.830969
A7: FIT/mFIT | B7: Source | C7: kWh | D7: Total Cost | K7: Class A customer Volumes for GA (TLF included) | M7: =-B64 -> -5278515.6 | P7: RPPT2 | Q7: =E21 -> 0.11500092 | R7: =R6 -> 0.02962494492 | S7: =S6 -> 0.07360000134 | T7: =R7+S7 -> 0.1032249463 | U7: =+Q7-T7 -> 0.01177597372 | V7: =M19 -> 295142.3427 | W7: =Q7*V7 -> 33941.64094 | X7: =R7*V7 -> 8743.575648 | Y7: =+V7*S7 -> 21722.47682 | Z7: =W7-X7-Y7 -> 3475.588473
B8: FIT | C8: 747185.89 | D8: 22513.23 | E8: =D8/C8 -> 0.03013069479 | M8: =+M5+M6+M7 -> 16224076.58 | N8: =+N5+N6+N7 -> 21502592.18 | P8: RPPTOUMID | Q8: =E23 -> 0.1130001317 | R8: =E43 -> 0.02993330886 | S8: =S7 -> 0.07360000134 | T8: 0.1035333102 | U8: 0.009466821499 | V8: 1597748.02 | W8: 180545.7367 | X8: 47825.88497 | Y8: 117594.2564 | Z8: 15125.59531
B9: microFIT | C9: 38481.61 | D9: 1156.11 | E9: =D9/C9 -> 0.03004318167 | P9: RPPTOUOFF | Q9: =E24 -> 0.08200003641 | R9: =R8 -> 0.02993330886 | S9: 0.07360000134 | T9: 0.1035333102 | U9: -0.02153327379 | V9: 5298292.837 | W9: 434460.2055 | X9: 158595.4359 | Y9: 389954.3599 | Z9: -114089.5903
B10: WHOLESALE | C10: 20716924.68 | D10: 574687.63 | E10: =D10/C10 -> 0.02774000673 | K10: Estimated Retail Volume Revenue Data (TLF Included) | L10: RPP/non-RPP Ratios | M10: GA Volumes | N10: Energy Volumes | P10: RPPTOUON | Q10: 0.1700003051 | R10: =R9 -> 0.02993330886 | S10: 0.07360000134 | T10: 0.1035333102 | U10: 0.06646699495 | V10: 1801097.745 | W10: 306187.1663 | X10: 53912.81509 | Y10: 132560.7964 | Z10: 119713.5547
A11: Total Wholesale Electricity | B11: Grand Total | C11: 21502592.18 | D11: 598356.97 | K11: Estimated Retail Revenue Data (Net of Retail Billed/Unbilled) | M11: =+M15 -> 16224076.58 | N11: =+N15 -> 21502592.18 | P11: RPPULOMID | Q11: 0 | R11: 0 | S11: 0 | T11: 0 | U11: 0 | V11: 0 | W11: 0 | X11: 0 | Y11: 0 | Z11: 0
P12: RPPULOOFF | Q12: 0 | R12: 0 | S12: 0 | T12: 0 | U12: 0 | V12: 0 | W12: 0 | X12: 0 | Y12: 0 | Z12: 0
K13: Estimated RPP Sales Quantities | L13: =SUM(C20:C25)/(C30-B64) -> 0.6080474819 | M13: =M8*L13 -> 9865008.911 | N13: =M13 -> 9865008.911 | P13: RPPULOON | Q13: 0 | R13: 0 | S13: 0 | T13: 0 | U13: 0 | V13: 0 | W13: 0 | X13: 0 | Y13: 0 | Z13: 0
A14: RPP Revenue Volume and Price Data | K14: Estimated non-RPP Sales Quantities | L14: =1-L13 -> 0.3919525181 | M14: =M8*L14 -> 6359067.669 | N14: =N8-N13 -> 11637583.27 | P14: RPPULOOVN | Q14: 0 | R14: 0 | S14: 0 | T14: 0 | U14: 0 | V14: 0 | W14: 0 | X14: 0 | Y14: 0 | Z14: 0
B15: bill_year | C15: 2021 | K15: Estimated Retail Revenue kWh Volumes | L15: =+L13+L14 -> 1 | M15: =+M13+M14 -> 16224076.58 | N15: =+N13+N14 -> 21502592.18 | V15: =SUM(V6:V14) -> 9865008.911 | W15: =SUM(W6:W14) -> 1040662.216 | X15: =SUM(X6:X14) -> 294932.2296 | Y15: =SUM(Y6:Y14) -> 726064.669 | Z15: =SUM(Z6:Z14) -> 19665.31727
B16: bill_month | C16: 7 | Z16: =W15-X15-Y15-Z15 -> -8.731149137e-11
K17: Estimated RPP Revenue Volume and Price Data | L17: Actual % | M17: kWh Volumes
B18: Row Labels | C18: usagebilled | D18: amountbilled | E18: Rate | K18: RPPT1 | L18: =C20/SUM($C$20:$C$25) -> 0.08846702257 | M18: =$M$13*L18 -> 872727.966
B19: RPPTIER | K19: RPPT2 | L19: =C21/SUM($C$20:$C$25) -> 0.02991810199 | M19: =$M$13*L19 -> 295142.3427
B20: RPPT1 | C20: 900773.4196 | D20: 88275.92491 | E20: =D20/C20 -> 0.09800014409 | K20: RPPTOUMID | L20: =C23/SUM($C$20:$C$25) -> 0.161961133 | M20: 1597748.02
B21: RPPT2 | C21: 304626.857 | D21: 35032.36881 | E21: =D21/C21 -> 0.11500092 | K21: RPPTOUOFF | L21: =C24/SUM($C$20:$C$25) -> 0.5370793767 | M21: 5298292.837
B22: RPPTOU | K22: RPPTOUON | L22: 0.1825743658 | M22: 1801097.745
B23: RPPTOUMID | C23: 1649092.276 | D23: 186347.6443 | E23: 0.1130001317 | K23: RPPULOMID | L23: 0 | M23: 0
B24: RPPTOUOFF | C24: 5468555.544 | D24: 448421.7537 | E24: 0.08200003641 | K24: RPPULOOFF | L24: 0 | M24: 0
B25: RPPTOUON | C25: 1858976.724 | D25: 316026.6103 | E25: 0.1700003051 | K25: RPPULOON | L25: 0 | M25: 0
B26: RETAIL | K26: RPPULOOVN | L26: 0 | M26: 0
B27: NSLS | C27: 3870567.646 | D27: 113100.6001 | E27: 0.02922067522 | L27: =SUM(L18:L26) -> 1 | M27: =SUM(M18:M26) -> 9865008.911
B28: INTERVAL
B29: HOEP | C29: 7971366.742 | D29: 217020.259 | E29: 0.02722497484
B30: Grand Total | C30: 22023959.21 | D30: 1404225.161
K31: Global Adjustment | L31: per kWh
C32: =C30/C11-1 -> 0.02424670585 | K32: Class B - GA actual8 | L32: =B69/100 -> 0.07360000134 | N32: GA Posted Price
K33: Class B - GA actual IESO billed | L33: =+M33/M8 -> 0.07359944735 | M33: =B76 -> 1194083.07 | N33: GA Billed by IESO CT 148
A37: RPP COP Volume and Price Data
B38: bill_year | C38: 2021
B39: bill_month | C39: 7
B41: Row Labels | C41: usagebilled | D41: amountbilled | E41: Rate
B42: RPPTIERED | C42: 1203543.234 | D42: 35654.90203 | E42: =D42/C42 -> 0.02962494492
B43: RPPTOU | C43: 8976623.557 | D43: 268700.0455 | E43: 0.02993330886
B44: Grand Total | C44: 10180166.79 | D44: 304354.9475
C46: =SUM(C20:C25)-C44 -> 1858.028036
C47: =C46/C44 -> 0.0001825144984
A60: Year | B60: 2021
A62: Class A | B62: Value
A63: kWh
A64: 202107 | B64: 5278515.6
A67: ga_actual | B67: year
A68: month | B68: 2021
A69: 202107 | B69: 7.360000134
A72: chargetype | B72: 148
A74: Sum of chargeamount | B74: year
A75: month | B75: 2021
A76: 202107 | B76: 1194083.07

Sheet I15 Input Rev 07 Init
A1: Reverse IESO Posted
A5: =Admin!B26 -> 202107
A6: RPP Revenue Prices | B6: kWh Volumes | C6: $ RPP Settlement
A7: RPPTiered_1 | B7: 759325.83 | C7: 15796.49
A8: RPPTiered_2 | B8: 221740.42 | C8: 846.55
A9: RPPTOU_MID | B9: 1537572.6 | C9: 8410.5
A10: RPPTOU_OFF | B10: 4824397.78 | C10: 175891.33
A11: RPPTOU_ON | B11: 1668483.1 | C11: -85957.56
A12: Grand Total | B12: 9011519.73 | C12: 114987.31

Sheet I16 Input 08 Trueup Sett
A1: Date: | B1: =Admin!B8+7 -> 202108 | C1: Trueup | K1: ="Data for 1st True up of RPP Settlement based on Actual IESO Invoice" -> Data for 1st True up of RPP Settlement based on Actual IESO Invoice | P1: For Reconciliation
A3: Wholesale Electricty | B3: Year | C3: 2021 | E3: Rate | P3: Actual RPP Revenue and GA
B4: dateref | C4: 202108 | K4: Wholesale Volume data per IESO Power Bill: | L4: GA RPP/non-RPP Ratios | M4: GA Volumes | N4: Energy Volumes | P4: =B1 -> 202108
K5: AQEW | M5: =C10 -> 22975629.87 | N5: =+M5 -> 22975629.87 | P5: RPP Revenue Prices | Q5: RPP Rate | R5: Estimated RPP Energy Price | S5: GA actual IESO billed | T5: Total Commodity | U5: Difference | V5: kWh Volumes | W5: $ Estimated RPP Revenue | X5: $ Estimated RPP Energy | Y5: $ Estimated GA | Z5: $ Estimated RPP Settlement
B6: Wholesale | K6: Embedded Generation | M6: =SUM(C8:C9) -> 817962.27 | N6: =+M6 -> 817962.27 | P6: RPPT1 | Q6: =E20 -> 0.09800007745 | R6: =E42 -> 0.04182082623 | S6: =L32 -> 0.04599999905 | T6: =R6+S6 -> 0.08782082528 | U6: =+Q6-T6 -> 0.01017925217 | V6: =M18 -> 945308.6416 | W6: =Q6*V6 -> 92640.32008 | X6: =R6*V6 -> 39533.58843 | Y6: =+V6*S6 -> 43484.19661 | Z6: =W6-X6-Y6 -> 9622.535041
A7: FIT/mFIT | B7: Source | C7: kWh | D7: Total Cost | K7: Class A customer Volumes for GA (TLF included) | M7: =-B64 -> -5003438.93 | P7: RPPT2 | Q7: =E21 -> 0.1150005703 | R7: =R6 -> 0.04182082623 | S7: =S6 -> 0.04599999905 | T7: =R7+S7 -> 0.08782082528 | U7: =+Q7-T7 -> 0.02717974501 | V7: =M19 -> 437468.6685 | W7: =Q7*V7 -> 50309.14636 | X7: =R7*V7 -> 18295.30117 | Y7: =+V7*S7 -> 20123.55833 | Z7: =W7-X7-Y7 -> 11890.28686
B8: FIT | C8: 776473.81 | D8: 38745.07 | E8: =D8/C8 -> 0.04989874675 | M8: =+M5+M6+M7 -> 18790153.21 | N8: =+N5+N6+N7 -> 23793592.14 | P8: RPPTOUMID | Q8: =E23 -> 0.1130000727 | R8: =E43 -> 0.04151708728 | S8: =S7 -> 0.04599999905 | T8: 0.08751708632 | U8: 0.0254829864 | V8: 1897946.693 | W8: 214468.1143 | X8: 78797.2185 | Y8: 87305.54607 | Z8: 48365.34976
B9: microFIT | C9: 41488.46 | D9: 2079.35 | E9: =D9/C9 -> 0.05011875591 | P9: RPPTOUOFF | Q9: =E24 -> 0.08199993337 | R9: =R8 -> 0.04151708728 | S9: 0.04599999905 | T9: 0.08751708632 | U9: -0.005517152951 | V9: 6112184.864 | W9: 501198.7516 | X9: 253760.1124 | Y9: 281160.4979 | Z9: -33721.85876
B10: WHOLESALE | C10: 22975629.87 | D10: 1007822.39 | E10: =D10/C10 -> 0.04386484269 | K10: Estimated Retail Volume Revenue Data (TLF Included) | L10: RPP/non-RPP Ratios | M10: GA Volumes | N10: Energy Volumes | P10: RPPTOUON | Q10: 0.1700003927 | R10: =R9 -> 0.04151708728 | S10: 0.04599999905 | T10: 0.08751708632 | U10: 0.08248330635 | V10: 2194514.531 | W10: 373068.332 | X10: 91109.85132 | Y10: 100947.6663 | Z10: 181010.8144
A11: Total Wholesale Electricity | B11: Grand Total | C11: 23793592.14 | D11: 1048646.81 | K11: Estimated Retail Revenue Data (Net of Retail Billed/Unbilled) | M11: =+M15 -> 18790153.21 | N11: =+N15 -> 23793592.14 | P11: RPPULOMID | Q11: 0 | R11: 0 | S11: 0 | T11: 0 | U11: 0 | V11: 0 | W11: 0 | X11: 0 | Y11: 0 | Z11: 0
P12: RPPULOOFF | Q12: 0 | R12: 0 | S12: 0 | T12: 0 | U12: 0 | V12: 0 | W12: 0 | X12: 0 | Y12: 0 | Z12: 0
K13: Estimated RPP Sales Quantities | L13: =SUM(C20:C25)/(C30-B64) -> 0.6166753016 | M13: =M8*L13 -> 11587423.4 | N13: =M13 -> 11587423.4 | P13: RPPULOON | Q13: 0 | R13: 0 | S13: 0 | T13: 0 | U13: 0 | V13: 0 | W13: 0 | X13: 0 | Y13: 0 | Z13: 0
A14: RPP Revenue Volume and Price Data | K14: Estimated non-RPP Sales Quantities | L14: =1-L13 -> 0.3833246984 | M14: =M8*L14 -> 7202729.812 | N14: =N8-N13 -> 12206168.74 | P14: RPPULOOVN | Q14: 0 | R14: 0 | S14: 0 | T14: 0 | U14: 0 | V14: 0 | W14: 0 | X14: 0 | Y14: 0 | Z14: 0
B15: bill_year | C15: 2021 | K15: Estimated Retail Revenue kWh Volumes | L15: =+L13+L14 -> 1 | M15: =+M13+M14 -> 18790153.21 | N15: =+N13+N14 -> 23793592.14 | V15: =SUM(V6:V14) -> 11587423.4 | W15: =SUM(W6:W14) -> 1231684.664 | X15: =SUM(X6:X14) -> 481496.0719 | Y15: =SUM(Y6:Y14) -> 533021.4652 | Z15: =SUM(Z6:Z14) -> 217167.1273
B16: bill_month | C16: 8 | Z16: =W15-X15-Y15-Z15 -> 0
K17: Estimated RPP Revenue Volume and Price Data | L17: Actual % | M17: kWh Volumes
B18: Row Labels | C18: usagebilled | D18: amountbilled | E18: Rate | K18: RPPT1 | L18: =C20/SUM($C$20:$C$25) -> 0.0815805731 | M18: =$M$13*L18 -> 945308.6416
B19: RPPTIER | K19: RPPT2 | L19: =C21/SUM($C$20:$C$25) -> 0.03775374848 | M19: =$M$13*L19 -> 437468.6685
B20: RPPT1 | C20: 926557.5876 | D20: 90802.71534 | E20: =D20/C20 -> 0.09800007745 | K20: RPPTOUMID | L20: =C23/SUM($C$20:$C$25) -> 0.1637936777 | M20: 1897946.693
B21: RPPT2 | C21: 428791.0808 | D21: 49311.21883 | E21: =D21/C21 -> 0.1150005703 | K21: RPPTOUOFF | L21: =C24/SUM($C$20:$C$25) -> 0.5274843815 | M21: 6112184.864
B22: RPPTOU | K22: RPPTOUON | L22: 0.1893876193 | M22: 2194514.531
B23: RPPTOUMID | C23: 1860299.2 | D23: 210213.9448 | E23: 0.1130000727 | K23: RPPULOMID | L23: 0 | M23: 0
B24: RPPTOUOFF | C24: 5990944.135 | D24: 491257.0199 | E24: 0.08199993337 | K24: RPPULOOFF | L24: 0 | M24: 0
B25: RPPTOUON | C25: 2150984.346 | D25: 365668.1834 | E25: 0.1700003927 | K25: RPPULOON | L25: 0 | M25: 0
B26: RETAIL | K26: RPPULOOVN | L26: 0 | M26: 0
B27: NSLS | C27: 4185651.395 | D27: 175783.4165 | E27: 0.04199666907 | L27: =SUM(L18:L26) -> 1 | M27: =SUM(M18:M26) -> 11587423.4
B28: INTERVAL
B29: HOEP | C29: 7877644.671 | D29: 339179.7415 | E29: 0.04305598381
B30: Grand Total | C30: 23420872.42 | D30: 1722216.24
K31: Global Adjustment | L31: per kWh
C32: =C30/C11-1 -> -0.01566471017 | K32: Class B - GA actual8 | L32: =B69/100 -> 0.04599999905 | N32: GA Posted Price
K33: Class B - GA actual IESO billed | L33: =+M33/M8 -> 0.04599502092 | M33: =B76 -> 864253.49 | N33: GA Billed by IESO CT 148
A37: RPP COP Volume and Price Data
B38: bill_year | C38: 2021
B39: bill_month | C39: 8
B41: Row Labels | C41: usagebilled | D41: amountbilled | E41: Rate
B42: RPPTIERED | C42: 1357033.828 | D42: 56752.27592 | E42: =D42/C42 -> 0.04182082623
B43: RPPTOU | C43: 10002270.41 | D43: 415265.1336 | E43: 0.04151708728
B44: Grand Total | C44: 11359304.24 | D44: 472017.4096
C46: =SUM(C20:C25)-C44 -> -1727.89018
C47: =C46/C44 -> -0.0001521123251
A60: Year | B60: 2021
A62: Class A | B62: Value
A63: kWh
A64: 202108 | B64: 5003438.93
A67: ga_actual | B67: year
A68: month | B68: 2021
A69: 202108 | B69: 4.599999905
A72: chargetype | B72: 148
A74: Sum of chargeamount | B74: year
A75: month | B75: 2021
A76: 202108 | B76: 864253.49

Sheet I17 Input Rev 08 Init
A1: Reverse IESO Posted
A5: =Admin!B29 -> 202108
A6: RPP Revenue Prices | B6: kWh Volumes | C6: $ RPP Settlement
A7: RPPTiered_1 | B7: 817454.01 | C7: 8656.41
A8: RPPTiered_2 | B8: 275970.57 | C8: -1770.5
A9: RPPTOU_MID | B9: 1632290.76 | C9: -8039.99
A10: RPPTOU_OFF | B10: 5410064.08 | C10: 141063.76
A11: RPPTOU_ON | B11: 1841289.08 | C11: -114023.57
A12: Grand Total | B12: 9977068.5 | C12: 25886.11

Sheet I18 Input 09 Trueup Sett
A1: Date: | B1: =Admin!B8+8 -> 202109 | C1: Trueup | K1: ="Data for 1st True up of RPP Settlement based on Actual IESO Invoice" -> Data for 1st True up of RPP Settlement based on Actual IESO Invoice | P1: For Reconciliation
A3: Wholesale Electricty | B3: Year | C3: 2021 | E3: Rate | P3: Actual RPP Revenue and GA
B4: dateref | C4: 202109 | K4: Wholesale Volume data per IESO Power Bill: | L4: GA RPP/non-RPP Ratios | M4: GA Volumes | N4: Energy Volumes | P4: =B1 -> 202109
K5: AQEW | M5: =C10 -> 18789624.59 | N5: =+M5 -> 18789624.59 | P5: RPP Revenue Prices | Q5: RPP Rate | R5: Estimated RPP Energy Price | S5: GA actual IESO billed | T5: Total Commodity | U5: Difference | V5: kWh Volumes | W5: $ Estimated RPP Revenue | X5: $ Estimated RPP Energy | Y5: $ Estimated GA | Z5: $ Estimated RPP Settlement
B6: Wholesale | K6: Embedded Generation | M6: =SUM(C8:C9) -> 651978.35 | N6: =+M6 -> 651978.35 | P6: RPPT1 | Q6: =E20 -> 0.09799907428 | R6: =E42 -> 0.03600847906 | S6: =L32 -> 0.07570000172 | T6: =R6+S6 -> 0.1117084808 | U6: =+Q6-T6 -> -0.0137094065 | V6: =M18 -> 839444.3559 | W6: =Q6*V6 -> 82264.76979 | X6: =R6*V6 -> 30227.11451 | Y6: =+V6*S6 -> 63545.93918 | Z6: =W6-X6-Y6 -> -11508.28391
A7: FIT/mFIT | B7: Source | C7: kWh | D7: Total Cost | K7: Class A customer Volumes for GA (TLF included) | M7: =-B64 -> -5012584.7 | P7: RPPT2 | Q7: =E21 -> 0.1150001097 | R7: =R6 -> 0.03600847906 | S7: =S6 -> 0.07570000172 | T7: =R7+S7 -> 0.1117084808 | U7: =+Q7-T7 -> 0.003291628924 | V7: =M19 -> 240136.3326 | W7: =Q7*V7 -> 27615.70459 | X7: =R7*V7 -> 8646.944102 | Y7: =+V7*S7 -> 18178.32079 | Z7: =W7-X7-Y7 -> 790.439698
B8: FIT | C8: 618003.64 | D8: 22384.93 | E8: =D8/C8 -> 0.03622135624 | M8: =+M5+M6+M7 -> 14429018.24 | N8: =+N5+N6+N7 -> 19441602.94 | P8: RPPTOUMID | Q8: =E23 -> 0.1130000866 | R8: =E43 -> 0.03754483549 | S8: =S7 -> 0.07570000172 | T8: 0.1132448372 | U8: -0.0002447505831 | V8: 1529929.168 | W8: 172882.1285 | X8: 57440.93892 | Y8: 115815.6406 | Z8: -374.4510559
B9: microFIT | C9: 33974.71 | D9: 1230.15 | E9: =D9/C9 -> 0.03620781458 | P9: RPPTOUOFF | Q9: =E24 -> 0.08199987249 | R9: =R8 -> 0.03754483549 | S9: 0.07570000172 | T9: 0.1132448372 | U9: -0.03124496472 | V9: 4773116.763 | W9: 391394.9659 | X9: 179205.8837 | Y9: 361324.9471 | Z9: -149135.8648
B10: WHOLESALE | C10: 18789624.59 | D10: 575531.83 | E10: =D10/C10 -> 0.03063029957 | K10: Estimated Retail Volume Revenue Data (TLF Included) | L10: RPP/non-RPP Ratios | M10: GA Volumes | N10: Energy Volumes | P10: RPPTOUON | Q10: 0.1700006861 | R10: =R9 -> 0.03754483549 | S10: 0.07570000172 | T10: 0.1132448372 | U10: 0.05675584888 | V10: 1653686.479 | W10: 281127.836 | X10: 62087.3868 | Y10: 125184.0693 | Z10: 93856.37988
A11: Total Wholesale Electricity | B11: Grand Total | C11: 19441602.94 | D11: 599146.91 | K11: Estimated Retail Revenue Data (Net of Retail Billed/Unbilled) | M11: =+M15 -> 14429018.24 | N11: =+N15 -> 19441602.94 | P11: RPPULOMID | Q11: 0 | R11: 0 | S11: 0 | T11: 0 | U11: 0 | V11: 0 | W11: 0 | X11: 0 | Y11: 0 | Z11: 0
P12: RPPULOOFF | Q12: 0 | R12: 0 | S12: 0 | T12: 0 | U12: 0 | V12: 0 | W12: 0 | X12: 0 | Y12: 0 | Z12: 0
K13: Estimated RPP Sales Quantities | L13: =SUM(C20:C25)/(C30-B64) -> 0.6262597321 | M13: =M8*L13 -> 9036313.098 | N13: =M13 -> 9036313.098 | P13: RPPULOON | Q13: 0 | R13: 0 | S13: 0 | T13: 0 | U13: 0 | V13: 0 | W13: 0 | X13: 0 | Y13: 0 | Z13: 0
A14: RPP Revenue Volume and Price Data | K14: Estimated non-RPP Sales Quantities | L14: =1-L13 -> 0.3737402679 | M14: =M8*L14 -> 5392705.142 | N14: =N8-N13 -> 10405289.84 | P14: RPPULOOVN | Q14: 0 | R14: 0 | S14: 0 | T14: 0 | U14: 0 | V14: 0 | W14: 0 | X14: 0 | Y14: 0 | Z14: 0
B15: bill_year | C15: 2021 | K15: Estimated Retail Revenue kWh Volumes | L15: =+L13+L14 -> 1 | M15: =+M13+M14 -> 14429018.24 | N15: =+N13+N14 -> 19441602.94 | V15: =SUM(V6:V14) -> 9036313.098 | W15: =SUM(W6:W14) -> 955285.4048 | X15: =SUM(X6:X14) -> 337608.268 | Y15: =SUM(Y6:Y14) -> 684048.917 | Z15: =SUM(Z6:Z14) -> -66371.78023
B16: bill_month | C16: 9 | Z16: =W15-X15-Y15-Z15 -> 0
K17: Estimated RPP Revenue Volume and Price Data | L17: Actual % | M17: kWh Volumes
B18: Row Labels | C18: usagebilled | D18: amountbilled | E18: Rate | K18: RPPT1 | L18: =C20/SUM($C$20:$C$25) -> 0.09289677625 | M18: =$M$13*L18 -> 839444.3559
B19: RPPTIER | K19: RPPT2 | L19: =C21/SUM($C$20:$C$25) -> 0.02657459187 | M19: =$M$13*L19 -> 240136.3326
B20: RPPT1 | C20: 823100.4763 | D20: 80663.08472 | E20: =D20/C20 -> 0.09799907428 | K20: RPPTOUMID | L20: =C23/SUM($C$20:$C$25) -> 0.1693090037 | M20: 1529929.168
B21: RPPT2 | C21: 235460.9073 | D21: 27078.03017 | E21: =D21/C21 -> 0.1150001097 | K21: RPPTOUOFF | L21: =C24/SUM($C$20:$C$25) -> 0.5282150708 | M21: 4773116.763
B22: RPPTOU | K22: RPPTOUON | L22: 0.1830045574 | M22: 1653686.479
B23: RPPTOUMID | C23: 1500141.633 | D23: 169516.1345 | E23: 0.1130000866 | K23: RPPULOMID | L23: 0 | M23: 0
B24: RPPTOUOFF | C24: 4680184.759 | D24: 383774.5535 | E24: 0.08199987249 | K24: RPPULOOFF | L24: 0 | M24: 0
B25: RPPTOUON | C25: 1621489.404 | D25: 275654.3111 | E25: 0.1700006861 | K25: RPPULOON | L25: 0 | M25: 0
B26: RETAIL | K26: RPPULOOVN | L26: 0 | M26: 0
B27: NSLS | C27: 3913261.812 | D27: 129640.7489 | E27: 0.03312856515 | L27: =SUM(L18:L26) -> 1 | M27: =SUM(M18:M26) -> 9036313.098
B28: INTERVAL
B29: HOEP | C29: 6387032.717 | D29: 191643.5388 | E29: 0.03000509741
B30: Grand Total | C30: 19160671.71 | D30: 1257970.402
K31: Global Adjustment | L31: per kWh
C32: =C30/C11-1 -> -0.01445000357 | K32: Class B - GA actual8 | L32: =B69/100 -> 0.07570000172 | N32: GA Posted Price
K33: Class B - GA actual IESO billed | L33: =+M33/M8 -> 0.07564641557 | M33: =B76 -> 1091503.51 | N33: GA Billed by IESO CT 148
A37: RPP COP Volume and Price Data
B38: bill_year | C38: 2021
B39: bill_month | C39: 9
B41: Row Labels | C41: usagebilled | D41: amountbilled | E41: Rate
B42: RPPTIERED | C42: 1063481.161 | D42: 38294.33912 | E42: =D42/C42 -> 0.03600847906
B43: RPPTOU | C43: 7802019.598 | D43: 292925.5423 | E43: 0.03754483549
B44: Grand Total | C44: 8865500.759 | D44: 331219.8814
C46: =SUM(C20:C25)-C44 -> -5123.579314
C47: =C46/C44 -> -0.0005779232841
A60: Year | B60: 2021
A62: Class A | B62: Value
A63: kWh
A64: 202109 | B64: 5012584.7
A67: ga_actual | B67: year
A68: month | B68: 2021
A69: 202109 | B69: 7.570000172
A72: chargetype | B72: 148
A74: Sum of chargeamount | B74: year
A75: month | B75: 2021
A76: 202109 | B76: 1091503.51

Sheet I19 Input Rev 09 Init
A1: Reverse IESO Posted
A5: =Admin!B32 -> 202109
A6: RPP Revenue Prices | B6: kWh Volumes | C6: $ RPP Settlement
A7: RPPTiered_1 | B7: 803061.65 | C7: -1757.08
A8: RPPTiered_2 | B8: 387022.01 | C8: -7417.08
A9: RPPTOU_MID | B9: 1805350.34 | C9: -27056.21
A10: RPPTOU_OFF | B10: 5870594.77 | C10: 92940.28
A11: RPPTOU_ON | B11: 2088135.87 | C11: -150318.32
A12: Grand Total | B12: 10954164.64 | C12: -93608.41

Sheet I20 Input 10 Trueup Sett
A1: Date: | B1: =Admin!B8+9 -> 202110 | C1: Trueup | K1: ="Data for 1st True up of RPP Settlement based on Actual IESO Invoice" -> Data for 1st True up of RPP Settlement based on Actual IESO Invoice | P1: For Reconciliation
A3: Wholesale Electricty | B3: Year | C3: 2021 | E3: Rate | P3: Actual RPP Revenue and GA
B4: dateref | C4: 202110 | K4: Wholesale Volume data per IESO Power Bill: | L4: GA RPP/non-RPP Ratios | M4: GA Volumes | N4: Energy Volumes | P4: =B1 -> 202110
K5: AQEW | M5: =C10 -> 19267783.16 | N5: =+M5 -> 19267783.16 | P5: RPP Revenue Prices | Q5: RPP Rate | R5: Estimated RPP Energy Price | S5: GA actual IESO billed | T5: Total Commodity | U5: Difference | V5: kWh Volumes | W5: $ Estimated RPP Revenue | X5: $ Estimated RPP Energy | Y5: $ Estimated GA | Z5: $ Estimated RPP Settlement
B6: Wholesale | K6: Embedded Generation | M6: =SUM(C8:C9) -> 382425.04 | N6: =+M6 -> 382425.04 | P6: RPPT1 | Q6: =E20 -> 0.09799992709 | R6: =E42 -> 0.03931008124 | S6: =L32 -> 0.05239999771 | T6: =R6+S6 -> 0.09171007895 | U6: =+Q6-T6 -> 0.006289848132 | V6: =M18 -> 872382.7992 | W6: =Q6*V6 -> 85493.45072 | X6: =R6*V6 -> 34293.43871 | Y6: =+V6*S6 -> 45712.85668 | Z6: =W6-X6-Y6 -> 5487.15532
A7: FIT/mFIT | B7: Source | C7: kWh | D7: Total Cost | K7: Class A customer Volumes for GA (TLF included) | M7: =-B64 -> -5201602.38 | P7: RPPT2 | Q7: =E21 -> 0.115000575 | R7: =R6 -> 0.03931008124 | S7: =S6 -> 0.05239999771 | T7: =R7+S7 -> 0.09171007895 | U7: =+Q7-T7 -> 0.02329049603 | V7: =M19 -> 236983.6146 | W7: =Q7*V7 -> 27253.25194 | X7: =R7*V7 -> 9315.845144 | Y7: =+V7*S7 -> 12417.94086 | Z7: =W7-X7-Y7 -> 5519.465935
B8: FIT | C8: 362336.59 | D8: 16938.01 | E8: =D8/C8 -> 0.04674661756 | M8: =+M5+M6+M7 -> 14448605.82 | N8: =+N5+N6+N7 -> 19650208.2 | P8: RPPTOUMID | Q8: =E23 -> 0.1129978062 | R8: =E43 -> 0.03879087191 | S8: =S7 -> 0.05239999771 | T8: 0.09119086962 | U8: 0.02180693657 | V8: 1460458.01 | W8: 165028.5511 | X8: 56652.43958 | Y8: 76527.99636 | Z8: 31848.11517
B9: microFIT | C9: 20088.45 | D9: 934.5 | E9: =D9/C9 -> 0.04651926853 | P9: RPPTOUOFF | Q9: =E24 -> 0.08200012081 | R9: =R8 -> 0.03879087191 | S9: 0.05239999771 | T9: 0.09119086962 | U9: -0.009190748811 | V9: 5010304.208 | W9: 410845.5504 | X9: 194354.0688 | Y9: 262539.929 | Z9: -46048.44744
B10: WHOLESALE | C10: 19267783.16 | D10: 767907.3 | E10: =D10/C10 -> 0.03985447073 | K10: Estimated Retail Volume Revenue Data (TLF Included) | L10: RPP/non-RPP Ratios | M10: GA Volumes | N10: Energy Volumes | P10: RPPTOUON | Q10: 0.1699929553 | R10: =R9 -> 0.03879087191 | S10: 0.05239999771 | T10: 0.09119086962 | U10: 0.0788020857 | V10: 1480582.916 | W10: 251688.6655 | X10: 57433.10225 | Y10: 77582.54141 | Z10: 116673.0218
A11: Total Wholesale Electricity | B11: Grand Total | C11: 19650208.2 | D11: 785779.81 | K11: Estimated Retail Revenue Data (Net of Retail Billed/Unbilled) | M11: =+M15 -> 14448605.82 | N11: =+N15 -> 19650208.2 | P11: RPPULOMID | Q11: 0 | R11: 0 | S11: 0 | T11: 0 | U11: 0 | V11: 0 | W11: 0 | X11: 0 | Y11: 0 | Z11: 0
P12: RPPULOOFF | Q12: 0 | R12: 0 | S12: 0 | T12: 0 | U12: 0 | V12: 0 | W12: 0 | X12: 0 | Y12: 0 | Z12: 0
K13: Estimated RPP Sales Quantities | L13: =SUM(C20:C25)/(C30-B64) -> 0.6270993659 | M13: =M8*L13 -> 9060711.547 | N13: =M13 -> 9060711.547 | P13: RPPULOON | Q13: 0 | R13: 0 | S13: 0 | T13: 0 | U13: 0 | V13: 0 | W13: 0 | X13: 0 | Y13: 0 | Z13: 0
A14: RPP Revenue Volume and Price Data | K14: Estimated non-RPP Sales Quantities | L14: =1-L13 -> 0.3729006341 | M14: =M8*L14 -> 5387894.273 | N14: =N8-N13 -> 10589496.65 | P14: RPPULOOVN | Q14: 0 | R14: 0 | S14: 0 | T14: 0 | U14: 0 | V14: 0 | W14: 0 | X14: 0 | Y14: 0 | Z14: 0
B15: bill_year | C15: 2021 | K15: Estimated Retail Revenue kWh Volumes | L15: =+L13+L14 -> 1 | M15: =+M13+M14 -> 14448605.82 | N15: =+N13+N14 -> 19650208.2 | V15: =SUM(V6:V14) -> 9060711.547 | W15: =SUM(W6:W14) -> 940309.4696 | X15: =SUM(X6:X14) -> 352048.8945 | Y15: =SUM(Y6:Y14) -> 474781.2643 | Z15: =SUM(Z6:Z14) -> 113479.3108
B16: bill_month | C16: 10 | Z16: =W15-X15-Y15-Z15 -> 0
K17: Estimated RPP Revenue Volume and Price Data | L17: Actual % | M17: kWh Volumes
B18: Row Labels | C18: usagebilled | D18: amountbilled | E18: Rate | K18: RPPT1 | L18: =C20/SUM($C$20:$C$25) -> 0.09628193047 | M18: =$M$13*L18 -> 872382.7992
B19: RPPTIER | K19: RPPT2 | L19: =C21/SUM($C$20:$C$25) -> 0.02615507771 | M19: =$M$13*L19 -> 236983.6146
B20: RPPT1 | C20: 820752.2211 | D20: 80433.65783 | E20: =D20/C20 -> 0.09799992709 | K20: RPPTOUMID | L20: =C23/SUM($C$20:$C$25) -> 0.1611857967 | M20: 1460458.01
B21: RPPT2 | C21: 222958.1191 | D21: 25640.3119 | E21: =D21/C21 -> 0.115000575 | K21: RPPTOUOFF | L21: =C24/SUM($C$20:$C$25) -> 0.5529702807 | M21: 5010304.208
B22: RPPTOU | K22: RPPTOUON | L22: 0.1634069144 | M22: 1480582.916
B23: RPPTOUMID | C23: 1374023.142 | D23: 155261.6007 | E23: 0.1129978062 | K23: RPPULOMID | L23: 0 | M23: 0
B24: RPPTOUOFF | C24: 4713777.382 | D24: 386530.3148 | E24: 0.08200012081 | K24: RPPULOOFF | L24: 0 | M24: 0
B25: RPPTOUON | C25: 1392956.989 | D25: 236792.8751 | E25: 0.1699929553 | K25: RPPULOON | L25: 0 | M25: 0
B26: RETAIL | K26: RPPULOOVN | L26: 0 | M26: 0
B27: NSLS | C27: 3850109.131 | D27: 153623.3104 | E27: 0.03990102753 | L27: =SUM(L18:L26) -> 1 | M27: =SUM(M18:M26) -> 9060711.547
B28: INTERVAL
B29: HOEP | C29: 6420513.632 | D29: 251993.4147 | E29: 0.03924817065
B30: Grand Total | C30: 18795090.62 | D30: 1290275.486
K31: Global Adjustment | L31: per kWh
C32: =C30/C11-1 -> -0.04351697321 | K32: Class B - GA actual8 | L32: =B69/100 -> 0.05239999771 | N32: GA Posted Price
K33: Class B - GA actual IESO billed | L33: =+M33/M8 -> 0.05243219861 | M33: =B76 -> 757572.17 | N33: GA Billed by IESO CT 148
A37: RPP COP Volume and Price Data
B38: bill_year | C38: 2021
B39: bill_month | C39: 10
B41: Row Labels | C41: usagebilled | D41: amountbilled | E41: Rate
B42: RPPTIERED | C42: 1034567.403 | D42: 40668.92868 | E42: =D42/C42 -> 0.03931008124
B43: RPPTOU | C43: 7480196.841 | D43: 290163.3575 | E43: 0.03879087191
B44: Grand Total | C44: 8514764.244 | D44: 330832.2862
C46: =SUM(C20:C25)-C44 -> 9703.608963
C47: =C46/C44 -> 0.001139621566
A60: Year | B60: 2021
A62: Class A | B62: Value
A63: kWh
A64: 202110 | B64: 5201602.38
A67: ga_actual | B67: year
A68: month | B68: 2021
A69: 202110 | B69: 5.239999771
A72: chargetype | B72: 148
A74: Sum of chargeamount | B74: year
A75: month | B75: 2021
A76: 202110 | B76: 757572.17

Sheet I21 Input Rev 10 Init
A1: Reverse IESO Posted
A5: =Admin!B35 -> 202110
A6: RPP Revenue Prices | B6: kWh Volumes | C6: $ RPP Settlement
A7: RPPTiered_1 | B7: 770370.52 | C7: 12060.52
A8: RPPTiered_2 | B8: 230963.09 | C8: -264.18
A9: RPPTOU_MID | B9: 174506.69 | C9: 1897.07
A10: RPPTOU_OFF | B10: 385881.94 | C10: 151970.47
A11: RPPTOU_ON | B11: 1681771.41 | C11: -93694.78
A12: Grand Total | B12: 3243493.65 | C12: 71969.1

Sheet I22 Input 11 Trueup Sett
A1: Date: | B1: =Admin!B8+10 -> 202111 | C1: Trueup | K1: ="Data for 1st True up of RPP Settlement based on Actual IESO Invoice" -> Data for 1st True up of RPP Settlement based on Actual IESO Invoice | P1: For Reconciliation
A3: Wholesale Electricty | B3: Year | C3: 2021 | E3: Rate | P3: Actual RPP Revenue and GA
B4: dateref | C4: 202111 | K4: Wholesale Volume data per IESO Power Bill: | L4: GA RPP/non-RPP Ratios | M4: GA Volumes | N4: Energy Volumes | P4: =B1 -> 202111
K5: AQEW | M5: =C10 -> 20301812.34 | N5: =+M5 -> 20301812.34 | P5: RPP Revenue Prices | Q5: RPP Rate | R5: Estimated RPP Energy Price | S5: GA actual IESO billed | T5: Total Commodity | U5: Difference | V5: kWh Volumes | W5: $ Estimated RPP Revenue | X5: $ Estimated RPP Energy | Y5: $ Estimated GA | Z5: $ Estimated RPP Settlement
B6: Wholesale | K6: Embedded Generation | M6: =SUM(C8:C9) -> 315245.47 | N6: =+M6 -> 315245.47 | P6: RPPT1 | Q6: =E21 -> 0.09800033644 | R6: =E43 -> 0.03922776882 | S6: =L32 -> 0.05420000076 | T6: =R6+S6 -> 0.09342776958 | U6: =+Q6-T6 -> 0.004572566859 | V6: =M18 -> 1044014.317 | W6: =Q6*V6 -> 102313.7543 | X6: =R6*V6 -> 40954.35225 | Y6: =+V6*S6 -> 56585.57675 | Z6: =W6-X6-Y6 -> 4773.825264
A7: FIT/mFIT | B7: Source | C7: kWh | D7: Total Cost | K7: Class A customer Volumes for GA (TLF included) | M7: =-B64 -> -5033271.73 | P7: RPPT2 | Q7: =E22 -> 0.1149999536 | R7: =R6 -> 0.03922776882 | S7: =S6 -> 0.05420000076 | T7: =R7+S7 -> 0.09342776958 | U7: =+Q7-T7 -> 0.021572184 | V7: =M19 -> 256535.5367 | W7: =Q7*V7 -> 29501.57482 | X7: =R7*V7 -> 10063.31673 | Y7: =+V7*S7 -> 13904.22629 | Z7: =W7-X7-Y7 -> 5534.0318
B8: FIT | C8: 297083.41 | D8: 10841.77 | E8: =D8/C8 -> 0.03649402705 | M8: =+M5+M6+M7 -> 15583786.08 | N8: =+N5+N6+N7 -> 20617057.81 | P8: RPPTOUMID | Q8: =E24 -> 0.1129962554 | R8: =E44 -> 0.03983488102 | S8: =S7 -> 0.05420000076 | T8: 0.09403488178 | U8: 0.01896137363 | V8: 1598634.038 | W8: 180639.6601 | X8: 63681.39669 | Y8: 86645.96608 | Z8: 30312.29729
B9: microFIT | C9: 18162.06 | D9: 673.1 | E9: =D9/C9 -> 0.03706077394 | P9: RPPTOUOFF | Q9: =E25 -> 0.08199999065 | R9: =R8 -> 0.03983488102 | S9: 0.05420000076 | T9: 0.09403488178 | U9: -0.01203489113 | V9: 5017558.35 | W9: 411439.7378 | X9: 199873.8399 | Y9: 271951.6664 | Z9: -60385.7685
B10: WHOLESALE | C10: 20301812.34 | D10: 822926.23 | E10: =D10/C10 -> 0.04053461909 | K10: Estimated Retail Volume Revenue Data (TLF Included) | L10: RPP/non-RPP Ratios | M10: GA Volumes | N10: Energy Volumes | P10: RPPTOUON | Q10: 0.1699902204 | R10: =R9 -> 0.03983488102 | S10: 0.05420000076 | T10: 0.09403488178 | U10: 0.07595533859 | V10: 1668888.745 | W10: 283694.7655 | X10: 66479.98457 | Y10: 90453.77123 | Z10: 126761.0097
A11: Total Wholesale Electricity | B11: Grand Total | C11: 20617057.81 | D11: 834441.1 | K11: Estimated Retail Revenue Data (Net of Retail Billed/Unbilled) | M11: =+M15 -> 15583786.08 | N11: =+N15 -> 20617057.81 | P11: RPPULOMID | Q11: 0 | R11: 0 | S11: 0 | T11: 0 | U11: 0 | V11: 0 | W11: 0 | X11: 0 | Y11: 0 | Z11: 0
P12: RPPULOOFF | Q12: 0 | R12: 0 | S12: 0 | T12: 0 | U12: 0 | V12: 0 | W12: 0 | X12: 0 | Y12: 0 | Z12: 0
K13: Estimated RPP Sales Quantities | L13: =SUM(C21:C26)/(C31-B64) -> 0.6151028342 | M13: =M8*L13 -> 9585630.986 | N13: =M13 -> 9585630.986 | P13: RPPULOON | Q13: 0 | R13: 0 | S13: 0 | T13: 0 | U13: 0 | V13: 0 | W13: 0 | X13: 0 | Y13: 0 | Z13: 0
A14: RPP Revenue Volume and Price Data | K14: Estimated non-RPP Sales Quantities | L14: =1-L13 -> 0.3848971658 | M14: =M8*L14 -> 5998155.094 | N14: =N8-N13 -> 11031426.82 | P14: RPPULOOVN | Q14: 0 | R14: 0 | S14: 0 | T14: 0 | U14: 0 | V14: 0 | W14: 0 | X14: 0 | Y14: 0 | Z14: 0
K15: Estimated Retail Revenue kWh Volumes | L15: =+L13+L14 -> 1 | M15: =+M13+M14 -> 15583786.08 | N15: =+N13+N14 -> 20617057.81 | V15: =SUM(V6:V14) -> 9585630.986 | W15: =SUM(W6:W14) -> 1007589.492 | X15: =SUM(X6:X14) -> 381052.8901 | Y15: =SUM(Y6:Y14) -> 519541.2068 | Z15: =SUM(Z6:Z14) -> 106995.3955
B16: bill_year | C16: 2021
B17: bill_month | C17: 11 | K17: Estimated RPP Revenue Volume and Price Data | L17: Actual % | M17: kWh Volumes
K18: RPPT1 | L18: =C21/SUM($C$21:$C$26) -> 0.1089145115 | M18: =$M$13*L18 -> 1044014.317
B19: Row Labels | C19: usagebilled | D19: amountbilled | E19: Rate | K19: RPPT2 | L19: =C22/SUM($C$21:$C$26) -> 0.02676250913 | M19: =$M$13*L19 -> 256535.5367
B20: RPPTIER | K20: RPPTOUMID | L20: =C24/SUM($C$21:$C$26) -> 0.1667740017 | M20: 1598634.038
B21: RPPT1 | C21: 1036697.63 | D21: 101596.7165 | E21: =D21/C21 -> 0.09800033644 | K21: RPPTOUOFF | L21: =C25/SUM($C$21:$C$26) -> 0.5234458073 | M21: 5017558.35
B22: RPPT2 | C22: 254737.6781 | D22: 29294.82116 | E22: =D22/C22 -> 0.1149999536 | K22: RPPTOUON | L22: 0.1741031704 | M22: 1668888.745
B23: RPPTOU | K23: RPPULOMID | L23: 0 | M23: 0
B24: RPPTOUMID | C24: 1587430.452 | D24: 179373.6968 | E24: =D24/C24 -> 0.1129962554 | K24: RPPULOOFF | L24: 0 | M24: 0
B25: RPPTOUOFF | C25: 4982394.175 | D25: 408556.2757 | E25: 0.08199999065 | K25: RPPULOON | L25: 0 | M25: 0
B26: RPPTOUON | C26: 1657192.797 | D26: 281706.5688 | E26: 0.1699902204 | K26: RPPULOOVN | L26: 0 | M26: 0
B27: RETAIL | L27: =SUM(L18:L26) -> 1 | M27: =SUM(M18:M26) -> 9585630.986
B28: NSLS | C28: 3367038.041 | D28: 133098.4006 | E28: =D28/C28 -> 0.03952981789
B29: INTERVAL
B30: HOEP | C30: 7622352.365 | D30: 303676.7368 | E30: 0.03984029106
B31: Grand Total | C31: 20507843.14 | D31: 1437303.216 | E31: 0.07008553785 | K31: Global Adjustment | L31: per kWh
C32: =C31/C11-1 -> -0.005297296697 | K32: Class B - GA actual8 | L32: =B69/100 -> 0.05420000076 | N32: GA Posted Price
K33: Class B - GA actual IESO billed | L33: =+M33/M8 -> 0.05417669209 | M33: =B76 -> 844277.98 | N33: GA Billed by IESO CT 148
A38: RPP COP Volume and Price Data
B39: bill_year | C39: 2021
B40: bill_month | C40: 11
B42: Row Labels | C42: usagebilled | D42: amountbilled | E42: Rate
B43: RPPTIERED | C43: 1242620.847 | D43: 48745.24333 | E43: =D43/C43 -> 0.03922776882
B44: RPPTOU | C44: 8224463.165 | D44: 327620.5116 | E44: 0.03983488102
B45: Grand Total | C45: 9467084.013 | D45: 376365.755
C47: =SUM(C21:C26)-C45 -> 51368.71901
C48: =C47/C45 -> 0.005426033924
A60: Year | B60: 2021
A62: Class A | B62: Value
A63: kWh
A64: 202111 | B64: 5033271.73
A67: ga_actual | B67: year
A68: month | B68: 2021
A69: 202111 | B69: 5.420000076
A72: chargetype | B72: 148
A74: Sum of chargeamount | B74: year
A75: month | B75: 2021
A76: 202111 | B76: 844277.98

Sheet I23 Input Rev 11 Init
A1: Reverse IESO Posted
A5: =Admin!B38 -> 202111
A6: RPP Revenue Prices | B6: kWh Volumes | C6: $ RPP Settlement
A7: RPPTiered_1 | B7: 644284.86 | C7: 1379.24
A8: RPPTiered_2 | B8: 205860.59 | C8: -3055.17
A9: RPPTOU_MID | B9: 1292247.5 | C9: -16361.99
A10: RPPTOU_OFF | B10: 4542289.64 | C10: 83776.63
A11: RPPTOU_ON | B11: 1323196.78 | C11: -92235.09
A12: Grand Total | B12: 8007879.37 | C12: -26496.38

Sheet I24 Input 12 Trueup Sett
A1: Date: | B1: =Admin!B8+11 -> 202112 | C1: Trueup | K1: ="Data for 1st True up of RPP Settlement based on Actual IESO Invoice" -> Data for 1st True up of RPP Settlement based on Actual IESO Invoice | P1: For Reconciliation
A3: Wholesale Electricty | B3: Year | C3: 2021 | E3: Rate | P3: Actual RPP Revenue and GA
B4: dateref | C4: 202112 | K4: Wholesale Volume data per IESO Power Bill: | L4: GA RPP/non-RPP Ratios | M4: GA Volumes | N4: Energy Volumes | P4: =B1 -> 202112
K5: AQEW | M5: =C10 -> 21818493.95 | N5: =+M5 -> 21818493.95 | P5: RPP Revenue Prices | Q5: RPP Rate | R5: Estimated RPP Energy Price | S5: GA actual IESO billed | T5: Total Commodity | U5: Difference | V5: kWh Volumes | W5: $ Estimated RPP Revenue | X5: $ Estimated RPP Energy | Y5: $ Estimated GA | Z5: $ Estimated RPP Settlement
B6: Wholesale | K6: Embedded Generation | M6: =SUM(C8:C9) -> 152399.19 | N6: =+M6 -> 152399.19 | P6: RPPT1 | Q6: =E21 -> 0.09775829912 | R6: =E43 -> 0.03680903508 | S6: =L32 -> 0.0596999979 | T6: =R6+S6 -> 0.09650903299 | U6: =+Q6-T6 -> 0.001249266132 | V6: =M18 -> 1111446.15 | W6: =Q6*V6 -> 108653.0852 | X6: =R6*V6 -> 40911.26032 | Y6: =+V6*S6 -> 66353.33281 | Z6: =W6-X6-Y6 -> 1388.492033
A7: FIT/mFIT | B7: Source | C7: kWh | D7: Total Cost | K7: Class A customer Volumes for GA (TLF included) | M7: =-B64 -> -4547101.21 | P7: RPPT2 | Q7: =E22 -> 0.1142779231 | R7: =R6 -> 0.03680903508 | S7: =S6 -> 0.0596999979 | T7: =R7+S7 -> 0.09650903299 | U7: =+Q7-T7 -> 0.01776889012 | V7: =M19 -> 383245.7094 | W7: =Q7*V7 -> 43796.5237 | X7: =R7*V7 -> 14106.90476 | Y7: =+V7*S7 -> 22879.76804 | Z7: =W7-X7-Y7 -> 6809.850898
B8: FIT | C8: 143105.2 | D8: 4722.43 | E8: =D8/C8 -> 0.0329997093 | M8: =+M5+M6+M7 -> 17423791.93 | N8: =+N5+N6+N7 -> 21970893.14 | P8: RPPTOUMID | Q8: =E24 -> 0.1125536946 | R8: =E44 -> 0.03611873943 | S8: =S7 -> 0.0596999979 | T8: 0.09581873733 | U8: 0.01673495728 | V8: 1798836.713 | W8: 202465.7181 | X8: 64971.71452 | Y8: 107390.548 | Z8: 30103.45556
B9: microFIT | C9: 9293.99 | D9: 307.08 | E9: =D9/C9 -> 0.03304070695 | P9: RPPTOUOFF | Q9: =E25 -> 0.08200002239 | R9: =R8 -> 0.03611873943 | S9: 0.0596999979 | T9: 0.09581873733 | U9: -0.01381871494 | V9: 6376427.749 | W9: 522867.2182 | X9: 230308.5324 | Y9: 380672.7232 | Z9: -88114.03742
B10: WHOLESALE | C10: 21818493.95 | D10: 779617.53 | E10: =D10/C10 -> 0.03573195894 | K10: Estimated Retail Volume Revenue Data (TLF Included) | L10: RPP/non-RPP Ratios | M10: GA Volumes | N10: Energy Volumes | P10: RPPTOUON | Q10: 0.1688417656 | R10: =R9 -> 0.03611873943 | S10: 0.0596999979 | T10: 0.09581873733 | U10: 0.07302302827 | V10: 1824183.897 | W10: 307998.4299 | X10: 65887.22283 | Y10: 108903.7748 | Z10: 133207.4322
A11: Total Wholesale Electricity | B11: Grand Total | C11: 21970893.14 | D11: 784647.04 | K11: Estimated Retail Revenue Data (Net of Retail Billed/Unbilled) | M11: =+M15 -> 17423791.93 | N11: =+N15 -> 21970893.14 | P11: RPPULOMID | Q11: 0 | R11: =E45 -> 0 | S11: 0.0596999979 | T11: 0.0596999979 | U11: -0.0596999979 | V11: 0 | W11: 0 | X11: 0 | Y11: 0 | Z11: 0
P12: RPPULOOFF | Q12: 0 | R12: =R11 -> 0 | S12: 0.0596999979 | T12: 0.0596999979 | U12: -0.0596999979 | V12: 0 | W12: 0 | X12: 0 | Y12: 0 | Z12: 0
K13: Estimated RPP Sales Quantities | L13: =SUM(C21:C26)/(C31-B64) -> 0.6596807552 | M13: =M8*L13 -> 11494140.22 | N13: =M13 -> 11494140.22 | P13: RPPULOON | Q13: 0 | R13: =R12 -> 0 | S13: 0.0596999979 | T13: 0.0596999979 | U13: -0.0596999979 | V13: 0 | W13: 0 | X13: 0 | Y13: 0 | Z13: 0
A14: RPP Revenue Volume and Price Data | K14: Estimated non-RPP Sales Quantities | L14: =1-L13 -> 0.3403192448 | M14: =M8*L14 -> 5929651.712 | N14: =N8-N13 -> 10476752.92 | P14: RPPULOOVN | Q14: 0 | R14: 0 | S14: 0.0596999979 | T14: 0.0596999979 | U14: -0.0596999979 | V14: 0 | W14: 0 | X14: 0 | Y14: 0 | Z14: 0
K15: Estimated Retail Revenue kWh Volumes | L15: =+L13+L14 -> 1 | M15: =+M13+M14 -> 17423791.93 | N15: =+N13+N14 -> 21970893.14 | V15: =SUM(V6:V14) -> 11494140.22 | W15: =SUM(W6:W14) -> 1185780.975 | X15: =SUM(X6:X14) -> 416185.6348 | Y15: =SUM(Y6:Y14) -> 686200.1469 | Z15: =SUM(Z6:Z14) -> 83395.19331
B16: bill_year | C16: 2021
B17: bill_month | C17: 12 | K17: Estimated RPP Revenue Volume and Price Data | L17: Actual % | M17: kWh Volumes
K18: RPPT1 | L18: =C21/SUM($C$21:$C$26) -> 0.09669676275 | M18: =$M$13*L18 -> 1111446.15
B19: Row Labels | C19: usagebilled | D19: amountbilled | E19: Rate | K19: RPPT2 | L19: =C22/SUM($C$21:$C$26) -> 0.03334270351 | M19: =$M$13*L19 -> 383245.7094
B20: RPPTIER | K20: RPPTOUMID | L20: =C24/SUM($C$21:$C$26) -> 0.1565003279 | M20: 1798836.713
B21: RPPT1 | C21: 1081273.287 | D21: 105703.4374 | E21: =D21/C21 -> 0.09775829912 | K21: RPPTOUOFF | L21: =C25/SUM($C$21:$C$26) -> 0.5547546513 | M21: 6376427.749
B22: RPPT2 | C22: 372841.5885 | D22: 42607.56238 | E22: 0.1142779231 | K22: RPPTOUON | L22: 0.1587055545 | M22: 1824183.897
B23: RPPTOU | K23: RPPULOMID | L23: 0 | M23: 0
B24: RPPTOUMID | C24: 1750002.991 | D24: 196969.3022 | E24: 0.1125536946 | K24: RPPULOOFF | L24: 0 | M24: 0
B25: RPPTOUOFF | C25: 6203324.376 | D25: 508672.7377 | E25: 0.08200002239 | K25: RPPULOON | L25: 0 | M25: 0
B26: RPPTOUON | C26: 1774662.064 | D26: 299637.0762 | E26: 0.1688417656 | K26: RPPULOOVN | L26: 0 | M26: 0
B27: RETAIL | L27: =SUM(L18:L26) -> 1 | M27: =SUM(M18:M26) -> 11494140.22
B28: NSLS | C28: 3283750.628 | D28: 120661.4354 | E28: 0.03674500567
B29: INTERVAL
B30: HOEP | C30: 7032027.725 | D30: 251626.4908 | E30: 0.03578292075
B31: Grand Total | C31: 21497882.66 | D31: 1525878.042 | E31: 0.07097806172 | K31: Global Adjustment | L31: per kWh
C32: =C31/C11-1 -> -0.0215289601 | K32: Class B - GA actual8 | L32: =B69/100 -> 0.0596999979 | N32: GA Posted Price
K33: Class B - GA actual IESO billed | L33: =+M33/M8 -> 0.05967610347 | M33: =B76 -> 1039784.01 | N33: GA Billed by IESO CT 148
A38: RPP COP Volume and Price Data
B39: bill_year | C39: 2021
B40: bill_month | C40: 12
B42: Row Labels | C42: usagebilled | D42: amountbilled | E42: Rate
B43: RPPTIERED | C43: 1375531.155 | D43: 50631.97454 | E43: =D43/C43 -> 0.03680903508
B44: RPPTOU | C44: 9795803.017 | D44: 353812.0567 | E44: 0.03611873943
B45: Grand Total | C45: 11171334.17 | D45: 404444.0312
C47: =SUM(C21:C26)-C45 -> 10770.13392
C48: =C47/C45 -> 0.0009640866301
A60: Year | B60: 2021
A62: Class A | B62: Value
A63: kWh
A64: 202112 | B64: 4547101.21
A67: ga_actual | B67: year
A68: month | B68: 2021
A69: 202112 | B69: 5.96999979
A72: chargetype | B72: 148
A74: Sum of chargeamount | B74: year
A75: month | B75: 2021
A76: 202112 | B76: 1039784.01

Sheet I25 Input Rev 12 Init
A1: Reverse IESO Posted
A5: =Admin!B41 -> 202112
A6: RPP Revenue Prices | B6: kWh Volumes | C6: $ RPP Settlement
A7: RPPTiered_1 | B7: 894149.32 | C7: 1200.12
A8: RPPTiered_2 | B8: 228723.42 | C8: -3579.35
A9: RPPTOU_MID | B9: 1574720.73 | C9: -21768.06
A10: RPPTOU_OFF | B10: 4920280.29 | C10: 84562.45
A11: RPPTOU_ON | B11: 1641347.15 | C11: -116249.48
A12: Grand Total | B12: 9259220.91 | C12: -55834.32

Sheet Rec1 1588 Commodity
A1: Lakefront Utilities Inc.
A2: =ProcessYear[Process Year]& " 1588 Commodity RSVA" -> 2021 1588 Commodity RSVA
A3: Commodity
B5: 4006-4055 | E5: 4705 | L5: 1588
B6: GL Revenue | C6: Unbilled | D6: Total Revenue | E6: Energy Cost (code 101) | F6: RPP GA (code 148) | G6: IESO RPP Settlement | H6: FIT/mFIT | I6: Misc | J6: IESO Code 118 - Energy Rebate | K6: Total Cost | L6: Variance | M6: Y.T.D. | N6: G.L. Balance
A7: Opening Balance
A8: January | B8: -1628531.07 | C8: =D8-B8 -> 374196.8967 | D8: =-'I1a ER Summary'!AF5 -> -1254334.173 | E8: ='I1a ER Summary'!K5 -> 397134.38 | F8: ='I1a ER Summary'!E5 -> 767072.9483 | G8: ='I1a ER Summary'!F5 -> -73379.10657 | H8: ='I1a ER Summary'!M5 -> 4214.89 | K8: =SUM(E8:J8) -> 1095043.112 | L8: =D8+K8 -> -159291.0616 | M8: =L8 -> -159291.0616 | N8: =N7+L8 -> -159291.0616
A9: February | B9: -1263419.71 | C9: =D9-B9 -> -90482.76919 | D9: =-'I1a ER Summary'!AF6 -> -1353902.479 | E9: ='I1a ER Summary'!K6 -> 728731.31 | F9: ='I1a ER Summary'!E6 -> 477041.8627 | G9: ='I1a ER Summary'!F6 -> 105083.6504 | H9: ='I1a ER Summary'!M6 -> 9852.6 | K9: 1320709.423 | L9: -33193.05608 | M9: =M8+L9 -> -192484.1177 | N9: =N8+L9 -> -192484.1177
A10: March | B10: -1407759.23 | C10: 112284.5435 | D10: =-'I1a ER Summary'!AF7 -> -1295474.687 | E10: ='I1a ER Summary'!K7 -> 376883.3 | F10: ='I1a ER Summary'!E7 -> 940491.9622 | G10: ='I1a ER Summary'!F7 -> -17127.98552 | H10: ='I1a ER Summary'!M7 -> 9809.5 | K10: 1310056.777 | L10: 14582.09013 | M10: =M9+L10 -> -177902.0275 | N10: -177902.0275
A11: April | B11: -1357325.31 | C11: 322806.1214 | D11: =-'I1a ER Summary'!AF8 -> -1034519.189 | E11: ='I1a ER Summary'!K8 -> 168858.13 | F11: ='I1a ER Summary'!E8 -> 1002303.58 | G11: ='I1a ER Summary'!F8 -> -122140.3367 | H11: ='I1a ER Summary'!M8 -> 4713.92 | K11: 1053735.293 | L11: 19216.10437 | M11: -158685.9232 | N11: -158685.9232
A12: May | B12: -1050973.5 | C12: -5539.706165 | D12: =-'I1a ER Summary'!AF9 -> -1056513.206 | E12: ='I1a ER Summary'!K9 -> 269227.1 | F12: ='I1a ER Summary'!E9 -> 772208.045 | G12: ='I1a ER Summary'!F9 -> -85232.19752 | H12: ='I1a ER Summary'!M9 -> 13755.51 | K12: 969958.4575 | L12: -86554.7487 | M12: -245240.6719 | N12: -245240.6719
A13: June | B13: -998786.42 | C13: -230078.6589 | D13: =-'I1a ER Summary'!AF10 -> -1228865.079 | E13: ='I1a ER Summary'!K10 -> 523303.7 | F13: ='I1a ER Summary'!E10 -> 786885.9232 | G13: ='I1a ER Summary'!F10 -> -58464.34337 | H13: ='I1a ER Summary'!M10 -> 28070.47 | K13: 1279795.75 | L13: 50930.671 | M13: -194310.0009 | N13: -194310.0009
A14: July | B14: -1237698.82 | C14: -166526.3411 | D14: =-'I1a ER Summary'!AF11 -> -1404225.161 | E14: ='I1a ER Summary'!K11 -> 574687.63 | F14: ='I1a ER Summary'!E11 -> 726064.669 | G14: ='I1a ER Summary'!F11 -> 19665.31727 | H14: ='I1a ER Summary'!M11 -> 23669.34 | K14: 1344086.956 | L14: -60138.20479 | M14: -254448.2057 | N14: -254448.2057
A15: August | B15: -1373073.52 | C15: -349142.7203 | D15: =-'I1a ER Summary'!AF12 -> -1722216.24 | E15: ='I1a ER Summary'!K12 -> 1007822.39 | F15: ='I1a ER Summary'!E12 -> 533021.4652 | G15: ='I1a ER Summary'!F12 -> 217167.1273 | H15: ='I1a ER Summary'!M12 -> 40824.42 | K15: 1798835.403 | L15: 76619.16222 | M15: -177829.0434 | N15: -177829.0434
A16: September | B16: -1656447.69 | C16: 398477.2883 | D16: =-'I1a ER Summary'!AF13 -> -1257970.402 | E16: ='I1a ER Summary'!K13 -> 575531.83 | F16: ='I1a ER Summary'!E13 -> 684048.917 | G16: ='I1a ER Summary'!F13 -> -66371.78023 | H16: ='I1a ER Summary'!M13 -> 23615.08 | K16: 1216824.047 | L16: -41146.35493 | M16: -218975.3984 | N16: -218975.3984
A17: October | B17: -1300587.54 | C17: 10312.05448 | D17: =-'I1a ER Summary'!AF14 -> -1290275.486 | E17: ='I1a ER Summary'!K14 -> 767907.3 | F17: ='I1a ER Summary'!E14 -> 474781.2643 | G17: ='I1a ER Summary'!F14 -> 113479.3108 | H17: ='I1a ER Summary'!M14 -> 17872.51 | K17: 1374040.385 | L17: 83764.89965 | M17: -135210.4987 | N17: -135210.4987
A18: November | B18: -1274217.69 | C18: -163085.5264 | D18: =-'I1a ER Summary'!AF15 -> -1437303.216 | E18: ='I1a ER Summary'!K15 -> 822926.23 | F18: ='I1a ER Summary'!E15 -> 519541.2068 | G18: ='I1a ER Summary'!F15 -> 106995.3955 | H18: ='I1a ER Summary'!M15 -> 11514.87 | K18: 1460977.702 | L18: 23674.48592 | M18: -111536.0128 | N18: -111536.0128
A19: December | B19: -1413988.88 | C19: -111889.1622 | D19: =-'I1a ER Summary'!AF16 -> -1525878.042 | E19: ='I1a ER Summary'!K16 -> 779617.53 | F19: ='I1a ER Summary'!E16 -> 686200.1469 | G19: ='I1a ER Summary'!F16 -> 83395.19331 | H19: ='I1a ER Summary'!M16 -> 5029.51 | K19: 1554242.38 | L19: 28364.33806 | M19: -83171.67475 | N19: -83171.67475
B20: =SUM(B8:B19) -> -15962809.38 | C20: =SUM(C8:C19) -> 101332.0202 | D20: -15861477.36 | E20: 6992630.83 | F20: 8369661.99 | G20: 223070.2447 | H20: 192942.62 | I20: 0 | J20: 0 | K20: 15778305.69 | L20: -83171.67475
A22: Per GL | F22: 8855224.78 | G22: -508307.28
A23: Adjustments | F23: =F20-F22 -> -485562.7897 | G23: =G20-G22 -> 731377.5247
F25: 4705-0002 | G25: 4705-0001

Sheet Rec2 1589 Class B
A1: Lakefront Utilities Inc.
A2: =ProcessYear[Process Year]& " 1589 ClassB RSVA" -> 2021 1589 ClassB RSVA
A3: Global Adjustment Class B Only
B5: 4006-4055 | E5: 4707 | K5: 1589
B6: Revenue - Class B only | C6: Unbilled | D6: Total Revenue | E6: IESO Code 148 | F6: RPP GA (code 148) | G6: Class B GA (Code 148) | H6: Class B Deferral | I6: Misc | J6: Class B GA | K6: Variance | L6: Y.T.D. | M6: G.L. Balance
A7: Opening Balance
A8: January | B8: -620975.61 | C8: =D8-B8 -> 93328.79902 | D8: -527646.811 | E8: ='I1a ER Summary'!Q5 -> 1438730.59 | F8: =-'Rec1 1588 Commodity'!F8 -> -767072.9483 | G8: =E8+F8 -> 671657.6417 | H8: 31563.92 | J8: =SUM(G8:I8) -> 703221.5617 | K8: =D8+J8 -> 175574.7507 | L8: =K8 -> 175574.7507 | M8: =M7+K8 -> 175574.7507
A9: February | B9: -512503.93 | C9: =D9-B9 -> -33560.30032 | D9: -546064.2303 | E9: ='I1a ER Summary'!Q6 -> 818026.98 | F9: =-'Rec1 1588 Commodity'!F9 -> -477041.8627 | G9: =E9+F9 -> 340985.1173 | H9: 33722.84 | J9: =SUM(G9:I9) -> 374707.9573 | K9: =D9+J9 -> -171356.273 | L9: =L8+K9 -> 4218.477728 | M9: =M8+K9 -> 4218.477728
A10: March | B10: -558878.09 | C10: 83922.16573 | D10: -474955.9243 | E10: ='I1a ER Summary'!Q7 -> 1456589.41 | F10: =-'Rec1 1588 Commodity'!F10 -> -940491.9622 | G10: 516097.4478 | H10: 25645.53 | J10: 541742.9778 | K10: 66787.05357 | L10: =L9+K10 -> 71005.5313 | M10: 71005.5313
A11: April | B11: -483098.13 | C11: 128905.5198 | D11: -354192.6102 | E11: ='I1a ER Summary'!Q8 -> 1491779.08 | F11: =-'Rec1 1588 Commodity'!F11 -> -1002303.58 | G11: 489475.5003 | H11: 18758.49 | J11: 508233.9903 | K11: 154041.3801 | L11: 225046.9114 | M11: 225046.9114
A12: May | B12: -360315.79 | C12: -333719.1608 | D12: -694034.9508 | E12: ='I1a ER Summary'!Q9 -> 1356317.21 | F12: =-'Rec1 1588 Commodity'!F12 -> -772208.045 | G12: 584109.165 | H12: 28916.85 | J12: 613026.015 | K12: -81008.93577 | L12: 144037.9756 | M12: 144037.9756
A13: June | B13: -526201.54 | C13: -91226.24471 | D13: -617427.7847 | E13: ='I1a ER Summary'!Q10 -> 1270505.22 | F13: =-'Rec1 1588 Commodity'!F13 -> -786885.9232 | G13: 483619.2968 | H13: 39182.69 | J13: 522801.9868 | K13: -94625.79794 | L13: 49412.17771 | M13: 49412.17771
A14: July | B14: -624114.41 | C14: 154098.7948 | D14: -470015.6152 | E14: ='I1a ER Summary'!Q11 -> 1194083.07 | F14: =-'Rec1 1588 Commodity'!F14 -> -726064.669 | G14: 468018.401 | H14: 40206.71 | J14: 508225.111 | K14: 38209.49571 | L14: 87621.67342 | M14: 87621.67342
A15: August | B15: -458602.17 | C15: -113012.0974 | D15: -571614.2674 | E15: ='I1a ER Summary'!Q12 -> 864253.49 | F15: =-'Rec1 1588 Commodity'!F15 -> -533021.4652 | G15: 331232.0248 | H15: 44820.99 | J15: 376053.0148 | K15: -195561.2526 | L15: -107939.5792 | M15: -107939.5792
A16: September | B16: -547215.42 | C16: 205825.7906 | D16: -341389.6294 | E16: ='I1a ER Summary'!Q13 -> 1091503.51 | F16: =-'Rec1 1588 Commodity'!F16 -> -684048.917 | G16: 407454.593 | H16: 23207.25 | J16: 430661.843 | K16: 89272.21359 | L16: -18667.36563 | M16: -18667.36563
A17: October | B17: -376573.77 | C17: -52815.2404 | D17: -429389.0104 | E17: ='I1a ER Summary'!Q14 -> 757572.17 | F17: =-'Rec1 1588 Commodity'!F17 -> -474781.2643 | G17: 282790.9057 | H17: 66813.81 | J17: 349604.7157 | K17: -79784.29474 | L17: -98451.66038 | M17: -98451.66038
A18: November | B18: -429178 | C18: 52000.4618 | D18: -377177.5382 | E18: ='I1a ER Summary'!Q15 -> 844277.98 | F18: =-'Rec1 1588 Commodity'!F18 -> -519541.2068 | G18: 324736.7732 | H18: 45086.23 | J18: 369823.0032 | K18: -7354.534954 | L18: -105806.1953 | M18: -105806.1953
A19: December | B19: -380833.69 | C19: 46569.12242 | D19: -334264.5676 | E19: ='I1a ER Summary'!Q16 -> 1039784.01 | F19: =-'Rec1 1588 Commodity'!F19 -> -686200.1469 | G19: 353583.8631 | H19: 44684.92 | J19: 398268.7831 | K19: 64004.21552 | L19: -41801.97981 | M19: -41801.97981
B20: =SUM(B8:B19) -> -5878490.55 | C20: 140317.6105 | D20: -5738172.939 | E20: 13623422.72 | F20: -8369661.99 | G20: 5253760.73 | H20: 442610.23 | I20: 0 | J20: 5696370.96 | K20: -41801.97981
A22: Per GL | J22: 5210808.17
A23: Adjustments | J23: =J20-J22 -> 485562.7897
J25: 4707-0000

Sheet Rev1UFE
A1: Lakefront Utilities Inc.
A2: 2023 RSVA
A3: Unaccounted for Energy Summary For USoA 1588
C5: Total Energy Purchases | D5: Total Retail Sales | E5: Uaccounted for Energy | F5: UFE | G5: Total Energy Purchases | H5: Total Retail Sales | I5: UFE | J5: UFE | N5: Energy Purchases RPP and non-RPP | P5: RPP Settlement Amounts | T5: Energy Sales Revenue | V5: Energy Sales Volumes | X5: Energy Sales/kWh
B6: Version | C6: kWH | D6: kWh | E6: kWh | F6: % | G6: $ Amount | H6: $ Amount | I6: $ Amount | J6: % | K6: Revenue Per kWh | L6: UFE $ Cost per kWh | N6: Energy for RPP and non-RPP | O6: Final GA for RPP | P6: Initial Settlement | Q6: First True-Up | R6: Final True-Up | S6: RPP Settlement Amount | T6: RPP Sales | U6: Non-RPP Sales | V6: RPP kWh | W6: Non-RPP kWH | X6: RPP | Y6: Non-RPP
A7: January | B7: Final | C7: ='I1a ER Summary'!S5 -> 22985580.02 | D7: ='I1a ER Summary'!T5 -> 25478938.36 | E7: =+C7-D7 -> -2493358.345 | F7: =+E7/C7 -> -0.1084748935 | G7: =+N7+O7+S7 -> 1095043.112 | H7: =+T7+U7 -> 1254334.173 | I7: =+G7-H7 -> -159291.0616 | J7: =+I7/G7 -> -0.1454655619 | K7: =+H7/D7 -> 0.04923023696 | L7: =+I7/E7 -> 0.06388614854 | N7: ='I1a ER Summary'!O5 -> 401349.27 | O7: ='I1a ER Summary'!E5 -> 767072.9483 | P7: 0 | Q7: 0 | R7: ='I1a ER Summary'!F5 -> -73379.10657 | S7: =SUM(P7:R7) -> -73379.10657 | T7: ='I1a ER Summary'!C5 -> 870246.0484 | U7: ='I1a ER Summary'!AH5 -> 384088.1249 | V7: ='I1a ER Summary'!AJ5 -> 10570781.29 | W7: ='I1a ER Summary'!AK5 -> 14908157.07 | X7: =+T7/V7 -> 0.08232561286 | Y7: 0.02576362209
A8: February | B8: Final | C8: ='I1a ER Summary'!S6 -> 21968725.78 | D8: ='I1a ER Summary'!T6 -> 23085737.51 | E8: =+C8-D8 -> -1117011.726 | F8: =+E8/C8 -> -0.05084554001 | G8: =+N8+O8+S8 -> 1320709.423 | H8: =+T8+U8 -> 1353902.479 | I8: =+G8-H8 -> -33193.05608 | J8: =+I8/G8 -> -0.02513274722 | K8: =+H8/D8 -> 0.05864670682 | L8: 0.02971594238 | N8: ='I1a ER Summary'!O6 -> 738583.91 | O8: ='I1a ER Summary'!E6 -> 477041.8627 | P8: 0 | Q8: 0 | R8: ='I1a ER Summary'!F6 -> 105083.6504 | S8: 105083.6504 | T8: ='I1a ER Summary'!C6 -> 871262.835 | U8: ='I1a ER Summary'!AH6 -> 482639.6442 | V8: ='I1a ER Summary'!AJ6 -> 10116763.55 | W8: ='I1a ER Summary'!AK6 -> 12968973.96 | X8: 0.08612070754 | Y8: 0.03721494436
A9: March | B9: Final | C9: ='I1a ER Summary'!S7 -> 22229990.11 | D9: ='I1a ER Summary'!T7 -> 22064670.3 | E9: 165319.8126 | F9: 0.007436792 | G9: 1310056.777 | H9: 1295474.687 | I9: 14582.09013 | J9: 0.01113088408 | K9: 0.0587126238 | L9: 0.08820533907 | N9: ='I1a ER Summary'!O7 -> 386692.8 | O9: ='I1a ER Summary'!E7 -> 940491.9622 | P9: 0 | Q9: 0 | R9: ='I1a ER Summary'!F7 -> -17127.98552 | S9: -17127.98552 | T9: ='I1a ER Summary'!C7 -> 1109698.563 | U9: ='I1a ER Summary'!AH7 -> 185776.1237 | V9: ='I1a ER Summary'!AJ7 -> 10251099.41 | W9: ='I1a ER Summary'!AK7 -> 11813570.89 | X9: 0.1082516634 | Y9: 0.01572565361
A10: April | B10: Final | C10: ='I1a ER Summary'!S8 -> 19379170.16 | D10: ='I1a ER Summary'!T8 -> 18774391.41 | E10: 604778.7546 | F10: 0.03120767038 | G10: 1053735.293 | H10: 1034519.189 | I10: 19216.10437 | J10: 0.018236178 | K10: 0.05510267504 | L10: 0.03177377549 | N10: ='I1a ER Summary'!O8 -> 173572.05 | O10: ='I1a ER Summary'!E8 -> 1002303.58 | P10: 0 | Q10: 0 | R10: ='I1a ER Summary'!F8 -> -122140.3367 | S10: -122140.3367 | T10: ='I1a ER Summary'!C8 -> 986152.1537 | U10: ='I1a ER Summary'!AH8 -> 48367.03491 | V10: ='I1a ER Summary'!AJ8 -> 8763706.637 | W10: ='I1a ER Summary'!AK8 -> 10010684.77 | X10: 0.1125268331 | Y10: 0.004831541101
A11: May | B11: Final | C11: ='I1a ER Summary'!S9 -> 19300035.6 | D11: ='I1a ER Summary'!T9 -> 20488362.36 | E11: -1188326.761 | F11: -0.06157122119 | G11: 969958.4575 | H11: 1056513.206 | I11: -86554.7487 | J11: -0.08923552141 | K11: 0.05156650334 | L11: 0.07283749853 | N11: ='I1a ER Summary'!O9 -> 282982.61 | O11: ='I1a ER Summary'!E9 -> 772208.045 | P11: 0 | Q11: 0 | R11: ='I1a ER Summary'!F9 -> -85232.19752 | S11: -85232.19752 | T11: ='I1a ER Summary'!C9 -> 806273.8941 | U11: ='I1a ER Summary'!AH9 -> 250239.3121 | V11: ='I1a ER Summary'!AJ9 -> 8360478.103 | W11: ='I1a ER Summary'!AK9 -> 12127884.26 | X11: 0.09643873043 | Y11: 0.02063338557
A12: June | B12: Final | C12: ='I1a ER Summary'!S10 -> 20464486.53 | D12: ='I1a ER Summary'!T10 -> 20139336.82 | E12: 325149.7123 | F12: 0.01588848622 | G12: 1279795.75 | H12: 1228865.079 | I12: 50930.671 | J12: 0.03979593697 | K12: 0.0610181502 | L12: 0.1566376013 | N12: ='I1a ER Summary'!O10 -> 551374.17 | O12: ='I1a ER Summary'!E10 -> 786885.9232 | P12: 0 | Q12: 0 | R12: ='I1a ER Summary'!F10 -> -58464.34337 | S12: -58464.34337 | T12: ='I1a ER Summary'!C10 -> 963795.227 | U12: ='I1a ER Summary'!AH10 -> 265069.8519 | V12: ='I1a ER Summary'!AJ10 -> 8916599.361 | W12: ='I1a ER Summary'!AK10 -> 11222737.46 | X12: 0.1080900002 | Y12: 0.02361900141
A13: July | B13: Final | C13: ='I1a ER Summary'!S11 -> 21502592.18 | D13: ='I1a ER Summary'!T11 -> 22023959.21 | E13: -521367.0277 | F13: -0.02424670585 | G13: 1344086.956 | H13: 1404225.161 | I13: -60138.20479 | J13: -0.04474279324 | K13: 0.06375897939 | L13: 0.1153471578 | N13: ='I1a ER Summary'!O11 -> 598356.97 | O13: ='I1a ER Summary'!E11 -> 726064.669 | P13: 0 | Q13: 0 | R13: ='I1a ER Summary'!F11 -> 19665.31727 | S13: 19665.31727 | T13: ='I1a ER Summary'!C11 -> 1040662.216 | U13: ='I1a ER Summary'!AH11 -> 363562.9452 | V13: ='I1a ER Summary'!AJ11 -> 10182024.82 | W13: ='I1a ER Summary'!AK11 -> 11841934.39 | X13: 0.102205822 | Y13: 0.03070131393
A14: August | B14: Final | C14: ='I1a ER Summary'!S12 -> 23793592.14 | D14: ='I1a ER Summary'!T12 -> 23420872.42 | E14: 372719.7248 | F14: 0.01566471017 | G14: 1798835.403 | H14: 1722216.24 | I14: 76619.16222 | J14: 0.04259375934 | K14: 0.07353339405 | L14: 0.2055677688 | N14: ='I1a ER Summary'!O12 -> 1048646.81 | O14: ='I1a ER Summary'!E12 -> 533021.4652 | P14: 0 | Q14: 0 | R14: ='I1a ER Summary'!F12 -> 217167.1273 | S14: 217167.1273 | T14: ='I1a ER Summary'!C12 -> 1231684.664 | U14: ='I1a ER Summary'!AH12 -> 490531.5759 | V14: ='I1a ER Summary'!AJ12 -> 11357576.35 | W14: ='I1a ER Summary'!AK12 -> 12063296.07 | X14: 0.1084460827 | Y14: 0.04066314656
A15: September | B15: Final | C15: ='I1a ER Summary'!S13 -> 19441602.94 | D15: ='I1a ER Summary'!T13 -> 19160671.71 | E15: 280931.2318 | F15: 0.01445000357 | G15: 1216824.047 | H15: 1257970.402 | I15: -41146.35493 | J15: -0.03381454783 | K15: 0.06565377357 | L15: -0.146464153 | N15: ='I1a ER Summary'!O13 -> 599146.91 | O15: ='I1a ER Summary'!E13 -> 684048.917 | P15: 0 | Q15: 0 | R15: ='I1a ER Summary'!F13 -> -66371.78023 | S15: -66371.78023 | T15: ='I1a ER Summary'!C13 -> 955285.4048 | U15: ='I1a ER Summary'!AH13 -> 302684.9969 | V15: ='I1a ER Summary'!AJ13 -> 8860377.18 | W15: ='I1a ER Summary'!AK13 -> 10300294.53 | X15: 0.1078154333 | Y15: 0.02938605261
A16: October | B16: Final | C16: ='I1a ER Summary'!S14 -> 19650208.2 | D16: ='I1a ER Summary'!T14 -> 18795090.62 | E16: 855117.5838 | F16: 0.04351697321 | G16: 1374040.385 | H16: 1290275.486 | I16: 83764.89965 | J16: 0.06096247283 | K16: 0.06864960174 | L16: 0.09795717131 | N16: ='I1a ER Summary'!O14 -> 785779.81 | O16: ='I1a ER Summary'!E14 -> 474781.2643 | P16: 0 | Q16: 0 | R16: ='I1a ER Summary'!F14 -> 113479.3108 | S16: 113479.3108 | T16: ='I1a ER Summary'!C14 -> 940309.4696 | U16: ='I1a ER Summary'!AH14 -> 349966.0159 | V16: ='I1a ER Summary'!AJ14 -> 8524467.853 | W16: ='I1a ER Summary'!AK14 -> 10270622.76 | X16: 0.1103071166 | Y16: 0.0340744689
A17: November | B17: Final | C17: ='I1a ER Summary'!S15 -> 20617057.81 | D17: ='I1a ER Summary'!T15 -> 20507843.14 | E17: 109214.6722 | F17: 0.005297296697 | G17: 1460977.702 | H17: 1437303.216 | I17: 23674.48592 | J17: 0.01620454979 | K17: 0.07008553785 | L17: 0.2167701961 | N17: ='I1a ER Summary'!O15 -> 834441.1 | O17: ='I1a ER Summary'!E15 -> 519541.2068 | P17: 0 | Q17: 0 | R17: ='I1a ER Summary'!F15 -> 106995.3955 | S17: 106995.3955 | T17: ='I1a ER Summary'!C15 -> 1007589.492 | U17: ='I1a ER Summary'!AH15 -> 429713.7239 | V17: ='I1a ER Summary'!AJ15 -> 7861259.934 | W17: ='I1a ER Summary'!AK15 -> 12646583.2 | X17: 0.1281715019 | Y17: 0.03397864206
A18: December | B18: Final | C18: ='I1a ER Summary'!S16 -> 21970893.14 | D18: ='I1a ER Summary'!T16 -> 21497882.66 | E18: 473010.4818 | F18: 0.0215289601 | G18: 1554242.38 | H18: 1525878.042 | I18: 28364.33806 | J18: 0.01824962337 | K18: 0.07097806172 | L18: 0.05996555923 | N18: ='I1a ER Summary'!O16 -> 784647.04 | O18: ='I1a ER Summary'!E16 -> 686200.1469 | P18: 0 | Q18: 0 | R18: ='I1a ER Summary'!F16 -> 83395.19331 | S18: 83395.19331 | T18: ='I1a ER Summary'!C16 -> 1185780.975 | U18: ='I1a ER Summary'!AH16 -> 340097.0672 | V18: ='I1a ER Summary'!AJ16 -> 9407442.242 | W18: ='I1a ER Summary'!AK16 -> 12090440.42 | X18: 0.1260471172 | Y18: 0.02812941923
A19: Total | C19: =SUM(C7:C18) -> 253303934.6 | D19: =SUM(D7:D18) -> 255437756.5 | E19: =SUM(E7:E18) -> -2133821.885 | F19: -0.008423958705 | G19: =SUM(G7:G18) -> 15778305.69 | H19: =SUM(H7:H18) -> 15861477.36 | I19: =SUM(I7:I18) -> -83171.67475 | J19: -0.005271267803 | K19: 0.06209527353 | L19: 0.03897779629 | N19: =SUM(N7:N18) -> 7185573.45 | O19: 8369661.99 | P19: 0 | Q19: 0 | R19: 223070.2447 | S19: 223070.2447 | T19: 11382095.66 | U19: 3626059.63 | V19: 113172576.7 | W19: 142265179.8 | X19: 0.1005729126 | Y19: 0.02548803323

Sheet Rev2 GA Purchases
A1: Lakefront Utilities Inc.
A2: 2023 RSVA
A3: Non-RPP Global Adjustment
B5: Non-RPP Class B GA | E5: RPP Class B GA | H5: Total Class B GA | M5: GA non-RPP Cost Amounts Booked
B6: Cost Amount | C6: kWh | D6: Avg Cost | E6: Cost Amount | F6: kWh | G6: Avg Cost | H6: Cost Amount | I6: kWh | J6: Avg Cost | M6: G/L 4707 | N6: True-Ups | O6: Total | P6: Difference
A7: January | B7: ='Rec2 1589 Class B'!J8 -> 703221.5617 | C7: ='I1a ER Summary'!AK5 -> 14908157.07 | D7: =+B7/C7 -> 0.0471702544 | E7: ='Rec1 1588 Commodity'!F8 -> 767072.9483 | F7: ='I1a ER Summary'!AJ5 -> 10570781.29 | G7: =+E7/F7 -> 0.07256539768 | H7: =+B7+E7 -> 1470294.51 | I7: 25478938.36 | J7: =+H7/I7 -> 0.05770627053 | M7: 368354.797 | O7: =+M7+N7 -> 368354.797 | P7: =+O7-B7 -> -334866.7648
A8: February | B8: ='Rec2 1589 Class B'!J9 -> 374707.9573 | C8: ='I1a ER Summary'!AK6 -> 12968973.96 | D8: 0.02889264475 | E8: ='Rec1 1588 Commodity'!F9 -> 477041.8627 | F8: ='I1a ER Summary'!AJ6 -> 10116763.55 | G8: 0.04715360405 | H8: 851749.82 | I8: 23085737.51 | J8: 0.03689506648 | M8: 517400.4514 | O8: =+M8+N8 -> 517400.4514 | P8: 142692.4941
A9: March | B9: ='Rec2 1589 Class B'!J10 -> 541742.9778 | C9: ='I1a ER Summary'!AK7 -> 11813570.89 | D9: 0.04585768206 | E9: ='Rec1 1588 Commodity'!F10 -> 940491.9622 | F9: ='I1a ER Summary'!AJ7 -> 10251099.41 | G9: 0.09174547283 | H9: 1482234.94 | I9: 22064670.3 | J9: 0.06717684516 | M9: 550805.5586 | O9: =+N9+M9 -> 550805.5586 | P9: 9062.580767
A10: April | B10: ='Rec2 1589 Class B'!J11 -> 508233.9903 | C10: ='I1a ER Summary'!AK8 -> 10010684.77 | D10: 0.05076915336 | E10: ='Rec1 1588 Commodity'!F11 -> 1002303.58 | F10: ='I1a ER Summary'!AJ8 -> 8763706.637 | G10: 0.1143698233 | H10: 1510537.57 | I10: 18774391.41 | J10: 0.0804573388 | M10: 582775.4046 | O10: 582775.4046 | P10: 74541.41427
A11: May | B11: ='Rec2 1589 Class B'!J12 -> 613026.015 | C11: ='I1a ER Summary'!AK9 -> 12127884.26 | D11: 0.05054682268 | E11: ='Rec1 1588 Commodity'!F12 -> 772208.045 | F11: ='I1a ER Summary'!AJ9 -> 8360478.103 | G11: 0.09236410113 | H11: 1385234.06 | I11: 20488362.36 | J11: 0.06761077511 | M11: 606116.3272 | O11: 606116.3272 | P11: -6909.687829
A12: June | B12: ='Rec2 1589 Class B'!J13 -> 522801.9868 | C12: ='I1a ER Summary'!AK10 -> 11222737.46 | D12: 0.04658417688 | E12: ='Rec1 1588 Commodity'!F13 -> 786885.9232 | F12: ='I1a ER Summary'!AJ10 -> 8916599.361 | G12: 0.08824955472 | H12: 1309687.91 | I12: 20139336.82 | J12: 0.06503133255 | M12: 513680.4991 | O12: 513680.4991 | P12: -9121.487664
A13: July | B13: ='Rec2 1589 Class B'!J14 -> 508225.111 | C13: ='I1a ER Summary'!AK11 -> 11841934.39 | D13: 0.04291740642 | E13: ='Rec1 1588 Commodity'!F14 -> 726064.669 | F13: ='I1a ER Summary'!AJ11 -> 10182024.82 | G13: 0.07130847566 | H13: 1234289.78 | I13: 22023959.21 | J13: 0.05604304695 | M13: 337855.3545 | O13: 337855.3545 | P13: -170369.7565
A14: August | B14: ='Rec2 1589 Class B'!J15 -> 376053.0148 | C14: ='I1a ER Summary'!AK12 -> 12063296.07 | D14: 0.03117332217 | E14: ='Rec1 1588 Commodity'!F15 -> 533021.4652 | F14: ='I1a ER Summary'!AJ12 -> 11357576.35 | G14: 0.04693091632 | H14: 909074.48 | I14: 23420872.42 | J14: 0.03881471466 | M14: 484646.4102 | O14: 484646.4102 | P14: 108593.3955
A15: September | B15: ='Rec2 1589 Class B'!J16 -> 430661.843 | C15: ='I1a ER Summary'!AK13 -> 10300294.53 | D15: 0.04181063384 | E15: ='Rec1 1588 Commodity'!F16 -> 684048.917 | F15: ='I1a ER Summary'!AJ13 -> 8860377.18 | G15: 0.07720313742 | H15: 1114710.76 | I15: 19160671.71 | J15: 0.05817701889 | M15: 351972.6143 | O15: 351972.6143 | P15: -78689.2287
A16: October | B16: ='Rec2 1589 Class B'!J17 -> 349604.7157 | C16: ='I1a ER Summary'!AK14 -> 10270622.76 | D16: 0.03403929087 | E16: ='Rec1 1588 Commodity'!F17 -> 474781.2643 | F16: ='I1a ER Summary'!AJ14 -> 8524467.853 | G16: 0.0556962936 | H16: 824385.98 | I16: 18795090.62 | J16: 0.04386177204 | M16: 508645.545 | O16: 508645.545 | P16: 159040.8293
A17: November | B17: ='Rec2 1589 Class B'!J18 -> 369823.0032 | C17: ='I1a ER Summary'!AK15 -> 12646583.2 | D17: 0.0292429186 | E17: ='Rec1 1588 Commodity'!F18 -> 519541.2068 | F17: ='I1a ER Summary'!AJ15 -> 7861259.934 | G17: 0.06608879634 | H17: 889364.21 | I17: 20507843.14 | J17: 0.04336702812 | M17: 446213.3479 | O17: 446213.3479 | P17: 76390.34468
A18: December | B18: ='Rec2 1589 Class B'!J19 -> 398268.7831 | C18: ='I1a ER Summary'!AK16 -> 12090440.42 | D18: 0.03294080028 | E18: ='Rec1 1588 Commodity'!F19 -> 686200.1469 | F18: ='I1a ER Summary'!AJ16 -> 9407442.242 | G18: 0.0729422652 | H18: 1084468.93 | I18: 21497882.66 | J18: 0.05044538326 | M18: 408485.058 | O18: 408485.058 | P18: 10216.27492
B19: =SUM(B7:B18) -> 5696370.96 | C19: =SUM(C7:C18) -> 142265179.8 | D19: 0.04004051426 | E19: =SUM(E7:E18) -> 8369661.99 | F19: =SUM(F7:F18) -> 113172576.7 | G19: 0.07395485932 | H19: =SUM(H7:H18) -> 14066032.95 | I19: =SUM(I7:I18) -> 255437756.5 | J19: 0.05506638151 | M19: =SUM(M7:M18) -> 5676951.368 | N19: =SUM(N7:N18) -> 0 | O19: =SUM(O7:O18) -> 5676951.368 | P19: =SUM(P7:P18) -> -19419.5919

Sheet Rev3 GA Analysis
F2: Consumption Data Excluding for Loss Factor (Data to agree with RRR as applicable)
F3: Year | H3: =ProcessYear[Process Year] -> 2021
F4: Total Metered excluding WMP | G4: C = A+B | H4: =H5+H6 -> 255437756.5 | I4: kWh | J4: 1
F5: RPP | G5: A | H5: ='Rev2 GA Purchases'!F19 -> 113172576.7 | I5: kWh | J5: 0.5303752085
F6: Non RPP | G6: B = D+E | H6: =H7+H8 -> 142265179.8 | I6: kWh | J6: 0.4696247915
F7: Non-RPP Class A | G7: D | H7: ='I1a ER Summary'!AN17 -> 64946132.98 | I7: kWh | J7: 0.1815554551
F8: Non-RPP Class B* | G8: E | H8: ='Rev2 GA Purchases'!C19-H7 -> 77319046.79 | I8: kWh | J8: 0.2880693364
F9: *Non-RPP Class B consumption reported in this table is not expected to directly agree with the Non-RPP Class B Including Loss Adjusted Billed Consumption in the GA Analysis of Expected Balance table below. The difference should be equal to the loss factor.
A12: Note 4 | B12: Analysis of Expected GA Amount
B13: Year | C13: =ProcessYear[Process Year] -> 2021
B14: Calendar Month | C14: Non-RPP Class B Including Loss Factor Billed Consumption (kWh) | D14: Deduct Previous Month Unbilled Loss Adjusted Consumption (kWh) | E14: Add Current Month Unbilled Loss Adjusted Consumption (kWh) | F14: Non-RPP Class B Including Loss Adjusted Consumption, Adjusted for Unbilled (kWh) | G14: GA Rate Billed ($/kWh) | H14: $ Consumption at GA Rate Billed | I14: GA Actual Rate Paid ($/kWh) | J14: $ Consumption at Actual Rate Paid | K14: Expected GA Variance ($) | M14: Revenue per Continuity Schedule | N14: Difference | P14: Expense per Continuity Schedule | Q14: Difference | T14: 2021
C15: F | D15: G | E15: H | F15: I = F-G+H | G15: J | H15: K = I*J | I15: L | J15: M = I*L | K15: =M-K | N15: =H-M | Q15: =J-P | S15: ($/kWh) | T15: First Estimate | U15: Recovery - 1st Estimate | V15: Second Estimate | W15: Recovery - 2nd Estimate | X15: Actual | Y15: Recovery - Actual
B16: January | C16: ='I1a ER Summary'!AP5 -> 9262146.032 | F16: =C16-D16+E16 -> 9262146.032 | G16: =T16+U16 -> 0.09092 | H16: =F16*G16 -> 842114.3172 | I16: =X16+Y16 -> 0.08798 | J16: =F16*I16 -> 814883.6079 | K16: =J16-H16 -> -27230.70933 | M16: ='Rec2 1589 Class B'!D8 -> -527646.811 | N16: =H16+M16 -> 314467.5062 | P16: ='Rec2 1589 Class B'!J8 -> 703221.5617 | Q16: =J16-P16 -> 111662.0462 | S16: January | T16: =86.21/1000 -> 0.08621 | U16: =4.71/1000 -> 0.00471 | V16: =86.73/1000 -> 0.08673 | W16: =5.09/1000 -> 0.00509 | X16: =82.97/1000 -> 0.08297 | Y16: =5.01/1000 -> 0.00501
B17: February | C17: ='I1a ER Summary'!AP6 -> 7224743.155 | F17: =C17-D17+E17 -> 7224743.155 | G17: =T17+U17 -> 0.10485 | H17: =F17*G17 -> 757514.3199 | I17: =X17+Y17 -> 0.05751 | J17: =F17*I17 -> 415494.9789 | K17: =J17-H17 -> -342019.341 | M17: ='Rec2 1589 Class B'!D9 -> -546064.2303 | N17: =H17+M17 -> 211450.0895 | P17: ='Rec2 1589 Class B'!J9 -> 374707.9573 | Q17: =J17-P17 -> 40787.02157 | S17: February | T17: =98.51/1000 -> 0.09851 | U17: =6.34/1000 -> 0.00634 | V17: =37.12/1000 -> 0.03712 | W17: =5.44/1000 -> 0.00544 | X17: =50.42/1000 -> 0.05042 | Y17: =7.09/1000 -> 0.00709
B18: March | C18: ='I1a ER Summary'!AP7 -> 5625641.07 | F18: =C18-D18+E18 -> 5625641.07 | G18: 0.0842 | H18: =F18*G18 -> 473678.9781 | I18: 0.09668 | J18: =F18*I18 -> 543886.9786 | K18: 70208.00055 | M18: ='Rec2 1589 Class B'!D10 -> -474955.9243 | N18: -1276.946178 | P18: ='Rec2 1589 Class B'!J10 -> 541742.9778 | Q18: 2144.000803 | S18: March | T18: =79.39/1000 -> 0.07939 | U18: =4.81/1000 -> 0.00481 | V18: =91.8/1000 -> 0.0918 | W18: =6.59/1000 -> 0.00659 | X18: =90.8/1000 -> 0.0908 | Y18: =5.88/1000 -> 0.00588
B19: April | C19: ='I1a ER Summary'!AP8 -> 4274688.449 | F19: =C19-D19+E19 -> 4274688.449 | G19: 0.06969 | H19: =F19*G19 -> 297903.038 | I19: 0.11589 | J19: =F19*I19 -> 495393.6443 | K19: 197490.6063 | M19: ='Rec2 1589 Class B'!D11 -> -354192.6102 | N19: -56289.5722 | P19: ='Rec2 1589 Class B'!J11 -> 508233.9903 | Q19: =J19-P19 -> -12840.34598 | S19: April | T19: =61.39/1000 -> 0.06139 | U19: =8.3/1000 -> 0.0083 | V19: =118.88/1000 -> 0.11888 | W19: =7.08/1000 -> 0.00708 | X19: =109.34/1000 -> 0.10934 | Y19: =6.55/1000 -> 0.00655
B20: May | C20: ='I1a ER Summary'!AP9 -> 6318516.268 | F20: 6318516.268 | G20: 0.10531 | H20: 665402.9482 | I20: 0.10675 | J20: =F20*I20 -> 674501.6116 | K20: =J20-H20 -> 9098.663426 | M20: ='Rec2 1589 Class B'!D12 -> -694034.9508 | N20: -28632.00261 | P20: ='Rec2 1589 Class B'!J12 -> 613026.015 | Q20: =J20-P20 -> 61475.59659 | S20: May | T20: =98.51/1000 -> 0.09851 | U20: =6.8/1000 -> 0.0068 | V20: =(100.66)/1000 -> 0.10066 | W20: =6.25/1000 -> 0.00625 | X20: =(100.54)/1000 -> 0.10054 | Y20: =6.21/1000 -> 0.00621
B21: June | C21: ='I1a ER Summary'!AP10 -> 5476654.997 | F21: 5476654.997 | G21: 0.11352 | H21: 621709.8753 | I21: 0.09216 | J21: 504728.5245 | K21: -116981.3507 | M21: ='Rec2 1589 Class B'!D13 -> -617427.7847 | N21: 4282.090541 | P21: ='Rec2 1589 Class B'!J13 -> 522801.9868 | Q21: -18073.46225 | S21: June | T21: =107.9/1000 -> 0.1079 | U21: =5.62/1000 -> 0.00562 | V21: =89.33/1000 -> 0.08933 | W21: =5.56/1000 -> 0.00556 | X21: =86.32/1000 -> 0.08632 | Y21: =5.84/1000 -> 0.00584
B22: July | C22: ='I1a ER Summary'!AP11 -> 6563418.788 | F22: 6563418.788 | G22: 0.07612 | H22: 499607.4381 | I22: 0.07918 | J22: 519691.4996 | K22: 20084.06149 | M22: ='Rec2 1589 Class B'!D14 -> -470015.6152 | N22: 29591.8229 | P22: ='Rec2 1589 Class B'!J14 -> 508225.111 | Q22: 11466.38868 | S22: July | T22: =71.62/1000 -> 0.07162 | U22: =4.5/1000 -> 0.0045 | V22: =72.84/1000 -> 0.07284 | W22: =5.36/1000 -> 0.00536 | X22: =73.6/1000 -> 0.0736 | Y22: =5.58/1000 -> 0.00558
B23: August | C23: ='I1a ER Summary'!AP12 -> 7059857.136 | F23: 7059857.136 | G23: 0.08734 | H23: 616607.9223 | I23: 0.05107 | J23: 360546.9039 | K23: -256061.0183 | M23: ='Rec2 1589 Class B'!D15 -> -571614.2674 | N23: 44993.65487 | P23: ='Rec2 1589 Class B'!J15 -> 376053.0148 | Q23: -15506.11081 | S23: August | T23: =81.37/1000 -> 0.08137 | U23: =5.97/1000 -> 0.00597 | V23: =48.29/1000 -> 0.04829 | W23: =5.01/1000 -> 0.00501 | X23: =45.99/1000 -> 0.04599 | Y23: =5.08/1000 -> 0.00508
B24: September | C24: ='I1a ER Summary'!AP13 -> 5287709.829 | F24: 5287709.829 | G24: 0.05519 | H24: 291828.7054 | I24: 0.08234 | J24: 435390.0273 | K24: 143561.3218 | M24: ='Rec2 1589 Class B'!D16 -> -341389.6294 | N24: -49560.92397 | P24: ='Rec2 1589 Class B'!J16 -> 430661.843 | Q24: 4728.184284 | S24: September | T24: =50.42/1000 -> 0.05042 | U24: =4.77/1000 -> 0.00477 | V24: =65.82/1000 -> 0.06582 | W24: =6.6/1000 -> 0.0066 | X24: =75.65/1000 -> 0.07565 | Y24: =6.69/1000 -> 0.00669
B25: October | C25: ='I1a ER Summary'!AP14 -> 5069020.383 | F25: 5069020.383 | G25: 0.07402 | H25: 375208.8888 | I25: 0.0584 | J25: 296030.7904 | K25: -79178.09839 | M25: ='Rec2 1589 Class B'!D17 -> -429389.0104 | N25: -54180.12162 | P25: ='Rec2 1589 Class B'!J17 -> 349604.7157 | Q25: -53573.92527 | S25: October | T25: =66.43/1000 -> 0.06643 | U25: =7.59/1000 -> 0.00759 | V25: =61.86/1000 -> 0.06186 | W25: =6.78/1000 -> 0.00678 | X25: =52.44/1000 -> 0.05244 | Y25: =5.96/1000 -> 0.00596
B26: November | C26: ='I1a ER Summary'!AP15 -> 7613311.474 | F26: 7613311.474 | G26: 0.06342 | H26: 482836.2137 | I26: 0.06012 | J26: 457712.2858 | K26: -25123.92786 | M26: ='Rec2 1589 Class B'!D18 -> -377177.5382 | N26: 105658.6755 | P26: ='Rec2 1589 Class B'!J18 -> 369823.0032 | Q26: 87889.28255 | S26: November | T26: =57.3/1000 -> 0.0573 | U26: =6.12/1000 -> 0.00612 | V26: =52.62/1000 -> 0.05262 | W26: =5.83/1000 -> 0.00583 | X26: =54.17/1000 -> 0.05417 | Y26: =5.95/1000 -> 0.00595
B27: December | C27: ='I1a ER Summary'!AP16 -> 7543339.206 | F27: 7543339.206 | G27: 0.05443 | H27: 410583.953 | I27: 0.06515 | J27: 491448.5493 | K27: 80864.59629 | M27: ='Rec2 1589 Class B'!D19 -> -334264.5676 | N27: 76319.38541 | P27: ='Rec2 1589 Class B'!J19 -> 398268.7831 | Q27: 93179.76618 | S27: December | T27: =49.02/1000 -> 0.04902 | U27: =5.41/1000 -> 0.00541 | V27: =54.15/1000 -> 0.05415 | W27: =5.03/1000 -> 0.00503 | X27: =59.68/1000 -> 0.05968 | Y27: =5.47/1000 -> 0.00547
B29: Net Change in Expected GA Balance in the Year (i.e. Transactions in the Year) | C29: =SUM(C16:C27) -> 77319046.79 | D29: 0 | E29: 0 | F29: =SUM(F16:F27) -> 77319046.79 | H29: =SUM(H16:H27) -> 6334996.598 | J29: =SUM(J16:J27) -> 6009709.402 | K29: =SUM(K16:K27) -> -325287.1957 | M29: =SUM(M16:M28) -> -5738172.939 | N29: =SUM(N16:N28) -> 596823.6584 | P29: =SUM(P16:P28) -> 5696370.96 | Q29: =SUM(Q16:Q28) -> 313338.4425
C36: Annual Non-RPP Class B Wholesale kWh * | D36: Annual Non-RPP Class B Retail billed kWh | E36: Annual Unaccounted for Energy Loss kWh | F36: Weighted Average GA Actual Rate Paid ($/kWh)** | G36: Expected GA Volume Variance ($)
C37: O | D37: P | E37: Q=O-P | F37: R | G37: P= Q*R
C38: =(Rev1UFE!C19-H7)*'Rev3 GA Analysis '!H8/(H5+H8) -> 76452945.32 | D38: =H8 -> 77319046.79 | E38: =C38-D38 -> -866101.4648 | F38: =H29/F29 -> 0.08193319578 | G38: =E38*F38 -> -70962.46088 | I38: =D38/C38 -> 1.011328556
C39: *Equal to (AQEW - Class A + embedded generation kWh)*(Non-RPP Class B retail kwh/Total retail Class B kWh)
C40: **Equal to annual Non-RPP Class B $ GA paid (i.e. non-RPP portion of CT 148 on IESO invoice) divided by Non-RPP Class B Wholesale kWh (as quantified in column O in the table above)
F41: Total Expected GA Variance | G41: =K29+G38 -> -396249.6566
A48: Note 5 | B48: Reconciling Items
B50: Item | C50: Applicability of Reconciling Item (Y/N) | D50: Amount (Quantify if it is a significant reconciling item) | E50: Explanation
A51: Net Change in Principal Balance in the GL (i.e. Transactions in the Year) | D51: =M29+P29 -> -41801.97981
A52: 1a | B52: Remove impacts to GA from prior year RPP Settlement true up process that are booked in current year | C52: N
A53: 1b | B53: Add impacts to GA from current year RPP Settlement true up process that are booked in subsequent year | C53: N
A54: 2a | B54: Remove prior year end unbilled to actual revenue differences | C54: N
A55: 2b | B55: Add current year end unbilled to actual revenue differences | C55: N
A56: 3a | B56: Remove difference between prior year accrual to forecast from long term load transfers | C56: N
A57: 3b | B57: Add difference between current year accrual to forecast from long term load transfers | C57: N
A58: 4 | B58: Remove GA balances pertaining to Class A customers | C58: N
A59: 5 | B59: Significant prior period billing adjustments included in current year GL balance but would not be included in the billing consumption used in the GA Analysis | C59: N
A60: 6 | B60: Differences in GA IESO posted rate and rate charged on IESO invoice | C60: N
A61: 7 | D61: 0
A62: 9
A63: 10
A64: Note 6 | B64: Adjusted Net Change in Principal Balance in the GL | D64: =SUM(D51:D63) -> -41801.97981
B65: Net Change in Expected GA Balance in the Year Per Analysis | D65: =G41 -> -396249.6566
B66: Unresolved Difference | D66: =D64-D65 -> 354447.6768
B67: Unresolved Difference as % of Expected GA Payments to IESO | D67: =IF(ISERROR(D66/J29),0,D66/J29) -> 0.05897917071 | E67: =IF(AND(D67<0.01,D67>-0.01),"","Unresolved differences of greater than + or - 1% should be explained") -> Unresolved differences of greater than + or - 1% should be explained
A70: Note 7 | B70: Summary of GA (if multiple years requested for disposition)
B72: Year | C72: Annual Net Change in Expected GA Balance from GA Analysis (cell K59) | D72: Net Change in Principal Balance in the GL (cell D65) | E72: Reconciling Items (sum of cells D66 to D78) | F72: Adjusted Net Change in Principal Balance in the GL | G72: Unresolved Difference | H72: Payments to IESO (cell J59) | I72: Unresolved Difference as % of Expected GA Payments to IESO
B73: 2023 | C73: =G41 -> -396249.6566 | D73: =D51 -> -41801.97981 | E73: =SUM(D52:D63) -> 0 | F73: =SUM(D73:E73) -> -41801.97981 | G73: =F73-C73 -> 354447.6768 | H73: =J29 -> 6009709.402 | I73: =IF(ISERROR(G73/H73),0,G73/H73) -> 0.05897917071
F74: =SUM(D74:E74) -> 0 | G74: =F74-C74 -> 0 | I74: =IF(ISERROR(G74/H74),0,G74/H74) -> 0
F75: =SUM(D75:E75) -> 0 | G75: =F75-C75 -> 0 | I75: =IF(ISERROR(G75/H75),0,G75/H75) -> 0
F76: =SUM(D76:E76) -> 0 | G76: =F76-C76 -> 0 | I76: =IF(ISERROR(G76/H76),0,G76/H76) -> 0
B77: Cumulative Balance | C77: =SUM(C73:C76) -> -396249.6566 | D77: -41801.97981 | E77: 0 | F77: -41801.97981 | G77: =SUM(G73:G76) -> 354447.6768 | H77: 6009709.402 | I77: N/A
B80: Additional Notes and Comments
B95: Account 1588 Reasonability Test
C97: Account 1588 - RSVA Power | F97: Account 4705 - Power Purchased | G97: Account 1588 as % of Account 4705
B98: Year | C98: Transactions1 | D98: Principal Adjustments1 | E98: Total Activity in Calendar Year
B99: 2023 | D99: ='Rec1 1588 Commodity'!L20 -> -83171.67475 | E99: =SUM(C99:D99) -> -83171.67475 | F99: ='Rec1 1588 Commodity'!K20 -> 15778305.69 | G99: =IFERROR(E99/F99,0) -> -0.005271267803
B102: Notes
B103: 1) The transactions should equal the "Transaction" column in the DVA Continuity Schedule. This is also expected to equal the transactions in the general ledger (excluding transactions relating to the removal of approved disposition amounts as that is shown in a separate column in the DVA Continuity Schedule)
B104: 2) Principal adjustments should equal the "Principal Adjustments" column in the DVA Continuity Schedule. Principal adjustments adjust the transactions in the general ledger to the amount that should be requested for disposition.
